Workbook

Sheet HeroPowerUpConfig
A1: ID | B1: HeroLevel | C1: jingjie1 | D1: jingjie2 | E1: jingjie3 | F1: jingjieLanIDs | M1: levelUpExp | N1: DujieLevelbattleID | O1: DujieRateviaBattle | P1: DujieMustItemIDs | Q1: DujieMustItemValues | R1: DujieItemIDs | S1: DujieItemValues | T1: LeijieDamages | U1: HPFactor | V1: ATKFactor | W1: DEFFactor | X1: HudunFactor | Y1: defK | Z1: ShenshiMax | AA1: AutoXiuwei | AB1: FailureExpReduce | AC1: MaxActiveGongfaNum | AD1: MaxPassiveGongfaNum | AE1: MaxFabaoNum | AJ1: MPFactor | AK1: DaoyouCount
A2: int | B2: int | C2: int | D2: int | E2: int | F2: int[] | M2: int | N2: int | O2: int | P2: int[] | Q2: int[] | R2: int[] | S2: int[] | T2: int[] | U2: float | V2: float | W2: float | X2: float | Y2: int | Z2: int | AA2: float | AB2: int | AC2: int | AD2: int | AE2: int | AJ2: float | AK2: int
AF3: =SUM(AF5:AF304) -> 1229974 | AG3: =AF3/60 -> 20499.56667 | AH3: =AG3/60 -> 341.6594444 | AI3: =AH3/12 -> 28.47162037
A4: ID | B4: 玩家修为境界（等级） | C4: 大境界ID | D4: 中境界ID | E4: 小境界ID | F4: 境界语言表ID | G4: 境界名称1 | H4: 境界名称2 | I4: 境界名称3 | M4: 升级所需修为值 （-1代表最大等级) | N4: 渡劫必须战斗ID | O4: 战斗增加渡劫几率 | P4: 渡劫必需道具ID | Q4: 渡劫必需道具数量 | R4: 渡劫选有道具IDs | S4: 渡劫选有道具数量 | T4: 雷劫伤害 要填下限、上限、表现上几根雷 | U4: 生命倍率 | V4: 攻击倍率 | W4: 防御倍率 | X4: 护盾倍率 | Y4: 防御系数K | Z4: 神识上限 | AA4: 每秒获得的修为值 | AB4: 雷劫失败扣除的当前等级修为百分比 | AC4: 主动功法可配置上限 | AD4: 被动功法可配置上限 | AE4: 法宝可配置上限 | AF4: 吐纳时长(s) | AG4: 分钟 | AH4: 小时 | AI4: 天（每天12小时） | AJ4: 法力倍率 | AK4: 允许出现的最大挂机道友数量 | AM4: 战斗 | AN4: 必须 | AO4: 数量 | AP4: 选有1 | AQ4: 数量1 | AR4: 选有2 | AS4: 数量2 | AT4: 选有3 | AU4: 数量3 | AV4: 选有4 | AW4: 数量4 | AX4: 基础概率 | AY4: 概率1 | AZ4: 概率2 | BA4: 概率3 | BB4: 概率4 | BC4: 总概率
A5: 1 | B5: 1 | C5: 1 | D5: 1 | E5: 1 | F5: =_xlfn.TEXTJOIN(";",1,J5:L5) -> 225;235;238 | G5: 练气 | H5: 前期. | I5: 一重 | J5: 225 | K5: 235 | L5: 238 | M5: =ROUND([1]ResourceLevelConfig!$E5*[1]ResourceLevelConfig!$L5*0.1,0)*10 -> 4000 | N5: =IF(E5=10,100004,-1) -> -1 | O5: =IF(N5=-1,-1,20) -> -1 | P5: -1 | Q5: -1 | R5: =IF(I5=10,"1204;1203;1202;1201",-1) -> -1 | S5: =IF(R5=-1,-1,"1;1;1;1") -> -1 | T5: =IF(G5=G6,0,CONCATENATE(80*ROUND(VLOOKUP(B5,[2]MonsterPowerUpConfig!$A:$I,9,FALSE),0),";",120*ROUND(VLOOKUP(B5,[2]MonsterPowerUpConfig!$A:$I,9,FALSE),0))) -> 0 | U5: =[3]主表!K3 -> 5 | V5: =[3]主表!L3 -> 1 | W5: =[3]主表!M3 -> 1 | X5: =[3]主表!N3 -> 0 | Y5: =[3]主表!$G3 -> 210 | Z5: =[3]升级!$H3 -> 1000 | AA5: =MAX(1,ROUND(100/(24*3600)*VLOOKUP(B5,[1]ResourceLevelConfig!$A:$E,5,FALSE),2)) -> 1.16 | AB5: -1 | AC5: 2 | AD5: 1 | AE5: 1 | AF5: =ROUND(10^(B5*0.01+2.07),0) -> 120 | AH5: =50*W5 -> 50 | AJ5: 1 | AK5: 1 | AL5: 1
A6: 2 | B6: 2 | C6: 1 | D6: 1 | E6: 2 | F6: =_xlfn.TEXTJOIN(";",1,J6:L6) -> 225;235;239 | G6: 练气 | H6: 前期. | I6: 二重 | J6: 225 | K6: 235 | L6: 239 | M6: =ROUND([1]ResourceLevelConfig!$E6*[1]ResourceLevelConfig!$L6*0.1,0)*10 -> 4140 | N6: =IF(E6=10,100004,-1) -> -1 | O6: =IF(N6=-1,-1,20) -> -1 | P6: -1 | Q6: -1 | R6: =IF(I6=10,"1204;1203;1202;1201",-1) -> -1 | S6: =IF(R6=-1,-1,"1;1;1;1") -> -1 | T6: =IF(G6=G7,0,CONCATENATE(80*ROUND(VLOOKUP(B6,[2]MonsterPowerUpConfig!$A:$I,9,FALSE),0),";",120*ROUND(VLOOKUP(B6,[2]MonsterPowerUpConfig!$A:$I,9,FALSE),0))) -> 0 | U6: =[3]主表!K4 -> 5.406494997 | V6: =[3]主表!L4 -> 1.013501828 | W6: =[3]主表!M4 -> 1.013501828 | X6: =[3]主表!N4 -> 0 | Y6: =[3]主表!$G4 -> 213 | Z6: =[3]升级!$H4 -> 1000 | AA6: =MAX(1,ROUND(100/(24*3600)*VLOOKUP(B6,[1]ResourceLevelConfig!$A:$E,5,FALSE),2)) -> 1.17 | AB6: -1 | AC6: =AC5 -> 2 | AD6: =AD5 -> 1 | AE6: 1 | AF6: =MAX(AF5+10,ROUND(10^(B6*0.01+1.405),0)) -> 130 | AH6: 50.67509142 | AJ6: 1 | AK6: 1 | AL6: 2
A7: 3 | B7: 3 | C7: 1 | D7: 1 | E7: 3 | F7: 225;235;240 | G7: 练气 | H7: 前期. | I7: 三重 | J7: 225 | K7: 235 | L7: 240 | M7: =ROUND([1]ResourceLevelConfig!$E7*[1]ResourceLevelConfig!$L7*0.1,0)*10 -> 4280 | N7: -1 | O7: -1 | P7: -1 | Q7: -1 | R7: -1 | S7: -1 | T7: =IF(G7=G8,0,CONCATENATE(80*ROUND(VLOOKUP(B7,[2]MonsterPowerUpConfig!$A:$I,9,FALSE),0),";",120*ROUND(VLOOKUP(B7,[2]MonsterPowerUpConfig!$A:$I,9,FALSE),0))) -> 0 | U7: =[3]主表!K5 -> 5.823055348 | V7: =[3]主表!L5 -> 1.027185956 | W7: =[3]主表!M5 -> 1.027185956 | X7: =[3]主表!N5 -> 0 | Y7: =[3]主表!$G5 -> 215 | Z7: =[3]升级!$H5 -> 1000 | AA7: =MAX(1,ROUND(100/(24*3600)*VLOOKUP(B7,[1]ResourceLevelConfig!$A:$E,5,FALSE),2)) -> 1.18 | AB7: -1 | AC7: =AC6 -> 2 | AD7: =AD6 -> 1 | AE7: =AE6 -> 1 | AF7: 140 | AH7: 51.35929781 | AJ7: 1 | AK7: 1 | AL7: 3
A8: 4 | B8: 4 | C8: 1 | D8: 1 | E8: 4 | F8: 225;235;241 | G8: 练气 | H8: 前期. | I8: 四重 | J8: 225 | K8: 235 | L8: 241 | M8: =ROUND([1]ResourceLevelConfig!$E8*[1]ResourceLevelConfig!$L8*0.1,0)*10 -> 4430 | N8: -1 | O8: -1 | P8: -1 | Q8: -1 | R8: -1 | S8: -1 | T8: =IF(G8=G9,0,CONCATENATE(80*ROUND(VLOOKUP(B8,[2]MonsterPowerUpConfig!$A:$I,9,FALSE),0),";",120*ROUND(VLOOKUP(B8,[2]MonsterPowerUpConfig!$A:$I,9,FALSE),0))) -> 0 | U8: =[3]主表!K6 -> 6.249878752 | V8: =[3]主表!L6 -> 1.041054845 | W8: =[3]主表!M6 -> 1.041054845 | X8: =[3]主表!N6 -> 0 | Y8: =[3]主表!$G6 -> 218 | Z8: =[3]升级!$H6 -> 1000 | AA8: =MAX(1,ROUND(100/(24*3600)*VLOOKUP(B8,[1]ResourceLevelConfig!$A:$E,5,FALSE),2)) -> 1.19 | AB8: -1 | AC8: 2 | AD8: 1 | AE8: 1 | AF8: 150 | AH8: 52.05274223 | AJ8: 1 | AK8: 1 | AL8: 4
A9: 5 | B9: 5 | C9: 1 | D9: 1 | E9: 5 | F9: 225;235;242 | G9: 练气 | H9: 前期. | I9: 五重 | J9: 225 | K9: 235 | L9: 242 | M9: =ROUND([1]ResourceLevelConfig!$E9*[1]ResourceLevelConfig!$L9*0.1,0)*10 -> 4580 | N9: -1 | O9: -1 | P9: -1 | Q9: -1 | R9: -1 | S9: -1 | T9: =IF(G9=G10,0,CONCATENATE(80*ROUND(VLOOKUP(B9,[2]MonsterPowerUpConfig!$A:$I,9,FALSE),0),";",120*ROUND(VLOOKUP(B9,[2]MonsterPowerUpConfig!$A:$I,9,FALSE),0))) -> 0 | U9: =[3]主表!K7 -> 6.687166409 | V9: =[3]主表!L7 -> 1.055110989 | W9: =[3]主表!M7 -> 1.055110989 | X9: =[3]主表!N7 -> 0 | Y9: =[3]主表!$G7 -> 221 | Z9: =[3]升级!$H7 -> 1000 | AA9: =MAX(1,ROUND(100/(24*3600)*VLOOKUP(B9,[1]ResourceLevelConfig!$A:$E,5,FALSE),2)) -> 1.2 | AB9: -1 | AC9: 2 | AD9: 1 | AE9: 1 | AF9: 160 | AH9: 52.75554943 | AJ9: 1 | AK9: 1 | AL9: 5
A10: 6 | B10: 6 | C10: 1 | D10: 1 | E10: 6 | F10: 225;235;243 | G10: 练气 | H10: 前期. | I10: 六重 | J10: 225 | K10: 235 | L10: 243 | M10: =ROUND([1]ResourceLevelConfig!$E10*[1]ResourceLevelConfig!$L10*0.1,0)*10 -> 4730 | N10: -1 | O10: -1 | P10: -1 | Q10: -1 | R10: -1 | S10: -1 | T10: =IF(G10=G11,0,CONCATENATE(80*ROUND(VLOOKUP(B10,[2]MonsterPowerUpConfig!$A:$I,9,FALSE),0),";",120*ROUND(VLOOKUP(B10,[2]MonsterPowerUpConfig!$A:$I,9,FALSE),0))) -> 0 | U10: =[3]主表!K8 -> 7.135123082 | V10: =[3]主表!L8 -> 1.069356916 | W10: =[3]主表!M8 -> 1.069356916 | X10: =[3]主表!N8 -> 0 | Y10: =[3]主表!$G8 -> 224 | Z10: =[3]升级!$H8 -> 1000 | AA10: =MAX(1,ROUND(100/(24*3600)*VLOOKUP(B10,[1]ResourceLevelConfig!$A:$E,5,FALSE),2)) -> 1.22 | AB10: -1 | AC10: 2 | AD10: 1 | AE10: 1 | AF10: 170 | AH10: 53.4678458 | AJ10: 1 | AK10: 1 | AL10: 6
A11: 7 | B11: 7 | C11: 1 | D11: 1 | E11: 7 | F11: 225;235;244 | G11: 练气 | H11: 前期. | I11: 七重 | J11: 225 | K11: 235 | L11: 244 | M11: =ROUND([1]ResourceLevelConfig!$E11*[1]ResourceLevelConfig!$L11*0.1,0)*10 -> 4880 | N11: -1 | O11: -1 | P11: -1 | Q11: -1 | R11: -1 | S11: -1 | T11: =IF(G11=G12,0,CONCATENATE(80*ROUND(VLOOKUP(B11,[2]MonsterPowerUpConfig!$A:$I,9,FALSE),0),";",120*ROUND(VLOOKUP(B11,[2]MonsterPowerUpConfig!$A:$I,9,FALSE),0))) -> 0 | U11: =[3]主表!K9 -> 7.593957158 | V11: =[3]主表!L9 -> 1.08379519 | W11: =[3]主表!M9 -> 1.08379519 | X11: =[3]主表!N9 -> 0 | Y11: =[3]主表!$G9 -> 227 | Z11: =[3]升级!$H9 -> 1000 | AA11: =MAX(1,ROUND(100/(24*3600)*VLOOKUP(B11,[1]ResourceLevelConfig!$A:$E,5,FALSE),2)) -> 1.23 | AB11: -1 | AC11: 2 | AD11: 1 | AE11: 1 | AF11: 180 | AH11: 54.18975948 | AJ11: 1 | AK11: 1 | AL11: 7
A12: 8 | B12: 8 | C12: 1 | D12: 1 | E12: 8 | F12: 225;235;245 | G12: 练气 | H12: 前期. | I12: 八重 | J12: 225 | K12: 235 | L12: 245 | M12: =ROUND([1]ResourceLevelConfig!$E12*[1]ResourceLevelConfig!$L12*0.1,0)*10 -> 5030 | N12: -1 | O12: -1 | P12: -1 | Q12: -1 | R12: -1 | S12: -1 | T12: =IF(G12=G13,0,CONCATENATE(80*ROUND(VLOOKUP(B12,[2]MonsterPowerUpConfig!$A:$I,9,FALSE),0),";",120*ROUND(VLOOKUP(B12,[2]MonsterPowerUpConfig!$A:$I,9,FALSE),0))) -> 0 | U12: =[3]主表!K10 -> 8.063880704 | V12: =[3]主表!L10 -> 1.098428406 | W12: =[3]主表!M10 -> 1.098428406 | X12: =[3]主表!N10 -> 0 | Y12: =[3]主表!$G10 -> 230 | Z12: =[3]升级!$H10 -> 1000 | AA12: =MAX(1,ROUND(100/(24*3600)*VLOOKUP(B12,[1]ResourceLevelConfig!$A:$E,5,FALSE),2)) -> 1.24 | AB12: -1 | AC12: 2 | AD12: 1 | AE12: 1 | AF12: 190 | AH12: 54.92142032 | AJ12: 1 | AK12: 1 | AL12: 8
A13: 9 | B13: 9 | C13: 1 | D13: 1 | E13: 9 | F13: 225;235;246 | G13: 练气 | H13: 前期. | I13: 九重 | J13: 225 | K13: 235 | L13: 246 | M13: =ROUND([1]ResourceLevelConfig!$E13*[1]ResourceLevelConfig!$L13*0.1,0)*10 -> 5180 | N13: -1 | O13: -1 | P13: -1 | Q13: -1 | R13: -1 | S13: -1 | T13: =IF(G13=G14,0,CONCATENATE(80*ROUND(VLOOKUP(B13,[2]MonsterPowerUpConfig!$A:$I,9,FALSE),0),";",120*ROUND(VLOOKUP(B13,[2]MonsterPowerUpConfig!$A:$I,9,FALSE),0))) -> 0 | U13: =[3]主表!K11 -> 8.545109529 | V13: =[3]主表!L11 -> 1.113259198 | W13: =[3]主表!M11 -> 1.113259198 | X13: =[3]主表!N11 -> 0 | Y13: =[3]主表!$G11 -> 233 | Z13: =[3]升级!$H11 -> 1000 | AA13: =MAX(1,ROUND(100/(24*3600)*VLOOKUP(B13,[1]ResourceLevelConfig!$A:$E,5,FALSE),2)) -> 1.25 | AB13: -1 | AC13: 2 | AD13: 1 | AE13: 1 | AF13: 200 | AH13: 55.66295991 | AJ13: 1 | AK13: 1 | AL13: 9
A14: 10 | B14: 10 | C14: 1 | D14: 1 | E14: 10 | F14: 225;235;247 | G14: 练气 | H14: 前期. | I14: 十重 | J14: 225 | K14: 235 | L14: 247 | M14: =ROUND([1]ResourceLevelConfig!$E14*[1]ResourceLevelConfig!$L14*0.1,0)*10 -> 5340 | N14: 100004 | O14: =AM14 -> 90 | P14: =AN14 -> 1201 | Q14: =AO14 -> 1 | R14: =_xlfn.TEXTJOIN(";",1,AP14,AR14,AT14,AV14) -> 1202;1201;1201;1201 | S14: =_xlfn.TEXTJOIN(";",1,AQ14,AS14,AU14,AW14) -> 1;1;1;1 | T14: =IF(G14=G15,0,CONCATENATE(80*ROUND(VLOOKUP(B14,[2]MonsterPowerUpConfig!$A:$I,9,FALSE),0),";",120*ROUND(VLOOKUP(B14,[2]MonsterPowerUpConfig!$A:$I,9,FALSE),0))) -> 0 | U14: =[3]主表!K12 -> 9.037863253 | V14: =[3]主表!L12 -> 1.128290233 | W14: =[3]主表!M12 -> 1.128290233 | X14: =[3]主表!N12 -> 0 | Y14: =[3]主表!$G12 -> 236 | Z14: =[3]升级!$H12 -> 1000 | AA14: =MAX(1,ROUND(100/(24*3600)*VLOOKUP(B14,[1]ResourceLevelConfig!$A:$E,5,FALSE),2)) -> 1.26 | AB14: 20 | AC14: 2 | AD14: 1 | AE14: 1 | AF14: 210 | AH14: 56.41451164 | AJ14: 1 | AK14: 1 | AL14: 10 | AM14: 90 | AN14: 1201 | AO14: 1 | AP14: 1202 | AQ14: 1 | AR14: 1201 | AS14: 1 | AT14: 1201 | AU14: 1 | AV14: 1201 | AW14: 1 | AX14: =VLOOKUP(AN14,[4]ItemConfig!$A:$AC,29,FALSE)*AO14+AM14 -> 100 | AY14: =VLOOKUP(AP14,[4]ItemConfig!$A:$AC,29,FALSE)*AQ14 -> 15 | AZ14: =VLOOKUP(AR14,[4]ItemConfig!$A:$AC,29,FALSE)*AS14 -> 10 | BA14: =VLOOKUP(AT14,[4]ItemConfig!$A:$AC,29,FALSE)*AU14 -> 10 | BB14: =VLOOKUP(AV14,[4]ItemConfig!$A:$AC,29,FALSE)*AW14 -> 10 | BC14: =CONCATENATE(AX14," + ",SUM(AY14:BB14)) -> 100 + 45
A15: 11 | B15: 11 | C15: 1 | D15: 2 | E15: 1 | F15: 225;236;238 | G15: 练气 | H15: 中期. | I15: 一重 | J15: 225 | K15: 236 | L15: 238 | M15: =ROUND([1]ResourceLevelConfig!$E15*[1]ResourceLevelConfig!$L15*0.1,0)*10 -> 5550 | N15: -1 | O15: -1 | P15: -1 | Q15: -1 | R15: -1 | S15: -1 | T15: =IF(G15=G16,0,CONCATENATE(80*ROUND(VLOOKUP(B15,[2]MonsterPowerUpConfig!$A:$I,9,FALSE),0),";",120*ROUND(VLOOKUP(B15,[2]MonsterPowerUpConfig!$A:$I,9,FALSE),0))) -> 0 | U15: =[3]主表!K13 -> 10.35676661 | V15: =[3]主表!L13 -> 1.241119256 | W15: =[3]主表!M13 -> 1.241119256 | X15: =[3]主表!N13 -> 0 | Y15: =[3]主表!$G13 -> 262 | Z15: =[3]升级!$H13 -> 1000 | AA15: =MAX(1,ROUND(100/(24*3600)*VLOOKUP(B15,[1]ResourceLevelConfig!$A:$E,5,FALSE),2)) -> 1.28 | AB15: -1 | AC15: 2 | AD15: 1 | AE15: 1 | AF15: 220 | AJ15: 1 | AK15: 1 | AL15: 11
A16: 12 | B16: 12 | C16: 1 | D16: 2 | E16: 2 | F16: 225;236;239 | G16: 练气 | H16: 中期. | I16: 二重 | J16: 225 | K16: 236 | L16: 239 | M16: =ROUND([1]ResourceLevelConfig!$E16*[1]ResourceLevelConfig!$L16*0.1,0)*10 -> 5710 | N16: -1 | O16: -1 | P16: -1 | Q16: -1 | R16: -1 | S16: -1 | T16: =IF(G16=G17,0,CONCATENATE(80*ROUND(VLOOKUP(B16,[2]MonsterPowerUpConfig!$A:$I,9,FALSE),0),";",120*ROUND(VLOOKUP(B16,[2]MonsterPowerUpConfig!$A:$I,9,FALSE),0))) -> 0 | U16: =[3]主表!K14 -> 10.91732377 | V16: =[3]主表!L14 -> 1.257876635 | W16: =[3]主表!M14 -> 1.257876635 | X16: =[3]主表!N14 -> 0 | Y16: =[3]主表!$G14 -> 265 | Z16: =[3]升级!$H14 -> 1000 | AA16: =MAX(1,ROUND(100/(24*3600)*VLOOKUP(B16,[1]ResourceLevelConfig!$A:$E,5,FALSE),2)) -> 1.3 | AB16: -1 | AC16: =AC15 -> 2 | AD16: =AD15 -> 1 | AE16: 1 | AF16: 230 | AJ16: 1 | AK16: 1 | AL16: 12
A17: 13 | B17: 13 | C17: 1 | D17: 2 | E17: 3 | F17: 225;236;240 | G17: 练气 | H17: 中期. | I17: 三重 | J17: 225 | K17: 236 | L17: 240 | M17: =ROUND([1]ResourceLevelConfig!$E17*[1]ResourceLevelConfig!$L17*0.1,0)*10 -> 5880 | N17: -1 | O17: -1 | P17: -1 | Q17: -1 | R17: -1 | S17: -1 | T17: =IF(G17=G18,0,CONCATENATE(80*ROUND(VLOOKUP(B17,[2]MonsterPowerUpConfig!$A:$I,9,FALSE),0),";",120*ROUND(VLOOKUP(B17,[2]MonsterPowerUpConfig!$A:$I,9,FALSE),0))) -> 0 | U17: =[3]主表!K15 -> 11.49112999 | V17: =[3]主表!L15 -> 1.27486027 | W17: =[3]主表!M15 -> 1.27486027 | X17: =[3]主表!N15 -> 0 | Y17: =[3]主表!$G15 -> 269 | Z17: =[3]升级!$H15 -> 1000 | AA17: =MAX(1,ROUND(100/(24*3600)*VLOOKUP(B17,[1]ResourceLevelConfig!$A:$E,5,FALSE),2)) -> 1.31 | AB17: -1 | AC17: =AC16 -> 2 | AD17: =AD16 -> 1 | AE17: =AE16 -> 1 | AF17: 240 | AJ17: 1 | AK17: 1 | AL17: 13
A18: 14 | B18: 14 | C18: 1 | D18: 2 | E18: 4 | F18: 225;236;241 | G18: 练气 | H18: 中期. | I18: 四重 | J18: 225 | K18: 236 | L18: 241 | M18: =ROUND([1]ResourceLevelConfig!$E18*[1]ResourceLevelConfig!$L18*0.1,0)*10 -> 6040 | N18: -1 | O18: -1 | P18: -1 | Q18: -1 | R18: -1 | S18: -1 | T18: =IF(G18=G19,0,CONCATENATE(80*ROUND(VLOOKUP(B18,[2]MonsterPowerUpConfig!$A:$I,9,FALSE),0),";",120*ROUND(VLOOKUP(B18,[2]MonsterPowerUpConfig!$A:$I,9,FALSE),0))) -> 0 | U18: =[3]主表!K16 -> 12.07844085 | V18: =[3]主表!L16 -> 1.292073214 | W18: =[3]主表!M16 -> 1.292073214 | X18: =[3]主表!N16 -> 0 | Y18: =[3]主表!$G16 -> 273 | Z18: =[3]升级!$H16 -> 1000 | AA18: =MAX(1,ROUND(100/(24*3600)*VLOOKUP(B18,[1]ResourceLevelConfig!$A:$E,5,FALSE),2)) -> 1.32 | AB18: -1 | AC18: 2 | AD18: 1 | AE18: 1 | AF18: 250 | AJ18: 1 | AK18: 1 | AL18: 14
A19: 15 | B19: 15 | C19: 1 | D19: 2 | E19: 5 | F19: 225;236;242 | G19: 练气 | H19: 中期. | I19: 五重 | J19: 225 | K19: 236 | L19: 242 | M19: =ROUND([1]ResourceLevelConfig!$E19*[1]ResourceLevelConfig!$L19*0.1,0)*10 -> 6210 | N19: -1 | O19: -1 | P19: -1 | Q19: -1 | R19: -1 | S19: -1 | T19: =IF(G19=G20,0,CONCATENATE(80*ROUND(VLOOKUP(B19,[2]MonsterPowerUpConfig!$A:$I,9,FALSE),0),";",120*ROUND(VLOOKUP(B19,[2]MonsterPowerUpConfig!$A:$I,9,FALSE),0))) -> 0 | U19: =[3]主表!K17 -> 12.67951643 | V19: =[3]主表!L17 -> 1.309518565 | W19: =[3]主表!M17 -> 1.309518565 | X19: =[3]主表!N17 -> 0 | Y19: =[3]主表!$G17 -> 277 | Z19: =[3]升级!$H17 -> 1000 | AA19: =MAX(1,ROUND(100/(24*3600)*VLOOKUP(B19,[1]ResourceLevelConfig!$A:$E,5,FALSE),2)) -> 1.33 | AB19: -1 | AC19: 2 | AD19: 1 | AE19: 1 | AF19: 260 | AJ19: 1 | AK19: 1 | AL19: 15
A20: 16 | B20: 16 | C20: 1 | D20: 2 | E20: 6 | F20: 225;236;243 | G20: 练气 | H20: 中期. | I20: 六重 | J20: 225 | K20: 236 | L20: 243 | M20: =ROUND([1]ResourceLevelConfig!$E20*[1]ResourceLevelConfig!$L20*0.1,0)*10 -> 6380 | N20: -1 | O20: -1 | P20: -1 | Q20: -1 | R20: -1 | S20: -1 | T20: =IF(G20=G21,0,CONCATENATE(80*ROUND(VLOOKUP(B20,[2]MonsterPowerUpConfig!$A:$I,9,FALSE),0),";",120*ROUND(VLOOKUP(B20,[2]MonsterPowerUpConfig!$A:$I,9,FALSE),0))) -> 0 | U20: =[3]主表!K18 -> 13.29462136 | V20: =[3]主表!L18 -> 1.32719946 | W20: =[3]主表!M18 -> 1.32719946 | X20: =[3]主表!N18 -> 0 | Y20: =[3]主表!$G18 -> 281 | Z20: =[3]升级!$H18 -> 1000 | AA20: =MAX(1,ROUND(100/(24*3600)*VLOOKUP(B20,[1]ResourceLevelConfig!$A:$E,5,FALSE),2)) -> 1.34 | AB20: -1 | AC20: 2 | AD20: 1 | AE20: 1 | AF20: 270 | AJ20: 1 | AK20: 1 | AL20: 16
A21: 17 | B21: 17 | C21: 1 | D21: 2 | E21: 7 | F21: 225;236;244 | G21: 练气 | H21: 中期. | I21: 七重 | J21: 225 | K21: 236 | L21: 244 | M21: =ROUND([1]ResourceLevelConfig!$E21*[1]ResourceLevelConfig!$L21*0.1,0)*10 -> 6550 | N21: -1 | O21: -1 | P21: -1 | Q21: -1 | R21: -1 | S21: -1 | T21: =IF(G21=G22,0,CONCATENATE(80*ROUND(VLOOKUP(B21,[2]MonsterPowerUpConfig!$A:$I,9,FALSE),0),";",120*ROUND(VLOOKUP(B21,[2]MonsterPowerUpConfig!$A:$I,9,FALSE),0))) -> 0 | U21: =[3]主表!K19 -> 13.92402489 | V21: =[3]主表!L19 -> 1.34511908 | W21: =[3]主表!M19 -> 1.34511908 | X21: =[3]主表!N19 -> 0 | Y21: =[3]主表!$G19 -> 285 | Z21: =[3]升级!$H19 -> 1000 | AA21: =MAX(1,ROUND(100/(24*3600)*VLOOKUP(B21,[1]ResourceLevelConfig!$A:$E,5,FALSE),2)) -> 1.35 | AB21: -1 | AC21: 2 | AD21: 1 | AE21: 1 | AF21: 280 | AJ21: 1 | AK21: 1 | AL21: 17
A22: 18 | B22: 18 | C22: 1 | D22: 2 | E22: 8 | F22: 225;236;245 | G22: 练气 | H22: 中期. | I22: 八重 | J22: 225 | K22: 236 | L22: 245 | M22: =ROUND([1]ResourceLevelConfig!$E22*[1]ResourceLevelConfig!$L22*0.1,0)*10 -> 6780 | N22: -1 | O22: -1 | P22: -1 | Q22: -1 | R22: -1 | S22: -1 | T22: =IF(G22=G23,0,CONCATENATE(80*ROUND(VLOOKUP(B22,[2]MonsterPowerUpConfig!$A:$I,9,FALSE),0),";",120*ROUND(VLOOKUP(B22,[2]MonsterPowerUpConfig!$A:$I,9,FALSE),0))) -> 0 | U22: =[3]主表!K20 -> 14.56800103 | V22: =[3]主表!L20 -> 1.363280647 | W22: =[3]主表!M20 -> 1.363280647 | X22: =[3]主表!N20 -> 0 | Y22: =[3]主表!$G20 -> 289 | Z22: =[3]升级!$H20 -> 1000 | AA22: =MAX(1,ROUND(100/(24*3600)*VLOOKUP(B22,[1]ResourceLevelConfig!$A:$E,5,FALSE),2)) -> 1.38 | AB22: -1 | AC22: 2 | AD22: 1 | AE22: 1 | AF22: 290 | AJ22: 1 | AK22: 1 | AL22: 18
A23: 19 | B23: 19 | C23: 1 | D23: 2 | E23: 9 | F23: 225;236;246 | G23: 练气 | H23: 中期. | I23: 九重 | J23: 225 | K23: 236 | L23: 246 | M23: =ROUND([1]ResourceLevelConfig!$E23*[1]ResourceLevelConfig!$L23*0.1,0)*10 -> 6960 | N23: -1 | O23: -1 | P23: -1 | Q23: -1 | R23: -1 | S23: -1 | T23: =IF(G23=G24,0,CONCATENATE(80*ROUND(VLOOKUP(B23,[2]MonsterPowerUpConfig!$A:$I,9,FALSE),0),";",120*ROUND(VLOOKUP(B23,[2]MonsterPowerUpConfig!$A:$I,9,FALSE),0))) -> 0 | U23: =[3]主表!K21 -> 15.22682854 | V23: =[3]主表!L21 -> 1.381687428 | W23: =[3]主表!M21 -> 1.381687428 | X23: =[3]主表!N21 -> 0 | Y23: =[3]主表!$G21 -> 293 | Z23: =[3]升级!$H21 -> 1000 | AA23: =MAX(1,ROUND(100/(24*3600)*VLOOKUP(B23,[1]ResourceLevelConfig!$A:$E,5,FALSE),2)) -> 1.39 | AB23: -1 | AC23: 2 | AD23: 1 | AE23: 1 | AF23: 300 | AJ23: 1 | AK23: 1 | AL23: 19
A24: 20 | B24: 20 | C24: 1 | D24: 2 | E24: 10 | F24: 225;236;247 | G24: 练气 | H24: 中期. | I24: 十重 | J24: 225 | K24: 236 | L24: 247 | M24: =ROUND([1]ResourceLevelConfig!$E24*[1]ResourceLevelConfig!$L24*0.1,0)*10 -> 7140 | N24: 100004 | O24: =AM24 -> 85 | P24: =AN24 -> 1201 | Q24: =AO24 -> 1 | R24: =_xlfn.TEXTJOIN(";",1,AP24,AR24,AT24,AV24) -> 1202;1201;1201;1201 | S24: =_xlfn.TEXTJOIN(";",1,AQ24,AS24,AU24,AW24) -> 1;1;1;1 | T24: =IF(G24=G25,0,CONCATENATE(80*ROUND(VLOOKUP(B24,[2]MonsterPowerUpConfig!$A:$I,9,FALSE),0),";",120*ROUND(VLOOKUP(B24,[2]MonsterPowerUpConfig!$A:$I,9,FALSE),0))) -> 0 | U24: =[3]主表!K22 -> 15.90079106 | V24: =[3]主表!L22 -> 1.400342734 | W24: =[3]主表!M22 -> 1.400342734 | X24: =[3]主表!N22 -> 0 | Y24: =[3]主表!$G22 -> 298 | Z24: =[3]升级!$H22 -> 1000 | AA24: =MAX(1,ROUND(100/(24*3600)*VLOOKUP(B24,[1]ResourceLevelConfig!$A:$E,5,FALSE),2)) -> 1.4 | AB24: 20 | AC24: 2 | AD24: 1 | AE24: 1 | AF24: 310 | AJ24: 1 | AK24: 1 | AL24: 20 | AM24: 85 | AN24: 1201 | AO24: 1 | AP24: 1202 | AQ24: 1 | AR24: 1201 | AS24: 1 | AT24: 1201 | AU24: 1 | AV24: 1201 | AW24: 1 | AX24: =VLOOKUP(AN24,[4]ItemConfig!$A:$AC,29,FALSE)*AO24+AM24 -> 95 | AY24: =VLOOKUP(AP24,[4]ItemConfig!$A:$AC,29,FALSE)*AQ24 -> 15 | AZ24: =VLOOKUP(AR24,[4]ItemConfig!$A:$AC,29,FALSE)*AS24 -> 10 | BA24: =VLOOKUP(AT24,[4]ItemConfig!$A:$AC,29,FALSE)*AU24 -> 10 | BB24: =VLOOKUP(AV24,[4]ItemConfig!$A:$AC,29,FALSE)*AW24 -> 10 | BC24: =CONCATENATE(AX24," + ",SUM(AY24:BB24)) -> 95 + 45
A25: 21 | B25: 21 | C25: 1 | D25: 3 | E25: 1 | F25: 225;237;238 | G25: 练气 | H25: 后期. | I25: 一重 | J25: 225 | K25: 237 | L25: 238 | M25: =ROUND([1]ResourceLevelConfig!$E25*[1]ResourceLevelConfig!$L25*0.1,0)*10 -> 7320 | N25: -1 | O25: -1 | P25: -1 | Q25: -1 | R25: -1 | S25: -1 | T25: =IF(G25=G26,0,CONCATENATE(80*ROUND(VLOOKUP(B25,[2]MonsterPowerUpConfig!$A:$I,9,FALSE),0),";",120*ROUND(VLOOKUP(B25,[2]MonsterPowerUpConfig!$A:$I,9,FALSE),0))) -> 0 | U25: =[3]主表!K23 -> 18.0060799 | V25: =[3]主表!L23 -> 1.540377008 | W25: =[3]主表!M23 -> 1.540377008 | X25: =[3]主表!N23 -> 0 | Y25: =[3]主表!$G23 -> 346 | Z25: =[3]升级!$H23 -> 1000 | AA25: =MAX(1,ROUND(100/(24*3600)*VLOOKUP(B25,[1]ResourceLevelConfig!$A:$E,5,FALSE),2)) -> 1.41 | AB25: -1 | AC25: 3 | AD25: 1 | AE25: 1 | AF25: 320 | AJ25: 1 | AK25: 1 | AL25: 21
A26: 22 | B26: 22 | C26: 1 | D26: 3 | E26: 2 | F26: 225;237;239 | G26: 练气 | H26: 后期. | I26: 二重 | J26: 225 | K26: 237 | L26: 239 | M26: =ROUND([1]ResourceLevelConfig!$E26*[1]ResourceLevelConfig!$L26*0.1,0)*10 -> 7500 | N26: -1 | O26: -1 | P26: -1 | Q26: -1 | R26: -1 | S26: -1 | T26: =IF(G26=G27,0,CONCATENATE(80*ROUND(VLOOKUP(B26,[2]MonsterPowerUpConfig!$A:$I,9,FALSE),0),";",120*ROUND(VLOOKUP(B26,[2]MonsterPowerUpConfig!$A:$I,9,FALSE),0))) -> 0 | U26: =[3]主表!K24 -> 18.77136092 | V26: =[3]主表!L24 -> 1.561174914 | W26: =[3]主表!M24 -> 1.561174914 | X26: =[3]主表!N24 -> 0 | Y26: =[3]主表!$G24 -> 351 | Z26: =[3]升级!$H24 -> 1000 | AA26: =MAX(1,ROUND(100/(24*3600)*VLOOKUP(B26,[1]ResourceLevelConfig!$A:$E,5,FALSE),2)) -> 1.42 | AB26: -1 | AC26: =AC25 -> 3 | AD26: =AD25 -> 1 | AE26: =AE25 -> 1 | AF26: 330 | AJ26: 1 | AK26: 1 | AL26: 22
A27: 23 | B27: 23 | C27: 1 | D27: 3 | E27: 3 | F27: 225;237;240 | G27: 练气 | H27: 后期. | I27: 三重 | J27: 225 | K27: 237 | L27: 240 | M27: =ROUND([1]ResourceLevelConfig!$E27*[1]ResourceLevelConfig!$L27*0.1,0)*10 -> 7750 | N27: -1 | O27: -1 | P27: -1 | Q27: -1 | R27: -1 | S27: -1 | T27: =IF(G27=G28,0,CONCATENATE(80*ROUND(VLOOKUP(B27,[2]MonsterPowerUpConfig!$A:$I,9,FALSE),0),";",120*ROUND(VLOOKUP(B27,[2]MonsterPowerUpConfig!$A:$I,9,FALSE),0))) -> 0 | U27: =[3]主表!K25 -> 19.55402483 | V27: =[3]主表!L25 -> 1.58225363 | W27: =[3]主表!M25 -> 1.58225363 | X27: =[3]主表!N25 -> 0 | Y27: =[3]主表!$G25 -> 356 | Z27: =[3]升级!$H25 -> 1000 | AA27: =MAX(1,ROUND(100/(24*3600)*VLOOKUP(B27,[1]ResourceLevelConfig!$A:$E,5,FALSE),2)) -> 1.45 | AB27: -1 | AC27: =AC26 -> 3 | AD27: 1 | AE27: 1 | AF27: 340 | AJ27: 1 | AK27: 1 | AL27: 23
A28: 24 | B28: 24 | C28: 1 | D28: 3 | E28: 4 | F28: 225;237;241 | G28: 练气 | H28: 后期. | I28: 四重 | J28: 225 | K28: 237 | L28: 241 | M28: =ROUND([1]ResourceLevelConfig!$E28*[1]ResourceLevelConfig!$L28*0.1,0)*10 -> 7940 | N28: -1 | O28: -1 | P28: -1 | Q28: -1 | R28: -1 | S28: -1 | T28: =IF(G28=G29,0,CONCATENATE(80*ROUND(VLOOKUP(B28,[2]MonsterPowerUpConfig!$A:$I,9,FALSE),0),";",120*ROUND(VLOOKUP(B28,[2]MonsterPowerUpConfig!$A:$I,9,FALSE),0))) -> 0 | U28: =[3]主表!K26 -> 20.35440152 | V28: =[3]主表!L26 -> 1.603616947 | W28: =[3]主表!M26 -> 1.603616947 | X28: =[3]主表!N26 -> 0 | Y28: =[3]主表!$G26 -> 361 | Z28: =[3]升级!$H26 -> 1000 | AA28: =MAX(1,ROUND(100/(24*3600)*VLOOKUP(B28,[1]ResourceLevelConfig!$A:$E,5,FALSE),2)) -> 1.46 | AB28: -1 | AC28: 3 | AD28: 1 | AE28: 1 | AF28: 350 | AJ28: 1 | AK28: 1 | AL28: 24
A29: 25 | B29: 25 | C29: 1 | D29: 3 | E29: 5 | F29: 225;237;242 | G29: 练气 | H29: 后期. | I29: 五重 | J29: 225 | K29: 237 | L29: 242 | M29: =ROUND([1]ResourceLevelConfig!$E29*[1]ResourceLevelConfig!$L29*0.1,0)*10 -> 8130 | N29: -1 | O29: -1 | P29: -1 | Q29: -1 | R29: -1 | S29: -1 | T29: =IF(G29=G30,0,CONCATENATE(80*ROUND(VLOOKUP(B29,[2]MonsterPowerUpConfig!$A:$I,9,FALSE),0),";",120*ROUND(VLOOKUP(B29,[2]MonsterPowerUpConfig!$A:$I,9,FALSE),0))) -> 0 | U29: =[3]主表!K27 -> 21.17282661 | V29: =[3]主表!L27 -> 1.625268708 | W29: =[3]主表!M27 -> 1.625268708 | X29: =[3]主表!N27 -> 0 | Y29: =[3]主表!$G27 -> 367 | Z29: =[3]升级!$H27 -> 1000 | AA29: =MAX(1,ROUND(100/(24*3600)*VLOOKUP(B29,[1]ResourceLevelConfig!$A:$E,5,FALSE),2)) -> 1.47 | AB29: -1 | AC29: 3 | AD29: 1 | AE29: 1 | AF29: 360 | AJ29: 1 | AK29: 1 | AL29: 25
A30: 26 | B30: 26 | C30: 1 | D30: 3 | E30: 6 | F30: 225;237;243 | G30: 练气 | H30: 后期. | I30: 六重 | J30: 225 | K30: 237 | L30: 243 | M30: =ROUND([1]ResourceLevelConfig!$E30*[1]ResourceLevelConfig!$L30*0.1,0)*10 -> 8320 | N30: -1 | O30: -1 | P30: -1 | Q30: -1 | R30: -1 | S30: -1 | T30: =IF(G30=G31,0,CONCATENATE(80*ROUND(VLOOKUP(B30,[2]MonsterPowerUpConfig!$A:$I,9,FALSE),0),";",120*ROUND(VLOOKUP(B30,[2]MonsterPowerUpConfig!$A:$I,9,FALSE),0))) -> 0 | U30: =[3]主表!K28 -> 22.00964159 | V30: =[3]主表!L28 -> 1.647212807 | W30: =[3]主表!M28 -> 1.647212807 | X30: =[3]主表!N28 -> 0 | Y30: =[3]主表!$G28 -> 372 | Z30: =[3]升级!$H28 -> 1000 | AA30: =MAX(1,ROUND(100/(24*3600)*VLOOKUP(B30,[1]ResourceLevelConfig!$A:$E,5,FALSE),2)) -> 1.48 | AB30: -1 | AC30: 3 | AD30: 1 | AE30: 1 | AF30: 370 | AJ30: 1 | AK30: 1 | AL30: 26
A31: 27 | B31: 27 | C31: 1 | D31: 3 | E31: 7 | F31: 225;237;244 | G31: 练气 | H31: 后期. | I31: 七重 | J31: 225 | K31: 237 | L31: 244 | M31: =ROUND([1]ResourceLevelConfig!$E31*[1]ResourceLevelConfig!$L31*0.1,0)*10 -> 8580 | N31: -1 | O31: -1 | P31: -1 | Q31: -1 | R31: -1 | S31: -1 | T31: =IF(G31=G32,0,CONCATENATE(80*ROUND(VLOOKUP(B31,[2]MonsterPowerUpConfig!$A:$I,9,FALSE),0),";",120*ROUND(VLOOKUP(B31,[2]MonsterPowerUpConfig!$A:$I,9,FALSE),0))) -> 0 | U31: =[3]主表!K29 -> 22.86519383 | V31: =[3]主表!L29 -> 1.669453191 | W31: =[3]主表!M29 -> 1.669453191 | X31: =[3]主表!N29 -> 0 | Y31: =[3]主表!$G29 -> 378 | Z31: =[3]升级!$H29 -> 1000 | AA31: =MAX(1,ROUND(100/(24*3600)*VLOOKUP(B31,[1]ResourceLevelConfig!$A:$E,5,FALSE),2)) -> 1.5 | AB31: -1 | AC31: 3 | AD31: 1 | AE31: 1 | AF31: 380 | AJ31: 1 | AK31: 1 | AL31: 27
A32: 28 | B32: 28 | C32: 1 | D32: 3 | E32: 8 | F32: 225;237;245 | G32: 练气 | H32: 后期. | I32: 八重 | J32: 225 | K32: 237 | L32: 245 | M32: =ROUND([1]ResourceLevelConfig!$E32*[1]ResourceLevelConfig!$L32*0.1,0)*10 -> 8780 | N32: -1 | O32: -1 | P32: -1 | Q32: -1 | R32: -1 | S32: -1 | T32: =IF(G32=G33,0,CONCATENATE(80*ROUND(VLOOKUP(B32,[2]MonsterPowerUpConfig!$A:$I,9,FALSE),0),";",120*ROUND(VLOOKUP(B32,[2]MonsterPowerUpConfig!$A:$I,9,FALSE),0))) -> 0 | U32: =[3]主表!K30 -> 23.73983677 | V32: =[3]主表!L30 -> 1.691993862 | W32: =[3]主表!M30 -> 1.691993862 | X32: =[3]主表!N30 -> 0 | Y32: =[3]主表!$G30 -> 384 | Z32: =[3]升级!$H30 -> 1000 | AA32: =MAX(1,ROUND(100/(24*3600)*VLOOKUP(B32,[1]ResourceLevelConfig!$A:$E,5,FALSE),2)) -> 1.52 | AB32: -1 | AC32: 3 | AD32: 1 | AE32: 1 | AF32: 390 | AJ32: 1 | AK32: 1 | AL32: 28
A33: 29 | B33: 29 | C33: 1 | D33: 3 | E33: 9 | F33: 225;237;246 | G33: 练气 | H33: 后期. | I33: 九重 | J33: 225 | K33: 237 | L33: 246 | M33: =ROUND([1]ResourceLevelConfig!$E33*[1]ResourceLevelConfig!$L33*0.1,0)*10 -> 8980 | N33: -1 | O33: -1 | P33: -1 | Q33: -1 | R33: -1 | S33: -1 | T33: =IF(G33=G34,0,CONCATENATE(80*ROUND(VLOOKUP(B33,[2]MonsterPowerUpConfig!$A:$I,9,FALSE),0),";",120*ROUND(VLOOKUP(B33,[2]MonsterPowerUpConfig!$A:$I,9,FALSE),0))) -> 0 | U33: =[3]主表!K31 -> 24.63392996 | V33: =[3]主表!L31 -> 1.714838873 | W33: =[3]主表!M31 -> 1.714838873 | X33: =[3]主表!N31 -> 0 | Y33: =[3]主表!$G31 -> 390 | Z33: =[3]升级!$H31 -> 1000 | AA33: =MAX(1,ROUND(100/(24*3600)*VLOOKUP(B33,[1]ResourceLevelConfig!$A:$E,5,FALSE),2)) -> 1.53 | AB33: -1 | AC33: 3 | AD33: 1 | AE33: 1 | AF33: 400 | AJ33: 1 | AK33: 1 | AL33: 29
A34: 30 | B34: 30 | C34: 1 | D34: 3 | E34: 10 | F34: 225;237;247 | G34: 练气 | H34: 后期. | I34: 十重 | J34: 225 | K34: 237 | L34: 247 | M34: =ROUND([1]ResourceLevelConfig!$E34*[1]ResourceLevelConfig!$L34*0.1,0)*10 -> 9250 | N34: 100004 | O34: =AM34 -> 45 | P34: =AN34 -> 1301 | Q34: =AO34 -> 1 | R34: =_xlfn.TEXTJOIN(";",1,AP34,AR34,AT34,AV34) -> 1204;1203;1202;1201 | S34: =_xlfn.TEXTJOIN(";",1,AQ34,AS34,AU34,AW34) -> 1;1;1;1 | T34: =CONCATENATE(ROUND(0.6*VLOOKUP(A34,[3]主表!$A:$P,16,FALSE)*[5]HeroModelConfig!$Q$5,0),";",ROUND(0.9*VLOOKUP(A34,[3]主表!$A:$P,16,FALSE)*[5]HeroModelConfig!$Q$5,0),";",INT(A34/30)+1) -> 1746;2619;2 | U34: =[3]主表!K32 -> 25.54783918 | V34: =[3]主表!L32 -> 1.737992333 | W34: =[3]主表!M32 -> 1.737992333 | X34: =[3]主表!N32 -> 0 | Y34: =[3]主表!$G32 -> 396 | Z34: =[3]升级!$H32 -> 1000 | AA34: =MAX(1,ROUND(100/(24*3600)*VLOOKUP(B34,[1]ResourceLevelConfig!$A:$E,5,FALSE),2)) -> 1.55 | AB34: 50 | AC34: 3 | AD34: 1 | AE34: 1 | AF34: 410 | AJ34: 1 | AK34: 1 | AL34: 30 | AM34: 45 | AN34: 1301 | AO34: 1 | AP34: 1204 | AQ34: 1 | AR34: 1203 | AS34: 1 | AT34: 1202 | AU34: 1 | AV34: 1201 | AW34: 1 | AX34: =VLOOKUP(AN34,[4]ItemConfig!$A:$AC,29,FALSE)*AO34+AM34 -> 90 | AY34: =VLOOKUP(AP34,[4]ItemConfig!$A:$AC,29,FALSE)*AQ34 -> 40 | AZ34: =VLOOKUP(AR34,[4]ItemConfig!$A:$AC,29,FALSE)*AS34 -> 25 | BA34: =VLOOKUP(AT34,[4]ItemConfig!$A:$AC,29,FALSE)*AU34 -> 15 | BB34: =VLOOKUP(AV34,[4]ItemConfig!$A:$AC,29,FALSE)*AW34 -> 10 | BC34: =CONCATENATE(AX34," + ",SUM(AY34:BB34)) -> 90 + 90
A35: 31 | B35: 31 | C35: 2 | D35: 4 | E35: 1 | F35: 226;235;238 | G35: 筑基 | H35: 前期. | I35: 一重 | J35: 226 | K35: 235 | L35: 238 | M35: =ROUND([1]ResourceLevelConfig!$E35*[1]ResourceLevelConfig!$L35*0.1,0)*10 -> 9450 | N35: -1 | O35: -1 | P35: -1 | Q35: -1 | R35: =IF(I35=10,"1001;1002;1004",-1) -> -1 | S35: =IF(R35=-1,-1,"100;200;300") -> -1 | T35: =IF(G35=G36,0,CONCATENATE("1;1")) -> 0 | U35: =[3]主表!K33 -> 33.96788889 | V35: =[3]主表!L33 -> 2.259390033 | W35: =[3]主表!M33 -> 2.259390033 | X35: =[3]主表!N33 -> 0 | Y35: =[3]主表!$G33 -> 521 | Z35: =[3]升级!$H33 -> 1100 | AA35: =MAX(1,ROUND(100/(24*3600)*VLOOKUP(B35,[1]ResourceLevelConfig!$A:$E,5,FALSE),2)) -> 1.56 | AB35: -1 | AC35: 3 | AD35: 2 | AE35: 1 | AF35: 420 | AJ35: 1 | AK35: 1 | AL35: 31
A36: 32 | B36: 32 | C36: 2 | D36: 4 | E36: 2 | F36: 226;235;239 | G36: 筑基 | H36: 前期. | I36: 二重 | J36: 226 | K36: 235 | L36: 239 | M36: =ROUND([1]ResourceLevelConfig!$E36*[1]ResourceLevelConfig!$L36*0.1,0)*10 -> 9660 | N36: -1 | O36: -1 | P36: -1 | Q36: -1 | R36: =IF(I36=10,"1001;1002;1004",-1) -> -1 | S36: =IF(R36=-1,-1,"100;200;300") -> -1 | T36: 0 | U36: =[3]主表!K34 -> 35.19241876 | V36: =[3]主表!L34 -> 2.289895929 | W36: =[3]主表!M34 -> 2.289895929 | X36: =[3]主表!N34 -> 0 | Y36: =[3]主表!$G34 -> 530 | Z36: =[3]升级!$H34 -> 1100 | AA36: =MAX(1,ROUND(100/(24*3600)*VLOOKUP(B36,[1]ResourceLevelConfig!$A:$E,5,FALSE),2)) -> 1.57 | AB36: -1 | AC36: =AC35 -> 3 | AD36: =AD35 -> 2 | AE36: =AE35 -> 1 | AF36: 430 | AJ36: 1 | AK36: 1 | AL36: 32
A37: 33 | B37: 33 | C37: 2 | D37: 4 | E37: 3 | F37: 226;235;240 | G37: 筑基 | H37: 前期. | I37: 三重 | J37: 226 | K37: 235 | L37: 240 | M37: =ROUND([1]ResourceLevelConfig!$E37*[1]ResourceLevelConfig!$L37*0.1,0)*10 -> 9940 | N37: -1 | O37: -1 | P37: -1 | Q37: -1 | R37: -1 | S37: -1 | T37: 0 | U37: =[3]主表!K35 -> 36.44382309 | V37: =[3]主表!L35 -> 2.320813711 | W37: =[3]主表!M35 -> 2.320813711 | X37: =[3]主表!N35 -> 0 | Y37: =[3]主表!$G35 -> 538 | Z37: =[3]升级!$H35 -> 1100 | AA37: =MAX(1,ROUND(100/(24*3600)*VLOOKUP(B37,[1]ResourceLevelConfig!$A:$E,5,FALSE),2)) -> 1.6 | AB37: -1 | AC37: =AC36 -> 3 | AD37: 2 | AE37: 1 | AF37: 440 | AJ37: 1 | AK37: 1 | AL37: 33
A38: 34 | B38: 34 | C38: 2 | D38: 4 | E38: 4 | F38: 226;235;241 | G38: 筑基 | H38: 前期. | I38: 四重 | J38: 226 | K38: 235 | L38: 241 | M38: =ROUND([1]ResourceLevelConfig!$E38*[1]ResourceLevelConfig!$L38*0.1,0)*10 -> 10150 | N38: -1 | O38: -1 | P38: -1 | Q38: -1 | R38: -1 | S38: -1 | T38: 0 | U38: =[3]主表!K36 -> 37.72260435 | V38: =[3]主表!L36 -> 2.35214894 | W38: =[3]主表!M36 -> 2.35214894 | X38: =[3]主表!N36 -> 0 | Y38: =[3]主表!$G36 -> 546 | Z38: =[3]升级!$H36 -> 1100 | AA38: =MAX(1,ROUND(100/(24*3600)*VLOOKUP(B38,[1]ResourceLevelConfig!$A:$E,5,FALSE),2)) -> 1.61 | AB38: -1 | AC38: 3 | AD38: 2 | AE38: 1 | AF38: 450 | AJ38: 1 | AK38: 1 | AL38: 34
A39: 35 | B39: 35 | C39: 2 | D39: 4 | E39: 5 | F39: 226;235;242 | G39: 筑基 | H39: 前期. | I39: 五重 | J39: 226 | K39: 235 | L39: 242 | M39: =ROUND([1]ResourceLevelConfig!$E39*[1]ResourceLevelConfig!$L39*0.1,0)*10 -> 10430 | N39: -1 | O39: -1 | P39: -1 | Q39: -1 | R39: -1 | S39: -1 | T39: 0 | U39: =[3]主表!K37 -> 39.0292737 | V39: =[3]主表!L37 -> 2.383907251 | W39: =[3]主表!M37 -> 2.383907251 | X39: =[3]主表!N37 -> 0 | Y39: =[3]主表!$G37 -> 555 | Z39: =[3]升级!$H37 -> 1100 | AA39: =MAX(1,ROUND(100/(24*3600)*VLOOKUP(B39,[1]ResourceLevelConfig!$A:$E,5,FALSE),2)) -> 1.63 | AB39: -1 | AC39: 3 | AD39: 2 | AE39: 1 | AF39: 460 | AJ39: 1 | AK39: 1 | AL39: 35
A40: 36 | B40: 36 | C40: 2 | D40: 4 | E40: 6 | F40: 226;235;243 | G40: 筑基 | H40: 前期. | I40: 六重 | J40: 226 | K40: 235 | L40: 243 | M40: =ROUND([1]ResourceLevelConfig!$E40*[1]ResourceLevelConfig!$L40*0.1,0)*10 -> 10650 | N40: -1 | O40: -1 | P40: -1 | Q40: -1 | R40: -1 | S40: -1 | T40: 0 | U40: =[3]主表!K38 -> 40.3643511 | V40: =[3]主表!L38 -> 2.416094358 | W40: =[3]主表!M38 -> 2.416094358 | X40: =[3]主表!N38 -> 0 | Y40: =[3]主表!$G38 -> 564 | Z40: =[3]升级!$H38 -> 1100 | AA40: =MAX(1,ROUND(100/(24*3600)*VLOOKUP(B40,[1]ResourceLevelConfig!$A:$E,5,FALSE),2)) -> 1.64 | AB40: -1 | AC40: 3 | AD40: 2 | AE40: 1 | AF40: 470 | AJ40: 1 | AK40: 1 | AL40: 36
A41: 37 | B41: 37 | C41: 2 | D41: 4 | E41: 7 | F41: 226;235;244 | G41: 筑基 | H41: 前期. | I41: 七重 | J41: 226 | K41: 235 | L41: 244 | M41: =ROUND([1]ResourceLevelConfig!$E41*[1]ResourceLevelConfig!$L41*0.1,0)*10 -> 10870 | N41: -1 | O41: -1 | P41: -1 | Q41: -1 | R41: -1 | S41: -1 | T41: 0 | U41: =[3]主表!K39 -> 41.72836545 | V41: =[3]主表!L39 -> 2.448716049 | W41: =[3]主表!M39 -> 2.448716049 | X41: =[3]主表!N39 -> 0 | Y41: =[3]主表!$G39 -> 573 | Z41: =[3]升级!$H39 -> 1100 | AA41: =MAX(1,ROUND(100/(24*3600)*VLOOKUP(B41,[1]ResourceLevelConfig!$A:$E,5,FALSE),2)) -> 1.66 | AB41: -1 | AC41: 3 | AD41: 2 | AE41: 1 | AF41: 480 | AJ41: 1 | AK41: 1 | AL41: 37
A42: 38 | B42: 38 | C42: 2 | D42: 4 | E42: 8 | F42: 226;235;245 | G42: 筑基 | H42: 前期. | I42: 八重 | J42: 226 | K42: 235 | L42: 245 | M42: =ROUND([1]ResourceLevelConfig!$E42*[1]ResourceLevelConfig!$L42*0.1,0)*10 -> 11170 | N42: -1 | O42: -1 | P42: -1 | Q42: -1 | R42: -1 | S42: -1 | T42: 0 | U42: =[3]主表!K40 -> 43.12185478 | V42: =[3]主表!L40 -> 2.481778193 | W42: =[3]主表!M40 -> 2.481778193 | X42: =[3]主表!N40 -> 0 | Y42: =[3]主表!$G40 -> 583 | Z42: =[3]升级!$H40 -> 1100 | AA42: =MAX(1,ROUND(100/(24*3600)*VLOOKUP(B42,[1]ResourceLevelConfig!$A:$E,5,FALSE),2)) -> 1.68 | AB42: -1 | AC42: 3 | AD42: 2 | AE42: 1 | AF42: 490 | AJ42: 1 | AK42: 1 | AL42: 38
A43: 39 | B43: 39 | C43: 2 | D43: 4 | E43: 9 | F43: 226;235;246 | G43: 筑基 | H43: 前期. | I43: 九重 | J43: 226 | K43: 235 | L43: 246 | M43: =ROUND([1]ResourceLevelConfig!$E43*[1]ResourceLevelConfig!$L43*0.1,0)*10 -> 11390 | N43: -1 | O43: -1 | P43: -1 | Q43: -1 | R43: -1 | S43: -1 | T43: 0 | U43: =[3]主表!K41 -> 44.54536637 | V43: =[3]主表!L41 -> 2.515286736 | W43: =[3]主表!M41 -> 2.515286736 | X43: =[3]主表!N41 -> 0 | Y43: =[3]主表!$G41 -> 592 | Z43: =[3]升级!$H41 -> 1100 | AA43: =MAX(1,ROUND(100/(24*3600)*VLOOKUP(B43,[1]ResourceLevelConfig!$A:$E,5,FALSE),2)) -> 1.69 | AB43: -1 | AC43: 3 | AD43: 2 | AE43: 1 | AF43: 500 | AJ43: 1 | AK43: 1 | AL43: 39
A44: 40 | B44: 40 | C44: 2 | D44: 4 | E44: 10 | F44: 226;235;247 | G44: 筑基 | H44: 前期. | I44: 十重 | J44: 226 | K44: 235 | L44: 247 | M44: =ROUND([1]ResourceLevelConfig!$E44*[1]ResourceLevelConfig!$L44*0.1,0)*10 -> 11690 | N44: 100004 | O44: =AM44 -> 70 | P44: =AN44 -> 1202 | Q44: =AO44 -> 1 | R44: =_xlfn.TEXTJOIN(";",1,AP44,AR44,AT44,AV44) -> 1202;1201;1201;1201 | S44: =_xlfn.TEXTJOIN(";",1,AQ44,AS44,AU44,AW44) -> 1;1;1;1 | T44: 0 | U44: =[3]主表!K42 -> 45.99945688 | V44: =[3]主表!L42 -> 2.549247706 | W44: =[3]主表!M42 -> 2.549247706 | X44: =[3]主表!N42 -> 0 | Y44: =[3]主表!$G42 -> 602 | Z44: =[3]升级!$H42 -> 1100 | AA44: =MAX(1,ROUND(100/(24*3600)*VLOOKUP(B44,[1]ResourceLevelConfig!$A:$E,5,FALSE),2)) -> 1.71 | AB44: 20 | AC44: 3 | AD44: 2 | AE44: 1 | AF44: 510 | AJ44: 1 | AK44: 1 | AL44: 40 | AM44: 70 | AN44: 1202 | AO44: 1 | AP44: 1202 | AQ44: 1 | AR44: 1201 | AS44: 1 | AT44: 1201 | AU44: 1 | AV44: 1201 | AW44: 1 | AX44: =VLOOKUP(AN44,[4]ItemConfig!$A:$AC,29,FALSE)*AO44+AM44 -> 85 | AY44: =VLOOKUP(AP44,[4]ItemConfig!$A:$AC,29,FALSE)*AQ44 -> 15 | AZ44: =VLOOKUP(AR44,[4]ItemConfig!$A:$AC,29,FALSE)*AS44 -> 10 | BA44: =VLOOKUP(AT44,[4]ItemConfig!$A:$AC,29,FALSE)*AU44 -> 10 | BB44: =VLOOKUP(AV44,[4]ItemConfig!$A:$AC,29,FALSE)*AW44 -> 10 | BC44: =CONCATENATE(AX44," + ",SUM(AY44:BB44)) -> 85 + 45
A45: 41 | B45: 41 | C45: 2 | D45: 5 | E45: 1 | F45: 226;236;238 | G45: 筑基 | H45: 中期. | I45: 一重 | J45: 226 | K45: 236 | L45: 238 | M45: =ROUND([1]ResourceLevelConfig!$E45*[1]ResourceLevelConfig!$L45*0.1,0)*10 -> 11920 | N45: -1 | O45: -1 | P45: -1 | Q45: -1 | R45: =IF(I45=10,"1001;1002;1004",-1) -> -1 | S45: -1 | T45: 0 | U45: =[3]主表!K43 -> 51.53731386 | V45: =[3]主表!L43 -> 2.804172477 | W45: =[3]主表!M43 -> 2.804172477 | X45: =[3]主表!N43 -> 0 | Y45: =[3]主表!$G43 -> 672 | Z45: =[3]升级!$H43 -> 1100 | AA45: =MAX(1,ROUND(100/(24*3600)*VLOOKUP(B45,[1]ResourceLevelConfig!$A:$E,5,FALSE),2)) -> 1.72 | AB45: -1 | AC45: 3 | AD45: 2 | AE45: 2 | AF45: 520 | AJ45: 1 | AK45: 1 | AL45: 41
A46: 42 | B46: 42 | C46: 2 | D46: 5 | E46: 2 | F46: 226;236;239 | G46: 筑基 | H46: 中期. | I46: 二重 | J46: 226 | K46: 236 | L46: 239 | M46: =ROUND([1]ResourceLevelConfig!$E46*[1]ResourceLevelConfig!$L46*0.1,0)*10 -> 12230 | N46: -1 | O46: -1 | P46: -1 | Q46: -1 | R46: -1 | S46: -1 | T46: 0 | U46: =[3]主表!K44 -> 53.18373663 | V46: =[3]主表!L44 -> 2.842033932 | W46: =[3]主表!M44 -> 2.842033932 | X46: =[3]主表!N44 -> 0 | Y46: =[3]主表!$G44 -> 683 | Z46: =[3]升级!$H44 -> 1100 | AA46: =MAX(1,ROUND(100/(24*3600)*VLOOKUP(B46,[1]ResourceLevelConfig!$A:$E,5,FALSE),2)) -> 1.75 | AB46: -1 | AC46: =AC45 -> 3 | AD46: =AD45 -> 2 | AE46: =AE45 -> 2 | AF46: 530 | AJ46: 1 | AK46: 1 | AL46: 42
A47: 43 | B47: 43 | C47: 2 | D47: 5 | E47: 3 | F47: 226;236;240 | G47: 筑基 | H47: 中期. | I47: 三重 | J47: 226 | K47: 236 | L47: 240 | M47: =ROUND([1]ResourceLevelConfig!$E47*[1]ResourceLevelConfig!$L47*0.1,0)*10 -> 12460 | N47: -1 | O47: -1 | P47: -1 | Q47: -1 | R47: -1 | S47: -1 | T47: 0 | U47: =[3]主表!K45 -> 54.86522362 | V47: =[3]主表!L45 -> 2.880406587 | W47: =[3]主表!M45 -> 2.880406587 | X47: =[3]主表!N45 -> 0 | Y47: =[3]主表!$G45 -> 695 | Z47: =[3]升级!$H45 -> 1100 | AA47: =MAX(1,ROUND(100/(24*3600)*VLOOKUP(B47,[1]ResourceLevelConfig!$A:$E,5,FALSE),2)) -> 1.76 | AB47: -1 | AC47: =AC46 -> 3 | AD47: =AD46 -> 2 | AE47: =AE46 -> 2 | AF47: 540 | AJ47: 1 | AK47: 1 | AL47: 43
A48: 44 | B48: 44 | C48: 2 | D48: 5 | E48: 4 | F48: 226;236;241 | G48: 筑基 | H48: 中期. | I48: 四重 | J48: 226 | K48: 236 | L48: 241 | M48: =ROUND([1]ResourceLevelConfig!$E48*[1]ResourceLevelConfig!$L48*0.1,0)*10 -> 12780 | N48: -1 | O48: -1 | P48: -1 | Q48: -1 | R48: -1 | S48: -1 | T48: 0 | U48: =[3]主表!K46 -> 56.58242154 | V48: =[3]主表!L46 -> 2.919297342 | W48: =[3]主表!M46 -> 2.919297342 | X48: =[3]主表!N46 -> 0 | Y48: =[3]主表!$G46 -> 707 | Z48: =[3]升级!$H46 -> 1100 | AA48: =MAX(1,ROUND(100/(24*3600)*VLOOKUP(B48,[1]ResourceLevelConfig!$A:$E,5,FALSE),2)) -> 1.78 | AB48: -1 | AC48: 3 | AD48: 2 | AE48: 2 | AF48: 550 | AJ48: 1 | AK48: 1 | AL48: 44
A49: 45 | B49: 45 | C49: 2 | D49: 5 | E49: 5 | F49: 226;236;242 | G49: 筑基 | H49: 中期. | I49: 五重 | J49: 226 | K49: 236 | L49: 242 | M49: =ROUND([1]ResourceLevelConfig!$E49*[1]ResourceLevelConfig!$L49*0.1,0)*10 -> 13020 | N49: -1 | O49: -1 | P49: -1 | Q49: -1 | R49: -1 | S49: -1 | T49: 0 | U49: =[3]主表!K47 -> 58.33598819 | V49: =[3]主表!L47 -> 2.958713194 | W49: =[3]主表!M47 -> 2.958713194 | X49: =[3]主表!N47 -> 0 | Y49: =[3]主表!$G47 -> 719 | Z49: =[3]升级!$H47 -> 1100 | AA49: =MAX(1,ROUND(100/(24*3600)*VLOOKUP(B49,[1]ResourceLevelConfig!$A:$E,5,FALSE),2)) -> 1.79 | AB49: -1 | AC49: 3 | AD49: 2 | AE49: 2 | AF49: 560 | AJ49: 1 | AK49: 1 | AL49: 45
A50: 46 | B50: 46 | C50: 2 | D50: 5 | E50: 6 | F50: 226;236;243 | G50: 筑基 | H50: 中期. | I50: 六重 | J50: 226 | K50: 236 | L50: 243 | M50: =ROUND([1]ResourceLevelConfig!$E50*[1]ResourceLevelConfig!$L50*0.1,0)*10 -> 13350 | N50: -1 | O50: -1 | P50: -1 | Q50: -1 | R50: -1 | S50: -1 | T50: 0 | U50: =[3]主表!K48 -> 60.12659262 | V50: =[3]主表!L48 -> 2.998661232 | W50: =[3]主表!M48 -> 2.998661232 | X50: =[3]主表!N48 -> 0 | Y50: =[3]主表!$G48 -> 731 | Z50: =[3]升级!$H48 -> 1100 | AA50: =MAX(1,ROUND(100/(24*3600)*VLOOKUP(B50,[1]ResourceLevelConfig!$A:$E,5,FALSE),2)) -> 1.82 | AB50: -1 | AC50: 3 | AD50: 2 | AE50: 2 | AF50: 570 | AJ50: 1 | AK50: 1 | AL50: 46
A51: 47 | B51: 47 | C51: 2 | D51: 5 | E51: 7 | F51: 226;236;244 | G51: 筑基 | H51: 中期. | I51: 七重 | J51: 226 | K51: 236 | L51: 244 | M51: =ROUND([1]ResourceLevelConfig!$E51*[1]ResourceLevelConfig!$L51*0.1,0)*10 -> 13670 | N51: -1 | O51: -1 | P51: -1 | Q51: -1 | R51: -1 | S51: -1 | T51: 0 | U51: =[3]主表!K49 -> 61.95491529 | V51: =[3]主表!L49 -> 3.039148641 | W51: =[3]主表!M49 -> 3.039148641 | X51: =[3]主表!N49 -> 0 | Y51: =[3]主表!$G49 -> 743 | Z51: =[3]升级!$H49 -> 1100 | AA51: =MAX(1,ROUND(100/(24*3600)*VLOOKUP(B51,[1]ResourceLevelConfig!$A:$E,5,FALSE),2)) -> 1.84 | AB51: -1 | AC51: 3 | AD51: 2 | AE51: 2 | AF51: 580 | AJ51: 1 | AK51: 1 | AL51: 47
A52: 48 | B52: 48 | C52: 2 | D52: 5 | E52: 8 | F52: 226;236;245 | G52: 筑基 | H52: 中期. | I52: 八重 | J52: 226 | K52: 236 | L52: 245 | M52: =ROUND([1]ResourceLevelConfig!$E52*[1]ResourceLevelConfig!$L52*0.1,0)*10 -> 13920 | N52: -1 | O52: -1 | P52: -1 | Q52: -1 | R52: -1 | S52: -1 | T52: 0 | U52: =[3]主表!K50 -> 63.82164833 | V52: =[3]主表!L50 -> 3.080182705 | W52: =[3]主表!M50 -> 3.080182705 | X52: =[3]主表!N50 -> 0 | Y52: =[3]主表!$G50 -> 756 | Z52: =[3]升级!$H50 -> 1100 | AA52: =MAX(1,ROUND(100/(24*3600)*VLOOKUP(B52,[1]ResourceLevelConfig!$A:$E,5,FALSE),2)) -> 1.85 | AB52: -1 | AC52: 3 | AD52: 2 | AE52: 2 | AF52: 590 | AJ52: 1 | AK52: 1 | AL52: 48
A53: 49 | B53: 49 | C53: 2 | D53: 5 | E53: 9 | F53: 226;236;246 | G53: 筑基 | H53: 中期. | I53: 九重 | J53: 226 | K53: 236 | L53: 246 | M53: =ROUND([1]ResourceLevelConfig!$E53*[1]ResourceLevelConfig!$L53*0.1,0)*10 -> 14260 | N53: -1 | O53: -1 | P53: -1 | Q53: -1 | R53: -1 | S53: -1 | T53: 0 | U53: =[3]主表!K51 -> 65.72749564 | V53: =[3]主表!L51 -> 3.121770803 | W53: =[3]主表!M51 -> 3.121770803 | X53: =[3]主表!N51 -> 0 | Y53: =[3]主表!$G51 -> 769 | Z53: =[3]升级!$H51 -> 1100 | AA53: =MAX(1,ROUND(100/(24*3600)*VLOOKUP(B53,[1]ResourceLevelConfig!$A:$E,5,FALSE),2)) -> 1.88 | AB53: -1 | AC53: 3 | AD53: 2 | AE53: 2 | AF53: 600 | AJ53: 1 | AK53: 1 | AL53: 49
A54: 50 | B54: 50 | C54: 2 | D54: 5 | E54: 10 | F54: 226;236;247 | G54: 筑基 | H54: 中期. | I54: 十重 | J54: 226 | K54: 236 | L54: 247 | M54: =ROUND([1]ResourceLevelConfig!$E54*[1]ResourceLevelConfig!$L54*0.1,0)*10 -> 14510 | N54: 100004 | O54: =AM54 -> 65 | P54: =AN54 -> 1202 | Q54: =AO54 -> 1 | R54: =_xlfn.TEXTJOIN(";",1,AP54,AR54,AT54,AV54) -> 1202;1201;1201;1201 | S54: =_xlfn.TEXTJOIN(";",1,AQ54,AS54,AU54,AW54) -> 1;1;1;1 | T54: 0 | U54: =[3]主表!K52 -> 67.67317315 | V54: =[3]主表!L52 -> 3.163920417 | W54: =[3]主表!M52 -> 3.163920417 | X54: =[3]主表!N52 -> 0 | Y54: =[3]主表!$G52 -> 783 | Z54: =[3]升级!$H52 -> 1100 | AA54: =MAX(1,ROUND(100/(24*3600)*VLOOKUP(B54,[1]ResourceLevelConfig!$A:$E,5,FALSE),2)) -> 1.89 | AB54: 20 | AC54: 3 | AD54: 2 | AE54: 2 | AF54: 610 | AJ54: 1 | AK54: 1 | AL54: 50 | AM54: 65 | AN54: 1202 | AO54: 1 | AP54: 1202 | AQ54: 1 | AR54: 1201 | AS54: 1 | AT54: 1201 | AU54: 1 | AV54: 1201 | AW54: 1 | AX54: =VLOOKUP(AN54,[4]ItemConfig!$A:$AC,29,FALSE)*AO54+AM54 -> 80 | AY54: =VLOOKUP(AP54,[4]ItemConfig!$A:$AC,29,FALSE)*AQ54 -> 15 | AZ54: =VLOOKUP(AR54,[4]ItemConfig!$A:$AC,29,FALSE)*AS54 -> 10 | BA54: =VLOOKUP(AT54,[4]ItemConfig!$A:$AC,29,FALSE)*AU54 -> 10 | BB54: =VLOOKUP(AV54,[4]ItemConfig!$A:$AC,29,FALSE)*AW54 -> 10 | BC54: =CONCATENATE(AX54," + ",SUM(AY54:BB54)) -> 80 + 45
A55: 51 | B55: 51 | C55: 2 | D55: 6 | E55: 1 | F55: 226;237;238 | G55: 筑基 | H55: 后期. | I55: 一重 | J55: 226 | K55: 237 | L55: 238 | M55: =ROUND([1]ResourceLevelConfig!$E55*[1]ResourceLevelConfig!$L55*0.1,0)*10 -> 14850 | N55: -1 | O55: -1 | P55: -1 | Q55: -1 | R55: =IF(I55=10,"1001;1002;1004",-1) -> -1 | S55: -1 | T55: 0 | U55: =[3]主表!K53 -> 75.60455023 | V55: =[3]主表!L53 -> 3.480312458 | W55: =[3]主表!M53 -> 3.480312458 | X55: =[3]主表!N53 -> 0 | Y55: =[3]主表!$G53 -> 914 | Z55: =[3]升级!$H53 -> 1100 | AA55: =MAX(1,ROUND(100/(24*3600)*VLOOKUP(B55,[1]ResourceLevelConfig!$A:$E,5,FALSE),2)) -> 1.91 | AB55: -1 | AC55: 4 | AD55: 2 | AE55: 2 | AF55: 620 | AJ55: 1 | AK55: 1 | AL55: 51
A56: 52 | B56: 52 | C56: 2 | D56: 6 | E56: 2 | F56: 226;237;239 | G56: 筑基 | H56: 后期. | I56: 二重 | J56: 226 | K56: 237 | L56: 239 | M56: =ROUND([1]ResourceLevelConfig!$E56*[1]ResourceLevelConfig!$L56*0.1,0)*10 -> 15200 | N56: -1 | O56: -1 | P56: -1 | Q56: -1 | R56: -1 | S56: -1 | T56: 0 | U56: =[3]主表!K54 -> 77.80512658 | V56: =[3]主表!L54 -> 3.52730304 | W56: =[3]主表!M54 -> 3.52730304 | X56: =[3]主表!N54 -> 0 | Y56: =[3]主表!$G54 -> 930 | Z56: =[3]升级!$H54 -> 1100 | AA56: =MAX(1,ROUND(100/(24*3600)*VLOOKUP(B56,[1]ResourceLevelConfig!$A:$E,5,FALSE),2)) -> 1.93 | AB56: -1 | AC56: =AC55 -> 4 | AD56: =AD55 -> 2 | AE56: =AE55 -> 2 | AF56: 630 | AJ56: 1 | AK56: 1 | AL56: 52
A57: 53 | B57: 53 | C57: 2 | D57: 6 | E57: 3 | F57: 226;237;240 | G57: 筑基 | H57: 后期. | I57: 三重 | J57: 226 | K57: 237 | L57: 240 | M57: =ROUND([1]ResourceLevelConfig!$E57*[1]ResourceLevelConfig!$L57*0.1,0)*10 -> 15460 | N57: -1 | O57: -1 | P57: -1 | Q57: -1 | R57: -1 | S57: -1 | T57: 0 | U57: =[3]主表!K55 -> 80.05134389 | V57: =[3]主表!L55 -> 3.57492808 | W57: =[3]主表!M55 -> 3.57492808 | X57: =[3]主表!N55 -> 0 | Y57: =[3]主表!$G55 -> 946 | Z57: =[3]升级!$H55 -> 1100 | AA57: =MAX(1,ROUND(100/(24*3600)*VLOOKUP(B57,[1]ResourceLevelConfig!$A:$E,5,FALSE),2)) -> 1.94 | AB57: -1 | AC57: 4 | AD57: 2 | AE57: 2 | AF57: 640 | AJ57: 1 | AK57: 1 | AL57: 53
A58: 54 | B58: 54 | C58: 2 | D58: 6 | E58: 4 | F58: 226;237;241 | G58: 筑基 | H58: 后期. | I58: 四重 | J58: 226 | K58: 237 | L58: 241 | M58: =ROUND([1]ResourceLevelConfig!$E58*[1]ResourceLevelConfig!$L58*0.1,0)*10 -> 15810 | N58: -1 | O58: -1 | P58: -1 | Q58: -1 | R58: -1 | S58: -1 | T58: 0 | U58: =[3]主表!K56 -> 82.34403345 | V58: =[3]主表!L56 -> 3.623196146 | W58: =[3]主表!M56 -> 3.623196146 | X58: =[3]主表!N56 -> 0 | Y58: =[3]主表!$G56 -> 962 | Z58: =[3]升级!$H56 -> 1100 | AA58: =MAX(1,ROUND(100/(24*3600)*VLOOKUP(B58,[1]ResourceLevelConfig!$A:$E,5,FALSE),2)) -> 1.97 | AB58: -1 | AC58: 4 | AD58: 2 | AE58: 2 | AF58: 650 | AJ58: 1 | AK58: 1 | AL58: 54
A59: 55 | B59: 55 | C59: 2 | D59: 6 | E59: 5 | F59: 226;237;242 | G59: 筑基 | H59: 后期. | I59: 五重 | J59: 226 | K59: 237 | L59: 242 | M59: =ROUND([1]ResourceLevelConfig!$E59*[1]ResourceLevelConfig!$L59*0.1,0)*10 -> 16170 | N59: -1 | O59: -1 | P59: -1 | Q59: -1 | R59: -1 | S59: -1 | T59: 0 | U59: =[3]主表!K57 -> 84.6840407 | V59: =[3]主表!L57 -> 3.672115918 | W59: =[3]主表!M57 -> 3.672115918 | X59: =[3]主表!N57 -> 0 | Y59: =[3]主表!$G57 -> 979 | Z59: =[3]升级!$H57 -> 1100 | AA59: =MAX(1,ROUND(100/(24*3600)*VLOOKUP(B59,[1]ResourceLevelConfig!$A:$E,5,FALSE),2)) -> 1.99 | AB59: -1 | AC59: 4 | AD59: 2 | AE59: 2 | AF59: 660 | AJ59: 1 | AK59: 1 | AL59: 55
A60: 56 | B60: 56 | C60: 2 | D60: 6 | E60: 6 | F60: 226;237;243 | G60: 筑基 | H60: 后期. | I60: 六重 | J60: 226 | K60: 237 | L60: 243 | M60: =ROUND([1]ResourceLevelConfig!$E60*[1]ResourceLevelConfig!$L60*0.1,0)*10 -> 16530 | N60: -1 | O60: -1 | P60: -1 | Q60: -1 | R60: -1 | S60: -1 | T60: 0 | U60: =[3]主表!K58 -> 87.07222544 | V60: =[3]主表!L58 -> 3.721696197 | W60: =[3]主表!M58 -> 3.721696197 | X60: =[3]主表!N58 -> 0 | Y60: =[3]主表!$G58 -> 996 | Z60: =[3]升级!$H58 -> 1100 | AA60: =MAX(1,ROUND(100/(24*3600)*VLOOKUP(B60,[1]ResourceLevelConfig!$A:$E,5,FALSE),2)) -> 2.01 | AB60: -1 | AC60: 4 | AD60: 2 | AE60: 2 | AF60: 670 | AJ60: 1 | AK60: 1 | AL60: 56
A61: 57 | B61: 57 | C61: 2 | D61: 6 | E61: 7 | F61: 226;237;244 | G61: 筑基 | H61: 后期. | I61: 七重 | J61: 226 | K61: 237 | L61: 244 | M61: =ROUND([1]ResourceLevelConfig!$E61*[1]ResourceLevelConfig!$L61*0.1,0)*10 -> 16800 | N61: -1 | O61: -1 | P61: -1 | Q61: -1 | R61: -1 | S61: -1 | T61: 0 | U61: =[3]主表!K59 -> 89.50946205 | V61: =[3]主表!L59 -> 3.771945901 | W61: =[3]主表!M59 -> 3.771945901 | X61: =[3]主表!N59 -> 0 | Y61: =[3]主表!$G59 -> 1013 | Z61: =[3]升级!$H59 -> 1100 | AA61: =MAX(1,ROUND(100/(24*3600)*VLOOKUP(B61,[1]ResourceLevelConfig!$A:$E,5,FALSE),2)) -> 2.03 | AB61: -1 | AC61: 4 | AD61: 2 | AE61: 2 | AF61: 680 | AJ61: 1 | AK61: 1 | AL61: 57
A62: 58 | B62: 58 | C62: 2 | D62: 6 | E62: 8 | F62: 226;237;245 | G62: 筑基 | H62: 后期. | I62: 八重 | J62: 226 | K62: 237 | L62: 245 | M62: =ROUND([1]ResourceLevelConfig!$E62*[1]ResourceLevelConfig!$L62*0.1,0)*10 -> 17170 | N62: -1 | O62: -1 | P62: -1 | Q62: -1 | R62: -1 | S62: -1 | T62: 0 | U62: =[3]主表!K60 -> 91.99663975 | V62: =[3]主表!L60 -> 3.822874067 | W62: =[3]主表!M60 -> 3.822874067 | X62: =[3]主表!N60 -> 0 | Y62: =[3]主表!$G60 -> 1031 | Z62: =[3]升级!$H60 -> 1100 | AA62: =MAX(1,ROUND(100/(24*3600)*VLOOKUP(B62,[1]ResourceLevelConfig!$A:$E,5,FALSE),2)) -> 2.05 | AB62: -1 | AC62: 4 | AD62: 2 | AE62: 2 | AF62: 690 | AJ62: 1 | AK62: 1 | AL62: 58
A63: 59 | B63: 59 | C63: 2 | D63: 6 | E63: 9 | F63: 226;237;246 | G63: 筑基 | H63: 后期. | I63: 九重 | J63: 226 | K63: 237 | L63: 246 | M63: =ROUND([1]ResourceLevelConfig!$E63*[1]ResourceLevelConfig!$L63*0.1,0)*10 -> 17540 | N63: -1 | O63: -1 | P63: -1 | Q63: -1 | R63: -1 | S63: -1 | T63: 0 | U63: =[3]主表!K61 -> 94.53466283 | V63: =[3]主表!L61 -> 3.874489857 | W63: =[3]主表!M61 -> 3.874489857 | X63: =[3]主表!N61 -> 0 | Y63: =[3]主表!$G61 -> 1049 | Z63: =[3]升级!$H61 -> 1100 | AA63: =MAX(1,ROUND(100/(24*3600)*VLOOKUP(B63,[1]ResourceLevelConfig!$A:$E,5,FALSE),2)) -> 2.07 | AB63: -1 | AC63: 4 | AD63: 2 | AE63: 2 | AF63: 700 | AJ63: 1 | AK63: 1 | AL63: 59
A64: 60 | B64: 60 | C64: 2 | D64: 6 | E64: 10 | F64: 226;237;247 | G64: 筑基 | H64: 后期. | I64: 十重 | J64: 226 | K64: 237 | L64: 247 | M64: =ROUND([1]ResourceLevelConfig!$E64*[1]ResourceLevelConfig!$L64*0.1,0)*10 -> 17920 | N64: 100004 | O64: =AM64 -> 35 | P64: =AN64 -> 1302 | Q64: =AO64 -> 1 | R64: =_xlfn.TEXTJOIN(";",1,AP64,AR64,AT64,AV64) -> 1204;1203;1202;1201 | S64: =_xlfn.TEXTJOIN(";",1,AQ64,AS64,AU64,AW64) -> 1;1;1;1 | T64: =CONCATENATE(ROUND(0.6*VLOOKUP(A64,[3]主表!$A:$P,16,FALSE)*[5]HeroModelConfig!$Q$5,0),";",ROUND(0.9*VLOOKUP(A64,[3]主表!$A:$P,16,FALSE)*[5]HeroModelConfig!$Q$5,0),";",INT(A64/30)+1) -> 7925;11887;3 | U64: =[3]主表!K62 -> 97.12445088 | V64: =[3]主表!L62 -> 3.926802554 | W64: =[3]主表!M62 -> 3.926802554 | X64: =[3]主表!N62 -> 0 | Y64: =[3]主表!$G62 -> 1068 | Z64: =[3]升级!$H62 -> 1100 | AA64: =MAX(1,ROUND(100/(24*3600)*VLOOKUP(B64,[1]ResourceLevelConfig!$A:$E,5,FALSE),2)) -> 2.09 | AB64: 50 | AC64: 4 | AD64: 2 | AE64: 2 | AF64: 710 | AJ64: 1 | AK64: 1 | AL64: 60 | AM64: 35 | AN64: 1302 | AO64: 1 | AP64: 1204 | AQ64: 1 | AR64: 1203 | AS64: 1 | AT64: 1202 | AU64: 1 | AV64: 1201 | AW64: 1 | AX64: =VLOOKUP(AN64,[4]ItemConfig!$A:$AC,29,FALSE)*AO64+AM64 -> 75 | AY64: =VLOOKUP(AP64,[4]ItemConfig!$A:$AC,29,FALSE)*AQ64 -> 40 | AZ64: =VLOOKUP(AR64,[4]ItemConfig!$A:$AC,29,FALSE)*AS64 -> 25 | BA64: =VLOOKUP(AT64,[4]ItemConfig!$A:$AC,29,FALSE)*AU64 -> 15 | BB64: =VLOOKUP(AV64,[4]ItemConfig!$A:$AC,29,FALSE)*AW64 -> 10 | BC64: =CONCATENATE(AX64," + ",SUM(AY64:BB64)) -> 75 + 90
A65: 61 | B65: 61 | C65: 3 | D65: 7 | E65: 1 | F65: 227;235;238 | G65: 结丹 | H65: 前期. | I65: 一重 | J65: 227 | K65: 235 | L65: 238 | M65: =ROUND([1]ResourceLevelConfig!$E65*[1]ResourceLevelConfig!$L65*0.1,0)*10 -> 18200 | N65: -1 | O65: -1 | P65: -1 | Q65: -1 | R65: =IF(I65=10,"1001;1002;1004",-1) -> -1 | S65: =IF(R65=-1,-1,"100;200;300") -> -1 | T65: 0 | U65: =[3]主表!K63 -> 127.9692026 | V65: =[3]主表!L63 -> 5.10484332 | W65: =[3]主表!M63 -> 5.10484332 | X65: =[3]主表!N63 -> 0 | Y65: =[3]主表!$G63 -> 1418 | Z65: =[3]升级!$H63 -> 1200 | AA65: =MAX(1,ROUND(100/(24*3600)*VLOOKUP(B65,[1]ResourceLevelConfig!$A:$E,5,FALSE),2)) -> 2.11 | AB65: -1 | AC65: 4 | AD65: 3 | AE65: 2 | AF65: 720 | AJ65: 1 | AK65: 2 | AL65: 61
A66: 62 | B66: 62 | C66: 3 | D66: 7 | E66: 2 | F66: 227;235;239 | G66: 结丹 | H66: 前期. | I66: 二重 | J66: 227 | K66: 235 | L66: 239 | M66: =ROUND([1]ResourceLevelConfig!$E66*[1]ResourceLevelConfig!$L66*0.1,0)*10 -> 18580 | N66: -1 | O66: -1 | P66: -1 | Q66: -1 | R66: =IF(I66=10,"1001;1002;1004",-1) -> -1 | S66: -1 | T66: 0 | U66: =[3]主表!K64 -> 131.4274905 | V66: =[3]主表!L64 -> 5.173768038 | W66: =[3]主表!M64 -> 5.173768038 | X66: =[3]主表!N64 -> 0 | Y66: =[3]主表!$G64 -> 1444 | Z66: =[3]升级!$H64 -> 1200 | AA66: =MAX(1,ROUND(100/(24*3600)*VLOOKUP(B66,[1]ResourceLevelConfig!$A:$E,5,FALSE),2)) -> 2.13 | AB66: -1 | AC66: =AC65 -> 4 | AD66: =AD65 -> 3 | AE66: 2 | AF66: 730 | AJ66: 1 | AK66: 2 | AL66: 62
A67: 63 | B67: 63 | C67: 3 | D67: 7 | E67: 3 | F67: 227;235;240 | G67: 结丹 | H67: 前期. | I67: 三重 | J67: 227 | K67: 235 | L67: 240 | M67: =ROUND([1]ResourceLevelConfig!$E67*[1]ResourceLevelConfig!$L67*0.1,0)*10 -> 18970 | N67: -1 | O67: -1 | P67: -1 | Q67: -1 | R67: -1 | S67: -1 | T67: 0 | U67: =[3]主表!K65 -> 134.9558361 | V67: =[3]主表!L65 -> 5.243623367 | W67: =[3]主表!M65 -> 5.243623367 | X67: =[3]主表!N65 -> 0 | Y67: =[3]主表!$G65 -> 1471 | Z67: =[3]升级!$H65 -> 1200 | AA67: =MAX(1,ROUND(100/(24*3600)*VLOOKUP(B67,[1]ResourceLevelConfig!$A:$E,5,FALSE),2)) -> 2.15 | AB67: -1 | AC67: =AC66 -> 4 | AD67: =AD66 -> 3 | AE67: =AE66 -> 2 | AF67: 740 | AJ67: 1 | AK67: 2 | AL67: 63
A68: 64 | B68: 64 | C68: 3 | D68: 7 | E68: 4 | F68: 227;235;241 | G68: 结丹 | H68: 前期. | I68: 四重 | J68: 227 | K68: 235 | L68: 241 | M68: =ROUND([1]ResourceLevelConfig!$E68*[1]ResourceLevelConfig!$L68*0.1,0)*10 -> 19360 | N68: -1 | O68: -1 | P68: -1 | Q68: -1 | R68: -1 | S68: -1 | T68: 0 | U68: =[3]主表!K66 -> 138.5555008 | V68: =[3]主表!L66 -> 5.31442187 | W68: =[3]主表!M66 -> 5.31442187 | X68: =[3]主表!N66 -> 0 | Y68: =[3]主表!$G66 -> 1498 | Z68: =[3]升级!$H66 -> 1200 | AA68: =MAX(1,ROUND(100/(24*3600)*VLOOKUP(B68,[1]ResourceLevelConfig!$A:$E,5,FALSE),2)) -> 2.18 | AB68: -1 | AC68: 4 | AD68: 3 | AE68: 2 | AF68: 750 | AJ68: 1 | AK68: 2 | AL68: 64
A69: 65 | B69: 65 | C69: 3 | D69: 7 | E69: 5 | F69: 227;235;242 | G69: 结丹 | H69: 前期. | I69: 五重 | J69: 227 | K69: 235 | L69: 242 | M69: =ROUND([1]ResourceLevelConfig!$E69*[1]ResourceLevelConfig!$L69*0.1,0)*10 -> 19760 | N69: -1 | O69: -1 | P69: -1 | Q69: -1 | R69: -1 | S69: -1 | T69: 0 | U69: =[3]主表!K67 -> 142.2277672 | V69: =[3]主表!L67 -> 5.386176282 | W69: =[3]主表!M67 -> 5.386176282 | X69: =[3]主表!N67 -> 0 | Y69: =[3]主表!$G67 -> 1526 | Z69: =[3]升级!$H67 -> 1200 | AA69: =MAX(1,ROUND(100/(24*3600)*VLOOKUP(B69,[1]ResourceLevelConfig!$A:$E,5,FALSE),2)) -> 2.2 | AB69: -1 | AC69: 4 | AD69: 3 | AE69: 2 | AF69: 760 | AJ69: 1 | AK69: 2 | AL69: 65
A70: 66 | B70: 66 | C70: 3 | D70: 7 | E70: 6 | F70: =_xlfn.TEXTJOIN(";",1,J70:L70) -> 227;235;243 | G70: 结丹 | H70: 前期. | I70: 六重 | J70: 227 | K70: 235 | L70: 243 | M70: =ROUND([1]ResourceLevelConfig!$E70*[1]ResourceLevelConfig!$L70*0.1,0)*10 -> 20160 | N70: =IF(E70=10,100004,-1) -> -1 | O70: =IF(N70=-1,-1,20) -> -1 | P70: -1 | Q70: -1 | R70: -1 | S70: =IF(R70=-1,-1,"100;200;300") -> -1 | T70: 0 | U70: =[3]主表!K68 -> 145.9739397 | V70: =[3]主表!L68 -> 5.45889951 | W70: =[3]主表!M68 -> 5.45889951 | X70: =[3]主表!N68 -> 0 | Y70: =[3]主表!$G68 -> 1557 | Z70: =[3]升级!$H68 -> 1200 | AA70: =MAX(1,ROUND(100/(24*3600)*VLOOKUP(B70,[1]ResourceLevelConfig!$A:$E,5,FALSE),2)) -> 2.22 | AB70: -1 | AC70: 4 | AD70: 3 | AE70: 2 | AF70: =MAX(AF69+10,ROUND(10^(B70*0.01+1.405),0)) -> 770 | AJ70: 1 | AK70: 2 | AL70: 66
A71: 67 | B71: 67 | C71: 3 | D71: 7 | E71: 7 | F71: 227;235;244 | G71: 结丹 | H71: 前期. | I71: 七重 | J71: 227 | K71: 235 | L71: 244 | M71: =ROUND([1]ResourceLevelConfig!$E71*[1]ResourceLevelConfig!$L71*0.1,0)*10 -> 20560 | N71: -1 | O71: -1 | P71: -1 | Q71: -1 | R71: -1 | S71: -1 | T71: 0 | U71: =[3]主表!K69 -> 149.7953445 | V71: =[3]主表!L69 -> 5.532604634 | W71: =[3]主表!M69 -> 5.532604634 | X71: =[3]主表!N69 -> 0 | Y71: =[3]主表!$G69 -> 1589 | Z71: =[3]升级!$H69 -> 1200 | AA71: =MAX(1,ROUND(100/(24*3600)*VLOOKUP(B71,[1]ResourceLevelConfig!$A:$E,5,FALSE),2)) -> 2.25 | AB71: -1 | AC71: 4 | AD71: 3 | AE71: 2 | AF71: 780 | AJ71: 1 | AK71: 2 | AL71: 67
A72: 68 | B72: 68 | C72: 3 | D72: 7 | E72: 8 | F72: 227;235;245 | G72: 结丹 | H72: 前期. | I72: 八重 | J72: 227 | K72: 235 | L72: 245 | M72: =ROUND([1]ResourceLevelConfig!$E72*[1]ResourceLevelConfig!$L72*0.1,0)*10 -> 20970 | N72: -1 | O72: -1 | P72: -1 | Q72: -1 | R72: -1 | S72: -1 | T72: 0 | U72: =[3]主表!K70 -> 153.6933302 | V72: =[3]主表!L70 -> 5.607304912 | W72: =[3]主表!M70 -> 5.607304912 | X72: =[3]主表!N70 -> 0 | Y72: =[3]主表!$G70 -> 1622 | Z72: =[3]升级!$H70 -> 1200 | AA72: =MAX(1,ROUND(100/(24*3600)*VLOOKUP(B72,[1]ResourceLevelConfig!$A:$E,5,FALSE),2)) -> 2.27 | AB72: -1 | AC72: 4 | AD72: 3 | AE72: 2 | AF72: 790 | AJ72: 1 | AK72: 2 | AL72: 68
A73: 69 | B73: 69 | C73: 3 | D73: 7 | E73: 9 | F73: 227;235;246 | G73: 结丹 | H73: 前期. | I73: 九重 | J73: 227 | K73: 235 | L73: 246 | M73: =ROUND([1]ResourceLevelConfig!$E73*[1]ResourceLevelConfig!$L73*0.1,0)*10 -> 21380 | N73: -1 | O73: -1 | P73: -1 | Q73: -1 | R73: -1 | S73: -1 | T73: 0 | U73: =[3]主表!K71 -> 157.6692682 | V73: =[3]主表!L71 -> 5.683013781 | W73: =[3]主表!M71 -> 5.683013781 | X73: =[3]主表!N71 -> 0 | Y73: =[3]主表!$G71 -> 1656 | Z73: =[3]升级!$H71 -> 1200 | AA73: =MAX(1,ROUND(100/(24*3600)*VLOOKUP(B73,[1]ResourceLevelConfig!$A:$E,5,FALSE),2)) -> 2.29 | AB73: -1 | AC73: 4 | AD73: 3 | AE73: 2 | AF73: 800 | AJ73: 1 | AK73: 2 | AL73: 69
A74: 70 | B74: 70 | C74: 3 | D74: 7 | E74: 10 | F74: 227;235;247 | G74: 结丹 | H74: 前期. | I74: 十重 | J74: 227 | K74: 235 | L74: 247 | M74: =ROUND([1]ResourceLevelConfig!$E74*[1]ResourceLevelConfig!$L74*0.1,0)*10 -> 21800 | N74: 100004 | O74: =AM74 -> 55 | P74: =AN74 -> 1202 | Q74: =AO74 -> 1 | R74: =_xlfn.TEXTJOIN(";",1,AP74,AR74,AT74,AV74) -> 1202;1202;1201;1201 | S74: =_xlfn.TEXTJOIN(";",1,AQ74,AS74,AU74,AW74) -> 1;1;1;1 | T74: 0 | U74: =[3]主表!K72 -> 161.7245529 | V74: =[3]主表!L72 -> 5.759744858 | W74: =[3]主表!M72 -> 5.759744858 | X74: =[3]主表!N72 -> 0 | Y74: =[3]主表!$G72 -> 1691 | Z74: =[3]升级!$H72 -> 1200 | AA74: =MAX(1,ROUND(100/(24*3600)*VLOOKUP(B74,[1]ResourceLevelConfig!$A:$E,5,FALSE),2)) -> 2.31 | AB74: 20 | AC74: 4 | AD74: 3 | AE74: 2 | AF74: 810 | AJ74: 1 | AK74: 2 | AL74: 70 | AM74: 55 | AN74: 1202 | AO74: 1 | AP74: 1202 | AQ74: 1 | AR74: 1202 | AS74: 1 | AT74: 1201 | AU74: 1 | AV74: 1201 | AW74: 1 | AX74: =VLOOKUP(AN74,[4]ItemConfig!$A:$AC,29,FALSE)*AO74+AM74 -> 70 | AY74: =VLOOKUP(AP74,[4]ItemConfig!$A:$AC,29,FALSE)*AQ74 -> 15 | AZ74: =VLOOKUP(AR74,[4]ItemConfig!$A:$AC,29,FALSE)*AS74 -> 15 | BA74: =VLOOKUP(AT74,[4]ItemConfig!$A:$AC,29,FALSE)*AU74 -> 10 | BB74: =VLOOKUP(AV74,[4]ItemConfig!$A:$AC,29,FALSE)*AW74 -> 10 | BC74: =CONCATENATE(AX74," + ",SUM(AY74:BB74)) -> 70 + 50
A75: 71 | B75: 71 | C75: 3 | D75: 8 | E75: 1 | F75: 227;236;238 | G75: 结丹 | H75: 中期. | I75: 一重 | J75: 227 | K75: 236 | L75: 238 | M75: =ROUND([1]ResourceLevelConfig!$E75*[1]ResourceLevelConfig!$L75*0.1,0)*10 -> 22220 | N75: -1 | O75: -1 | P75: -1 | Q75: -1 | R75: =IF(I75=10,"1001;1002;1004",-1) -> -1 | S75: -1 | T75: 0 | U75: =[3]主表!K73 -> 180.0161156 | V75: =[3]主表!L73 -> 6.335719344 | W75: =[3]主表!M73 -> 6.335719344 | X75: =[3]主表!N73 -> 0 | Y75: =[3]主表!$G73 -> 1905 | Z75: =[3]升级!$H73 -> 1200 | AA75: =MAX(1,ROUND(100/(24*3600)*VLOOKUP(B75,[1]ResourceLevelConfig!$A:$E,5,FALSE),2)) -> 2.34 | AB75: -1 | AC75: 4 | AD75: 3 | AE75: 3 | AF75: 820 | AJ75: 1 | AK75: 2 | AL75: 71
A76: 72 | B76: 72 | C76: 3 | D76: 8 | E76: 2 | F76: 227;236;239 | G76: 结丹 | H76: 中期. | I76: 二重 | J76: 227 | K76: 236 | L76: 239 | M76: =ROUND([1]ResourceLevelConfig!$E76*[1]ResourceLevelConfig!$L76*0.1,0)*10 -> 22640 | N76: -1 | O76: -1 | P76: -1 | Q76: -1 | R76: -1 | S76: -1 | T76: 0 | U76: =[3]主表!K74 -> 184.5943816 | V76: =[3]主表!L74 -> 6.421263139 | W76: =[3]主表!M74 -> 6.421263139 | X76: =[3]主表!N74 -> 0 | Y76: =[3]主表!$G74 -> 1945 | Z76: =[3]升级!$H74 -> 1200 | AA76: =MAX(1,ROUND(100/(24*3600)*VLOOKUP(B76,[1]ResourceLevelConfig!$A:$E,5,FALSE),2)) -> 2.36 | AB76: -1 | AC76: 4 | AD76: 3 | AE76: 3 | AF76: 830 | AJ76: 1 | AK76: 2 | AL76: 72
A77: 73 | B77: 73 | C77: 3 | D77: 8 | E77: 3 | F77: 227;236;240 | G77: 结丹 | H77: 中期. | I77: 三重 | J77: 227 | K77: 236 | L77: 240 | M77: =ROUND([1]ResourceLevelConfig!$E77*[1]ResourceLevelConfig!$L77*0.1,0)*10 -> 23070 | N77: -1 | O77: -1 | P77: -1 | Q77: -1 | R77: -1 | S77: -1 | T77: 0 | U77: =[3]主表!K75 -> 189.2634606 | V77: =[3]主表!L75 -> 6.507961932 | W77: =[3]主表!M75 -> 6.507961932 | X77: =[3]主表!N75 -> 0 | Y77: =[3]主表!$G75 -> 1986 | Z77: =[3]升级!$H75 -> 1200 | AA77: =MAX(1,ROUND(100/(24*3600)*VLOOKUP(B77,[1]ResourceLevelConfig!$A:$E,5,FALSE),2)) -> 2.38 | AB77: -1 | AC77: 4 | AD77: 3 | AE77: 3 | AF77: 840 | AJ77: 1 | AK77: 2 | AL77: 73
A78: 74 | B78: 74 | C78: 3 | D78: 8 | E78: 4 | F78: 227;236;241 | G78: 结丹 | H78: 中期. | I78: 四重 | J78: 227 | K78: 236 | L78: 241 | M78: =ROUND([1]ResourceLevelConfig!$E78*[1]ResourceLevelConfig!$L78*0.1,0)*10 -> 23500 | N78: -1 | O78: -1 | P78: -1 | Q78: -1 | R78: -1 | S78: -1 | T78: 0 | U78: =[3]主表!K76 -> 194.0249704 | V78: =[3]主表!L76 -> 6.595831317 | W78: =[3]主表!M76 -> 6.595831317 | X78: =[3]主表!N76 -> 0 | Y78: =[3]主表!$G76 -> 2028 | Z78: =[3]升级!$H76 -> 1200 | AA78: =MAX(1,ROUND(100/(24*3600)*VLOOKUP(B78,[1]ResourceLevelConfig!$A:$E,5,FALSE),2)) -> 2.41 | AB78: -1 | AC78: 4 | AD78: 3 | AE78: 3 | AF78: 850 | AJ78: 1 | AK78: 2 | AL78: 74
A79: 75 | B79: 75 | C79: 3 | D79: 8 | E79: 5 | F79: 227;236;242 | G79: 结丹 | H79: 中期. | I79: 五重 | J79: 227 | K79: 236 | L79: 242 | M79: =ROUND([1]ResourceLevelConfig!$E79*[1]ResourceLevelConfig!$L79*0.1,0)*10 -> 23940 | N79: -1 | O79: -1 | P79: -1 | Q79: -1 | R79: -1 | S79: -1 | T79: 0 | U79: =[3]主表!K77 -> 198.8805558 | V79: =[3]主表!L77 -> 6.6848871 | W79: =[3]主表!M77 -> 6.6848871 | X79: =[3]主表!N77 -> 0 | Y79: =[3]主表!$G77 -> 2071 | Z79: =[3]升级!$H77 -> 1200 | AA79: =MAX(1,ROUND(100/(24*3600)*VLOOKUP(B79,[1]ResourceLevelConfig!$A:$E,5,FALSE),2)) -> 2.43 | AB79: -1 | AC79: 4 | AD79: 3 | AE79: 3 | AF79: 860 | AJ79: 1 | AK79: 2 | AL79: 75
A80: 76 | B80: 76 | C80: 3 | D80: 8 | E80: 6 | F80: 227;236;243 | G80: 结丹 | H80: 中期. | I80: 六重 | J80: 227 | K80: 236 | L80: 243 | M80: =ROUND([1]ResourceLevelConfig!$E80*[1]ResourceLevelConfig!$L80*0.1,0)*10 -> 24380 | N80: -1 | O80: -1 | P80: -1 | Q80: -1 | R80: -1 | S80: -1 | T80: 0 | U80: =[3]主表!K78 -> 203.8318891 | V80: =[3]主表!L78 -> 6.775145298 | W80: =[3]主表!M78 -> 6.775145298 | X80: =[3]主表!N78 -> 0 | Y80: =[3]主表!$G78 -> 2115 | Z80: =[3]升级!$H78 -> 1200 | AA80: =MAX(1,ROUND(100/(24*3600)*VLOOKUP(B80,[1]ResourceLevelConfig!$A:$E,5,FALSE),2)) -> 2.45 | AB80: -1 | AC80: 4 | AD80: 3 | AE80: 3 | AF80: 870 | AJ80: 1 | AK80: 2 | AL80: 76
A81: 77 | B81: 77 | C81: 3 | D81: 8 | E81: 7 | F81: 227;236;244 | G81: 结丹 | H81: 中期. | I81: 七重 | J81: 227 | K81: 236 | L81: 244 | M81: =ROUND([1]ResourceLevelConfig!$E81*[1]ResourceLevelConfig!$L81*0.1,0)*10 -> 24820 | N81: -1 | O81: -1 | P81: -1 | Q81: -1 | R81: -1 | S81: -1 | T81: 0 | U81: =[3]主表!K79 -> 208.8806707 | V81: =[3]主表!L79 -> 6.866622148 | W81: =[3]主表!M79 -> 6.866622148 | X81: =[3]主表!N79 -> 0 | Y81: =[3]主表!$G79 -> 2161 | Z81: =[3]升级!$H79 -> 1200 | AA81: =MAX(1,ROUND(100/(24*3600)*VLOOKUP(B81,[1]ResourceLevelConfig!$A:$E,5,FALSE),2)) -> 2.48 | AB81: -1 | AC81: 4 | AD81: 3 | AE81: 3 | AF81: 880 | AJ81: 1 | AK81: 2 | AL81: 77
A82: 78 | B82: 78 | C82: 3 | D82: 8 | E82: 8 | F82: 227;236;245 | G82: 结丹 | H82: 中期. | I82: 八重 | J82: 227 | K82: 236 | L82: 245 | M82: =ROUND([1]ResourceLevelConfig!$E82*[1]ResourceLevelConfig!$L82*0.1,0)*10 -> 25270 | N82: -1 | O82: -1 | P82: -1 | Q82: -1 | R82: -1 | S82: -1 | T82: 0 | U82: =[3]主表!K80 -> 214.0286295 | V82: =[3]主表!L80 -> 6.959334102 | W82: =[3]主表!M80 -> 6.959334102 | X82: =[3]主表!N80 -> 0 | Y82: =[3]主表!$G80 -> 2207 | Z82: =[3]升级!$H80 -> 1200 | AA82: =MAX(1,ROUND(100/(24*3600)*VLOOKUP(B82,[1]ResourceLevelConfig!$A:$E,5,FALSE),2)) -> 2.5 | AB82: -1 | AC82: 4 | AD82: 3 | AE82: 3 | AF82: 890 | AJ82: 1 | AK82: 2 | AL82: 78
A83: 79 | B83: 79 | C83: 3 | D83: 8 | E83: 9 | F83: 227;236;246 | G83: 结丹 | H83: 中期. | I83: 九重 | J83: 227 | K83: 236 | L83: 246 | M83: =ROUND([1]ResourceLevelConfig!$E83*[1]ResourceLevelConfig!$L83*0.1,0)*10 -> 25720 | N83: -1 | O83: -1 | P83: -1 | Q83: -1 | R83: -1 | S83: -1 | T83: 0 | U83: =[3]主表!K81 -> 219.2775231 | V83: =[3]主表!L81 -> 7.053297836 | W83: =[3]主表!M81 -> 7.053297836 | X83: =[3]主表!N81 -> 0 | Y83: =[3]主表!$G81 -> 2255 | Z83: =[3]升级!$H81 -> 1200 | AA83: =MAX(1,ROUND(100/(24*3600)*VLOOKUP(B83,[1]ResourceLevelConfig!$A:$E,5,FALSE),2)) -> 2.52 | AB83: -1 | AC83: 4 | AD83: 3 | AE83: 3 | AF83: 900 | AJ83: 1 | AK83: 2 | AL83: 79
A84: 80 | B84: 80 | C84: 3 | D84: 8 | E84: 10 | F84: 227;236;247 | G84: 结丹 | H84: 中期. | I84: 十重 | J84: 227 | K84: 236 | L84: 247 | M84: =ROUND([1]ResourceLevelConfig!$E84*[1]ResourceLevelConfig!$L84*0.1,0)*10 -> 26300 | N84: 100004 | O84: =AM84 -> 50 | P84: =AN84 -> 1202 | Q84: =AO84 -> 1 | R84: =_xlfn.TEXTJOIN(";",1,AP84,AR84,AT84,AV84) -> 1202;1202;1201;1201 | S84: =_xlfn.TEXTJOIN(";",1,AQ84,AS84,AU84,AW84) -> 1;1;1;1 | T84: 0 | U84: =[3]主表!K82 -> 224.6291388 | V84: =[3]主表!L82 -> 7.148530253 | W84: =[3]主表!M82 -> 7.148530253 | X84: =[3]主表!N82 -> 0 | Y84: =[3]主表!$G82 -> 2304 | Z84: =[3]升级!$H82 -> 1200 | AA84: =MAX(1,ROUND(100/(24*3600)*VLOOKUP(B84,[1]ResourceLevelConfig!$A:$E,5,FALSE),2)) -> 2.56 | AB84: 20 | AC84: 4 | AD84: 3 | AE84: 3 | AF84: 910 | AJ84: 1 | AK84: 2 | AL84: 80 | AM84: 50 | AN84: 1202 | AO84: 1 | AP84: 1202 | AQ84: 1 | AR84: 1202 | AS84: 1 | AT84: 1201 | AU84: 1 | AV84: 1201 | AW84: 1 | AX84: =VLOOKUP(AN84,[4]ItemConfig!$A:$AC,29,FALSE)*AO84+AM84 -> 65 | AY84: =VLOOKUP(AP84,[4]ItemConfig!$A:$AC,29,FALSE)*AQ84 -> 15 | AZ84: =VLOOKUP(AR84,[4]ItemConfig!$A:$AC,29,FALSE)*AS84 -> 15 | BA84: =VLOOKUP(AT84,[4]ItemConfig!$A:$AC,29,FALSE)*AU84 -> 10 | BB84: =VLOOKUP(AV84,[4]ItemConfig!$A:$AC,29,FALSE)*AW84 -> 10 | BC84: =CONCATENATE(AX84," + ",SUM(AY84:BB84)) -> 65 + 50
A85: 81 | B85: 81 | C85: 3 | D85: 9 | E85: 1 | F85: 227;237;238 | G85: 结丹 | H85: 后期. | I85: 一重 | J85: 227 | K85: 237 | L85: 238 | M85: =ROUND([1]ResourceLevelConfig!$E85*[1]ResourceLevelConfig!$L85*0.1,0)*10 -> 26760 | N85: -1 | O85: -1 | P85: -1 | Q85: -1 | R85: =IF(I85=10,"1001;1002;1004",-1) -> -1 | S85: -1 | T85: 0 | U85: =[3]主表!K83 -> 249.7221177 | V85: =[3]主表!L83 -> 7.863383279 | W85: =[3]主表!M83 -> 7.863383279 | X85: =[3]主表!N83 -> 0 | Y85: =[3]主表!$G83 -> 2711 | Z85: =[3]升级!$H83 -> 1200 | AA85: =MAX(1,ROUND(100/(24*3600)*VLOOKUP(B85,[1]ResourceLevelConfig!$A:$E,5,FALSE),2)) -> 2.58 | AB85: -1 | AC85: 4 | AD85: 4 | AE85: 3 | AF85: 920 | AJ85: 1 | AK85: 2 | AL85: 81
A86: 82 | B86: 82 | C86: 3 | D86: 9 | E86: 2 | F86: 227;237;239 | G86: 结丹 | H86: 后期. | I86: 二重 | J86: 227 | K86: 237 | L86: 239 | M86: =ROUND([1]ResourceLevelConfig!$E86*[1]ResourceLevelConfig!$L86*0.1,0)*10 -> 27230 | N86: -1 | O86: -1 | P86: -1 | Q86: -1 | R86: -1 | S86: -1 | T86: 0 | U86: =[3]主表!K84 -> 255.7593986 | V86: =[3]主表!L84 -> 7.96955333 | W86: =[3]主表!M84 -> 7.96955333 | X86: =[3]主表!N84 -> 0 | Y86: =[3]主表!$G84 -> 2768 | Z86: =[3]升级!$H84 -> 1200 | AA86: =MAX(1,ROUND(100/(24*3600)*VLOOKUP(B86,[1]ResourceLevelConfig!$A:$E,5,FALSE),2)) -> 2.6 | AB86: -1 | AC86: 4 | AD86: 4 | AE86: 3 | AF86: 930 | AJ86: 1 | AK86: 2 | AL86: 82
A87: 83 | B87: 83 | C87: 3 | D87: 9 | E87: 3 | F87: 227;237;240 | G87: 结丹 | H87: 后期. | I87: 三重 | J87: 227 | K87: 237 | L87: 240 | M87: =ROUND([1]ResourceLevelConfig!$E87*[1]ResourceLevelConfig!$L87*0.1,0)*10 -> 27690 | N87: -1 | O87: -1 | P87: -1 | Q87: -1 | R87: -1 | S87: -1 | T87: 0 | U87: =[3]主表!K85 -> 261.9141839 | V87: =[3]主表!L85 -> 8.077156872 | W87: =[3]主表!M85 -> 8.077156872 | X87: =[3]主表!N85 -> 0 | Y87: =[3]主表!$G85 -> 2827 | Z87: =[3]升级!$H85 -> 1200 | AA87: =MAX(1,ROUND(100/(24*3600)*VLOOKUP(B87,[1]ResourceLevelConfig!$A:$E,5,FALSE),2)) -> 2.63 | AB87: -1 | AC87: 4 | AD87: 4 | AE87: 3 | AF87: 940 | AJ87: 1 | AK87: 2 | AL87: 83
A88: 84 | B88: 84 | C88: 3 | D88: 9 | E88: 4 | F88: 227;237;241 | G88: 结丹 | H88: 后期. | I88: 四重 | J88: 227 | K88: 237 | L88: 241 | M88: =ROUND([1]ResourceLevelConfig!$E88*[1]ResourceLevelConfig!$L88*0.1,0)*10 -> 28290 | N88: -1 | O88: -1 | P88: -1 | Q88: -1 | R88: -1 | S88: -1 | T88: 0 | U88: =[3]主表!K86 -> 268.1885462 | V88: =[3]主表!L86 -> 8.186213258 | W88: =[3]主表!M86 -> 8.186213258 | X88: =[3]主表!N86 -> 0 | Y88: =[3]主表!$G86 -> 2887 | Z88: =[3]升级!$H86 -> 1200 | AA88: =MAX(1,ROUND(100/(24*3600)*VLOOKUP(B88,[1]ResourceLevelConfig!$A:$E,5,FALSE),2)) -> 2.66 | AB88: -1 | AC88: 4 | AD88: 4 | AE88: 3 | AF88: 950 | AJ88: 1 | AK88: 2 | AL88: 84
A89: 85 | B89: 85 | C89: 3 | D89: 9 | E89: 5 | F89: 227;237;242 | G89: 结丹 | H89: 后期. | I89: 五重 | J89: 227 | K89: 237 | L89: 242 | M89: =ROUND([1]ResourceLevelConfig!$E89*[1]ResourceLevelConfig!$L89*0.1,0)*10 -> 28770 | N89: -1 | O89: -1 | P89: -1 | Q89: -1 | R89: -1 | S89: -1 | T89: 0 | U89: =[3]主表!K87 -> 274.5845925 | V89: =[3]主表!L87 -> 8.296742105 | W89: =[3]主表!M87 -> 8.296742105 | X89: =[3]主表!N87 -> 0 | Y89: =[3]主表!$G87 -> 2949 | Z89: =[3]升级!$H87 -> 1200 | AA89: =MAX(1,ROUND(100/(24*3600)*VLOOKUP(B89,[1]ResourceLevelConfig!$A:$E,5,FALSE),2)) -> 2.69 | AB89: -1 | AC89: 4 | AD89: 4 | AE89: 3 | AF89: 960 | AJ89: 1 | AK89: 2 | AL89: 85
A90: 86 | B90: 86 | C90: 3 | D90: 9 | E90: 6 | F90: 227;237;243 | G90: 结丹 | H90: 后期. | I90: 六重 | J90: 227 | K90: 237 | L90: 243 | M90: =ROUND([1]ResourceLevelConfig!$E90*[1]ResourceLevelConfig!$L90*0.1,0)*10 -> 29250 | N90: -1 | O90: -1 | P90: -1 | Q90: -1 | R90: -1 | S90: -1 | T90: 0 | U90: =[3]主表!K88 -> 281.1044647 | V90: =[3]主表!L88 -> 8.408763293 | W90: =[3]主表!M88 -> 8.408763293 | X90: =[3]主表!N88 -> 0 | Y90: =[3]主表!$G88 -> 3012 | Z90: =[3]升级!$H88 -> 1200 | AA90: =MAX(1,ROUND(100/(24*3600)*VLOOKUP(B90,[1]ResourceLevelConfig!$A:$E,5,FALSE),2)) -> 2.71 | AB90: -1 | AC90: 4 | AD90: 4 | AE90: 3 | AF90: 970 | AJ90: 1 | AK90: 2 | AL90: 86
A91: 87 | B91: 87 | C91: 3 | D91: 9 | E91: 7 | F91: 227;237;244 | G91: 结丹 | H91: 后期. | I91: 七重 | J91: 227 | K91: 237 | L91: 244 | M91: =ROUND([1]ResourceLevelConfig!$E91*[1]ResourceLevelConfig!$L91*0.1,0)*10 -> 29860 | N91: -1 | O91: -1 | P91: -1 | Q91: -1 | R91: -1 | S91: -1 | T91: 0 | U91: =[3]主表!K89 -> 287.7503408 | V91: =[3]主表!L89 -> 8.522296972 | W91: =[3]主表!M89 -> 8.522296972 | X91: =[3]主表!N89 -> 0 | Y91: =[3]主表!$G89 -> 3077 | Z91: =[3]升级!$H89 -> 1200 | AA91: =MAX(1,ROUND(100/(24*3600)*VLOOKUP(B91,[1]ResourceLevelConfig!$A:$E,5,FALSE),2)) -> 2.74 | AB91: -1 | AC91: 4 | AD91: 4 | AE91: 3 | AF91: 980 | AJ91: 1 | AK91: 2 | AL91: 87
A92: 88 | B92: 88 | C92: 3 | D92: 9 | E92: 8 | F92: 227;237;245 | G92: 结丹 | H92: 后期. | I92: 八重 | J92: 227 | K92: 237 | L92: 245 | M92: =ROUND([1]ResourceLevelConfig!$E92*[1]ResourceLevelConfig!$L92*0.1,0)*10 -> 30350 | N92: -1 | O92: -1 | P92: -1 | Q92: -1 | R92: -1 | S92: -1 | T92: 0 | U92: =[3]主表!K90 -> 294.5244346 | V92: =[3]主表!L90 -> 8.637363563 | W92: =[3]主表!M90 -> 8.637363563 | X92: =[3]主表!N90 -> 0 | Y92: =[3]主表!$G90 -> 3143 | Z92: =[3]升级!$H90 -> 1200 | AA92: =MAX(1,ROUND(100/(24*3600)*VLOOKUP(B92,[1]ResourceLevelConfig!$A:$E,5,FALSE),2)) -> 2.77 | AB92: -1 | AC92: 4 | AD92: 4 | AE92: 3 | AF92: 990 | AJ92: 1 | AK92: 2 | AL92: 88
A93: 89 | B93: 89 | C93: 3 | D93: 9 | E93: 9 | F93: 227;237;246 | G93: 结丹 | H93: 后期. | I93: 九重 | J93: 227 | K93: 237 | L93: 246 | M93: =ROUND([1]ResourceLevelConfig!$E93*[1]ResourceLevelConfig!$L93*0.1,0)*10 -> 30850 | N93: -1 | O93: -1 | P93: -1 | Q93: -1 | R93: -1 | S93: -1 | T93: 0 | U93: =[3]主表!K91 -> 301.4289971 | V93: =[3]主表!L91 -> 8.753983764 | W93: =[3]主表!M91 -> 8.753983764 | X93: =[3]主表!N91 -> 0 | Y93: =[3]主表!$G91 -> 3211 | Z93: =[3]升级!$H91 -> 1200 | AA93: =MAX(1,ROUND(100/(24*3600)*VLOOKUP(B93,[1]ResourceLevelConfig!$A:$E,5,FALSE),2)) -> 2.79 | AB93: -1 | AC93: 4 | AD93: 4 | AE93: 3 | AF93: 1000 | AJ93: 1 | AK93: 2 | AL93: 89
A94: 90 | B94: 90 | C94: 3 | D94: 9 | E94: 10 | F94: 227;237;247 | G94: 结丹 | H94: 后期. | I94: 十重 | J94: 227 | K94: 237 | L94: 247 | M94: =ROUND([1]ResourceLevelConfig!$E94*[1]ResourceLevelConfig!$L94*0.1,0)*10 -> 31480 | N94: 100004 | O94: =AM94 -> 25 | P94: =AN94 -> 1303 | Q94: =AO94 -> 1 | R94: =_xlfn.TEXTJOIN(";",1,AP94,AR94,AT94,AV94) -> 1204;1203;1202;1201 | S94: =_xlfn.TEXTJOIN(";",1,AQ94,AS94,AU94,AW94) -> 1;1;1;1 | T94: =CONCATENATE(ROUND(0.6*VLOOKUP(A94,[3]主表!$A:$P,16,FALSE)*[5]HeroModelConfig!$Q$5,0),";",ROUND(0.9*VLOOKUP(A94,[3]主表!$A:$P,16,FALSE)*[5]HeroModelConfig!$Q$5,0),";",INT(A94/30)+1) -> 34222;51333;4 | U94: =[3]主表!K92 -> 308.4663163 | V94: =[3]主表!L92 -> 8.87217855 | W94: =[3]主表!M92 -> 8.87217855 | X94: =[3]主表!N92 -> 0 | Y94: =[3]主表!$G92 -> 3281 | Z94: =[3]升级!$H92 -> 1200 | AA94: =MAX(1,ROUND(100/(24*3600)*VLOOKUP(B94,[1]ResourceLevelConfig!$A:$E,5,FALSE),2)) -> 2.82 | AB94: 50 | AC94: 4 | AD94: 4 | AE94: 3 | AF94: 1010 | AJ94: 1 | AK94: 2 | AL94: 90 | AM94: 25 | AN94: 1303 | AO94: 1 | AP94: 1204 | AQ94: 1 | AR94: 1203 | AS94: 1 | AT94: 1202 | AU94: 1 | AV94: 1201 | AW94: 1 | AX94: =VLOOKUP(AN94,[4]ItemConfig!$A:$AC,29,FALSE)*AO94+AM94 -> 60 | AY94: =VLOOKUP(AP94,[4]ItemConfig!$A:$AC,29,FALSE)*AQ94 -> 40 | AZ94: =VLOOKUP(AR94,[4]ItemConfig!$A:$AC,29,FALSE)*AS94 -> 25 | BA94: =VLOOKUP(AT94,[4]ItemConfig!$A:$AC,29,FALSE)*AU94 -> 15 | BB94: =VLOOKUP(AV94,[4]ItemConfig!$A:$AC,29,FALSE)*AW94 -> 10 | BC94: =CONCATENATE(AX94," + ",SUM(AY94:BB94)) -> 60 + 90
A95: 91 | B95: 91 | C95: 4 | D95: 10 | E95: 1 | F95: 228;235;238 | G95: 元婴 | H95: 前期. | I95: 一重 | J95: 228 | K95: 235 | L95: 238 | M95: =ROUND([1]ResourceLevelConfig!$E95*[1]ResourceLevelConfig!$L95*0.1,0)*10 -> 31980 | N95: -1 | O95: -1 | P95: -1 | Q95: -1 | R95: =IF(I95=10,"1001;1002;1004",-1) -> -1 | S95: =IF(R95=-1,-1,"100;200;300") -> -1 | T95: 0 | U95: =[3]主表!K93 -> 404.8639309 | V95: =[3]主表!L93 -> 11.53383212 | W95: =[3]主表!M93 -> 11.53383212 | X95: =[3]主表!N93 -> 0 | Y95: =[3]主表!$G93 -> 4392 | Z95: =[3]升级!$H93 -> 1300 | AA95: =MAX(1,ROUND(100/(24*3600)*VLOOKUP(B95,[1]ResourceLevelConfig!$A:$E,5,FALSE),2)) -> 2.85 | AB95: -1 | AC95: 4 | AD95: 4 | AE95: 4 | AF95: 1020 | AJ95: 1 | AK95: 2 | AL95: 91
A96: 92 | B96: 92 | C96: 4 | D96: 10 | E96: 2 | F96: 228;235;239 | G96: 元婴 | H96: 前期. | I96: 二重 | J96: 228 | K96: 235 | L96: 239 | M96: =ROUND([1]ResourceLevelConfig!$E96*[1]ResourceLevelConfig!$L96*0.1,0)*10 -> 32620 | N96: -1 | O96: -1 | P96: -1 | Q96: -1 | R96: =IF(I96=10,"1001;1002;1004",-1) -> -1 | S96: =IF(R96=-1,-1,"100;200;300") -> -1 | T96: 0 | U96: =[3]主表!K94 -> 414.2401402 | V96: =[3]主表!L94 -> 11.68955994 | W96: =[3]主表!M94 -> 11.68955994 | X96: =[3]主表!N94 -> 0 | Y96: =[3]主表!$G94 -> 4487 | Z96: =[3]升级!$H94 -> 1300 | AA96: =MAX(1,ROUND(100/(24*3600)*VLOOKUP(B96,[1]ResourceLevelConfig!$A:$E,5,FALSE),2)) -> 2.88 | AB96: -1 | AC96: 4 | AD96: 4 | AE96: 4 | AF96: 1030 | AJ96: 1 | AK96: 2 | AL96: 92
A97: 93 | B97: 93 | C97: 4 | D97: 10 | E97: 3 | F97: 228;235;240 | G97: 元婴 | H97: 前期. | I97: 三重 | J97: 228 | K97: 235 | L97: 240 | M97: =ROUND([1]ResourceLevelConfig!$E97*[1]ResourceLevelConfig!$L97*0.1,0)*10 -> 33130 | N97: -1 | O97: -1 | P97: -1 | Q97: -1 | R97: -1 | S97: -1 | T97: 0 | U97: =[3]主表!K95 -> 423.7957349 | V97: =[3]主表!L95 -> 11.84739037 | W97: =[3]主表!M95 -> 11.84739037 | X97: =[3]主表!N95 -> 0 | Y97: =[3]主表!$G95 -> 4584 | Z97: =[3]升级!$H95 -> 1300 | AA97: =MAX(1,ROUND(100/(24*3600)*VLOOKUP(B97,[1]ResourceLevelConfig!$A:$E,5,FALSE),2)) -> 2.91 | AB97: -1 | AC97: 4 | AD97: 4 | AE97: 4 | AF97: 1040 | AJ97: 1 | AK97: 2 | AL97: 93
A98: 94 | B98: 94 | C98: 4 | D98: 10 | E98: 4 | F98: 228;235;241 | G98: 元婴 | H98: 前期. | I98: 四重 | J98: 228 | K98: 235 | L98: 241 | M98: =ROUND([1]ResourceLevelConfig!$E98*[1]ResourceLevelConfig!$L98*0.1,0)*10 -> 33780 | N98: -1 | O98: -1 | P98: -1 | Q98: -1 | R98: -1 | S98: -1 | T98: 0 | U98: =[3]主表!K96 -> 433.53385 | V98: =[3]主表!L96 -> 12.0073518 | W98: =[3]主表!M96 -> 12.0073518 | X98: =[3]主表!N96 -> 0 | Y98: =[3]主表!$G96 -> 4683 | Z98: =[3]升级!$H96 -> 1300 | AA98: =MAX(1,ROUND(100/(24*3600)*VLOOKUP(B98,[1]ResourceLevelConfig!$A:$E,5,FALSE),2)) -> 2.94 | AB98: -1 | AC98: 4 | AD98: 4 | AE98: 4 | AF98: 1050 | AJ98: 1 | AK98: 2 | AL98: 94
A99: 95 | B99: 95 | C99: 4 | D99: 10 | E99: 5 | F99: 228;235;242 | G99: 元婴 | H99: 前期. | I99: 五重 | J99: 228 | K99: 235 | L99: 242 | M99: =ROUND([1]ResourceLevelConfig!$E99*[1]ResourceLevelConfig!$L99*0.1,0)*10 -> 34300 | N99: -1 | O99: -1 | P99: -1 | Q99: -1 | R99: -1 | S99: -1 | T99: =IF(G99=G100,0,CONCATENATE("1;1")) -> 0 | U99: =[3]主表!K97 -> 443.457672 | V99: =[3]主表!L97 -> 12.16947301 | W99: =[3]主表!M97 -> 12.16947301 | X99: =[3]主表!N97 -> 0 | Y99: =[3]主表!$G97 -> 4785 | Z99: =[3]升级!$H97 -> 1300 | AA99: =MAX(1,ROUND(100/(24*3600)*VLOOKUP(B99,[1]ResourceLevelConfig!$A:$E,5,FALSE),2)) -> 2.96 | AB99: -1 | AC99: 4 | AD99: 4 | AE99: 4 | AF99: 1060 | AJ99: 1 | AK99: 2 | AL99: 95
A100: 96 | B100: 96 | C100: 4 | D100: 10 | E100: 6 | F100: 228;235;243 | G100: 元婴 | H100: 前期. | I100: 六重 | J100: 228 | K100: 235 | L100: 243 | M100: =ROUND([1]ResourceLevelConfig!$E100*[1]ResourceLevelConfig!$L100*0.1,0)*10 -> 34970 | N100: -1 | O100: -1 | P100: -1 | Q100: -1 | R100: -1 | S100: -1 | T100: 0 | U100: =[3]主表!K98 -> 453.5704406 | V100: =[3]主表!L98 -> 12.33378314 | W100: =[3]主表!M98 -> 12.33378314 | X100: =[3]主表!N98 -> 0 | Y100: =[3]主表!$G98 -> 4889 | Z100: =[3]升级!$H98 -> 1300 | AA100: =MAX(1,ROUND(100/(24*3600)*VLOOKUP(B100,[1]ResourceLevelConfig!$A:$E,5,FALSE),2)) -> 3 | AB100: -1 | AC100: 4 | AD100: 4 | AE100: 4 | AF100: 1070 | AJ100: 1 | AK100: 2 | AL100: 96
A101: 97 | B101: 97 | C101: 4 | D101: 10 | E101: 7 | F101: 228;235;244 | G101: 元婴 | H101: 前期. | I101: 七重 | J101: 228 | K101: 235 | L101: 244 | M101: =ROUND([1]ResourceLevelConfig!$E101*[1]ResourceLevelConfig!$L101*0.1,0)*10 -> 35630 | N101: -1 | O101: -1 | P101: -1 | Q101: -1 | R101: -1 | S101: -1 | T101: 0 | U101: =[3]主表!K99 -> 463.8754489 | V101: =[3]主表!L99 -> 12.50031177 | W101: =[3]主表!M99 -> 12.50031177 | X101: =[3]主表!N99 -> 0 | Y101: =[3]主表!$G99 -> 4996 | Z101: =[3]升级!$H99 -> 1300 | AA101: =MAX(1,ROUND(100/(24*3600)*VLOOKUP(B101,[1]ResourceLevelConfig!$A:$E,5,FALSE),2)) -> 3.03 | AB101: -1 | AC101: 4 | AD101: 4 | AE101: 4 | AF101: 1080 | AJ101: 1 | AK101: 2 | AL101: 97
A102: 98 | B102: 98 | C102: 4 | D102: 10 | E102: 8 | F102: 228;235;245 | G102: 元婴 | H102: 前期. | I102: 八重 | J102: 228 | K102: 235 | L102: 245 | M102: =ROUND([1]ResourceLevelConfig!$E102*[1]ResourceLevelConfig!$L102*0.1,0)*10 -> 36170 | N102: -1 | O102: -1 | P102: -1 | Q102: -1 | R102: -1 | S102: -1 | T102: 0 | U102: =[3]主表!K100 -> 474.3760445 | V102: =[3]主表!L100 -> 12.66908883 | W102: =[3]主表!M100 -> 12.66908883 | X102: =[3]主表!N100 -> 0 | Y102: =[3]主表!$G100 -> 5105 | Z102: =[3]升级!$H100 -> 1300 | AA102: =MAX(1,ROUND(100/(24*3600)*VLOOKUP(B102,[1]ResourceLevelConfig!$A:$E,5,FALSE),2)) -> 3.06 | AB102: -1 | AC102: 4 | AD102: 4 | AE102: 4 | AF102: 1090 | AJ102: 1 | AK102: 2 | AL102: 98
A103: 99 | B103: 99 | C103: 4 | D103: 10 | E103: 9 | F103: 228;235;246 | G103: 元婴 | H103: 前期. | I103: 九重 | J103: 228 | K103: 235 | L103: 246 | M103: =ROUND([1]ResourceLevelConfig!$E103*[1]ResourceLevelConfig!$L103*0.1,0)*10 -> 36850 | N103: -1 | O103: -1 | P103: -1 | Q103: -1 | R103: -1 | S103: -1 | T103: 0 | U103: =[3]主表!K101 -> 485.0756304 | V103: =[3]主表!L101 -> 12.84014469 | W103: =[3]主表!M101 -> 12.84014469 | X103: =[3]主表!N101 -> 0 | Y103: =[3]主表!$G101 -> 5217 | Z103: =[3]升级!$H101 -> 1300 | AA103: =MAX(1,ROUND(100/(24*3600)*VLOOKUP(B103,[1]ResourceLevelConfig!$A:$E,5,FALSE),2)) -> 3.09 | AB103: -1 | AC103: 4 | AD103: 4 | AE103: 4 | AF103: 1100 | AJ103: 1 | AK103: 2 | AL103: 99
A104: 100 | B104: 100 | C104: 4 | D104: 10 | E104: 10 | F104: 228;235;247 | G104: 元婴 | H104: 前期. | I104: 十重 | J104: 228 | K104: 235 | L104: 247 | M104: =ROUND([1]ResourceLevelConfig!$E104*[1]ResourceLevelConfig!$L104*0.1,0)*10 -> 37530 | N104: 100004 | O104: =AM104 -> 30 | P104: =AN104 -> 1202 | Q104: =AO104 -> 2 | R104: =_xlfn.TEXTJOIN(";",1,AP104,AR104,AT104,AV104) -> 1201;1201;1201;1201 | S104: =_xlfn.TEXTJOIN(";",1,AQ104,AS104,AU104,AW104) -> 1;1;1;1 | T104: 0 | U104: =[3]主表!K102 -> 495.9776657 | V104: =[3]主表!L102 -> 13.01351012 | W104: =[3]主表!M102 -> 13.01351012 | X104: =[3]主表!N102 -> 0 | Y104: =[3]主表!$G102 -> 5332 | Z104: =[3]升级!$H102 -> 1300 | AA104: =MAX(1,ROUND(100/(24*3600)*VLOOKUP(B104,[1]ResourceLevelConfig!$A:$E,5,FALSE),2)) -> 3.13 | AB104: 20 | AC104: 4 | AD104: 4 | AE104: 4 | AF104: 1110 | AJ104: 1 | AK104: 2 | AL104: 100 | AM104: 30 | AN104: 1202 | AO104: 2 | AP104: 1201 | AQ104: 1 | AR104: 1201 | AS104: 1 | AT104: 1201 | AU104: 1 | AV104: 1201 | AW104: 1 | AX104: =VLOOKUP(AN104,[4]ItemConfig!$A:$AC,29,FALSE)*AO104+AM104 -> 60 | AY104: =VLOOKUP(AP104,[4]ItemConfig!$A:$AC,29,FALSE)*AQ104 -> 10 | AZ104: =VLOOKUP(AR104,[4]ItemConfig!$A:$AC,29,FALSE)*AS104 -> 10 | BA104: =VLOOKUP(AT104,[4]ItemConfig!$A:$AC,29,FALSE)*AU104 -> 10 | BB104: =VLOOKUP(AV104,[4]ItemConfig!$A:$AC,29,FALSE)*AW104 -> 10 | BC104: =CONCATENATE(AX104," + ",SUM(AY104:BB104)) -> 60 + 40
A105: 101 | B105: 101 | C105: 4 | D105: 11 | E105: 1 | F105: 228;236;238 | G105: 元婴 | H105: 中期. | I105: 一重 | J105: 228 | K105: 236 | L105: 238 | M105: =ROUND([1]ResourceLevelConfig!$E105*[1]ResourceLevelConfig!$L105*0.1,0)*10 -> 38080 | N105: -1 | O105: -1 | P105: -1 | Q105: -1 | R105: =IF(I105=10,"1001;1002;1004",-1) -> -1 | S105: -1 | T105: 0 | U105: =[3]主表!K103 -> 550.3633224 | V105: =[3]主表!L103 -> 14.31486114 | W105: =[3]主表!M103 -> 14.31486114 | X105: =[3]主表!N103 -> 0 | Y105: =[3]主表!$G103 -> 6014 | Z105: =[3]升级!$H103 -> 1300 | AA105: =MAX(1,ROUND(100/(24*3600)*VLOOKUP(B105,[1]ResourceLevelConfig!$A:$E,5,FALSE),2)) -> 3.15 | AB105: -1 | AC105: 4 | AD105: 4 | AE105: 4 | AF105: 1120 | AJ105: 1 | AK105: 2 | AL105: 101
A106: 102 | B106: 102 | C106: 4 | D106: 11 | E106: 2 | F106: 228;236;239 | G106: 元婴 | H106: 中期. | I106: 二重 | J106: 228 | K106: 236 | L106: 239 | M106: =ROUND([1]ResourceLevelConfig!$E106*[1]ResourceLevelConfig!$L106*0.1,0)*10 -> 38780 | N106: -1 | O106: -1 | P106: -1 | Q106: -1 | R106: -1 | S106: -1 | T106: 0 | U106: =[3]主表!K104 -> 562.646769 | V106: =[3]主表!L104 -> 14.50813793 | W106: =[3]主表!M104 -> 14.50813793 | X106: =[3]主表!N104 -> 0 | Y106: =[3]主表!$G104 -> 6119 | Z106: =[3]升级!$H104 -> 1300 | AA106: =MAX(1,ROUND(100/(24*3600)*VLOOKUP(B106,[1]ResourceLevelConfig!$A:$E,5,FALSE),2)) -> 3.18 | AB106: -1 | AC106: 4 | AD106: 4 | AE106: 4 | AF106: 1130 | AJ106: 1 | AK106: 2 | AL106: 102
A107: 103 | B107: 103 | C107: 4 | D107: 11 | E107: 3 | F107: 228;236;240 | G107: 元婴 | H107: 中期. | I107: 三重 | J107: 228 | K107: 236 | L107: 240 | M107: =ROUND([1]ResourceLevelConfig!$E107*[1]ResourceLevelConfig!$L107*0.1,0)*10 -> 39480 | N107: -1 | O107: -1 | P107: -1 | Q107: -1 | R107: -1 | S107: -1 | T107: 0 | U107: =[3]主表!K105 -> 575.1615827 | V107: =[3]主表!L105 -> 14.70402432 | W107: =[3]主表!M105 -> 14.70402432 | X107: =[3]主表!N105 -> 0 | Y107: =[3]主表!$G105 -> 6225 | Z107: =[3]升级!$H105 -> 1300 | AA107: =MAX(1,ROUND(100/(24*3600)*VLOOKUP(B107,[1]ResourceLevelConfig!$A:$E,5,FALSE),2)) -> 3.22 | AB107: -1 | AC107: 4 | AD107: 4 | AE107: 4 | AF107: 1140 | AJ107: 1 | AK107: 2 | AL107: 103
A108: 104 | B108: 104 | C108: 4 | D108: 11 | E108: 4 | F108: 228;236;241 | G108: 元婴 | H108: 中期. | I108: 四重 | J108: 228 | K108: 236 | L108: 241 | M108: =ROUND([1]ResourceLevelConfig!$E108*[1]ResourceLevelConfig!$L108*0.1,0)*10 -> 40180 | N108: -1 | O108: -1 | P108: -1 | Q108: -1 | R108: -1 | S108: -1 | T108: 0 | U108: =[3]主表!K106 -> 587.9117719 | V108: =[3]主表!L106 -> 14.90255554 | W108: =[3]主表!M106 -> 14.90255554 | X108: =[3]主表!N106 -> 0 | Y108: =[3]主表!$G106 -> 6333 | Z108: =[3]升级!$H106 -> 1300 | AA108: =MAX(1,ROUND(100/(24*3600)*VLOOKUP(B108,[1]ResourceLevelConfig!$A:$E,5,FALSE),2)) -> 3.25 | AB108: -1 | AC108: 4 | AD108: 4 | AE108: 4 | AF108: 1150 | AJ108: 1 | AK108: 2 | AL108: 104
A109: 105 | B109: 105 | C109: 4 | D109: 11 | E109: 5 | F109: 228;236;242 | G109: 元婴 | H109: 中期. | I109: 五重 | J109: 228 | K109: 236 | L109: 242 | M109: =ROUND([1]ResourceLevelConfig!$E109*[1]ResourceLevelConfig!$L109*0.1,0)*10 -> 40750 | N109: -1 | O109: -1 | P109: -1 | Q109: -1 | R109: -1 | S109: -1 | T109: 0 | U109: =[3]主表!K107 -> 600.9014113 | V109: =[3]主表!L107 -> 15.10376728 | W109: =[3]主表!M107 -> 15.10376728 | X109: =[3]主表!N107 -> 0 | Y109: =[3]主表!$G107 -> 6443 | Z109: =[3]升级!$H107 -> 1300 | AA109: =MAX(1,ROUND(100/(24*3600)*VLOOKUP(B109,[1]ResourceLevelConfig!$A:$E,5,FALSE),2)) -> 3.28 | AB109: -1 | AC109: 4 | AD109: 4 | AE109: 4 | AF109: 1160 | AJ109: 1 | AK109: 2 | AL109: 105
A110: 106 | B110: 106 | C110: 4 | D110: 11 | E110: 6 | F110: 228;236;243 | G110: 元婴 | H110: 中期. | I110: 六重 | J110: 228 | K110: 236 | L110: 243 | M110: =ROUND([1]ResourceLevelConfig!$E110*[1]ResourceLevelConfig!$L110*0.1,0)*10 -> 41470 | N110: -1 | O110: -1 | P110: -1 | Q110: -1 | R110: -1 | S110: -1 | T110: 0 | U110: =[3]主表!K108 -> 614.1346425 | V110: =[3]主表!L108 -> 15.30769576 | W110: =[3]主表!M108 -> 15.30769576 | X110: =[3]主表!N108 -> 0 | Y110: =[3]主表!$G108 -> 6555 | Z110: =[3]升级!$H108 -> 1300 | AA110: =MAX(1,ROUND(100/(24*3600)*VLOOKUP(B110,[1]ResourceLevelConfig!$A:$E,5,FALSE),2)) -> 3.31 | AB110: -1 | AC110: 4 | AD110: 4 | AE110: 4 | AF110: 1170 | AJ110: 1 | AK110: 2 | AL110: 106
A111: 107 | B111: 107 | C111: 4 | D111: 11 | E111: 7 | F111: 228;236;244 | G111: 元婴 | H111: 中期. | I111: 七重 | J111: 228 | K111: 236 | L111: 244 | M111: =ROUND([1]ResourceLevelConfig!$E111*[1]ResourceLevelConfig!$L111*0.1,0)*10 -> 42190 | N111: -1 | O111: -1 | P111: -1 | Q111: -1 | R111: -1 | S111: -1 | T111: 0 | U111: =[3]主表!K109 -> 627.6156754 | V111: =[3]主表!L109 -> 15.51437764 | W111: =[3]主表!M109 -> 15.51437764 | X111: =[3]主表!N109 -> 0 | Y111: =[3]主表!$G109 -> 6668 | Z111: =[3]升级!$H109 -> 1300 | AA111: =MAX(1,ROUND(100/(24*3600)*VLOOKUP(B111,[1]ResourceLevelConfig!$A:$E,5,FALSE),2)) -> 3.34 | AB111: -1 | AC111: 4 | AD111: 4 | AE111: 4 | AF111: 1180 | AJ111: 1 | AK111: 2 | AL111: 107
A112: 108 | B112: 108 | C112: 4 | D112: 11 | E112: 8 | F112: 228;236;245 | G112: 元婴 | H112: 中期. | I112: 八重 | J112: 228 | K112: 236 | L112: 245 | M112: =ROUND([1]ResourceLevelConfig!$E112*[1]ResourceLevelConfig!$L112*0.1,0)*10 -> 42920 | N112: -1 | O112: -1 | P112: -1 | Q112: -1 | R112: -1 | S112: -1 | T112: 0 | U112: =[3]主表!K110 -> 641.3487891 | V112: =[3]主表!L110 -> 15.7238501 | W112: =[3]主表!M110 -> 15.7238501 | X112: =[3]主表!N110 -> 0 | Y112: =[3]主表!$G110 -> 6783 | Z112: =[3]升级!$H110 -> 1300 | AA112: =MAX(1,ROUND(100/(24*3600)*VLOOKUP(B112,[1]ResourceLevelConfig!$A:$E,5,FALSE),2)) -> 3.38 | AB112: -1 | AC112: 4 | AD112: 4 | AE112: 4 | AF112: 1190 | AJ112: 1 | AK112: 2 | AL112: 108
A113: 109 | B113: 109 | C113: 4 | D113: 11 | E113: 9 | F113: 228;236;246 | G113: 元婴 | H113: 中期. | I113: 九重 | J113: 228 | K113: 236 | L113: 246 | M113: =ROUND([1]ResourceLevelConfig!$E113*[1]ResourceLevelConfig!$L113*0.1,0)*10 -> 43660 | N113: -1 | O113: -1 | P113: -1 | Q113: -1 | R113: -1 | S113: -1 | T113: 0 | U113: =[3]主表!K111 -> 655.3383332 | V113: =[3]主表!L111 -> 15.93615083 | W113: =[3]主表!M111 -> 15.93615083 | X113: =[3]主表!N111 -> 0 | Y113: =[3]主表!$G111 -> 6901 | Z113: =[3]升级!$H111 -> 1300 | AA113: =MAX(1,ROUND(100/(24*3600)*VLOOKUP(B113,[1]ResourceLevelConfig!$A:$E,5,FALSE),2)) -> 3.41 | AB113: -1 | AC113: 4 | AD113: 4 | AE113: 4 | AF113: 1200 | AJ113: 1 | AK113: 2 | AL113: 109
A114: 110 | B114: 110 | C114: 4 | D114: 11 | E114: 10 | F114: 228;236;247 | G114: 元婴 | H114: 中期. | I114: 十重 | J114: 228 | K114: 236 | L114: 247 | M114: =ROUND([1]ResourceLevelConfig!$E114*[1]ResourceLevelConfig!$L114*0.1,0)*10 -> 44400 | N114: 100004 | O114: =AM114 -> 30 | P114: =AN114 -> 1202 | Q114: =AO114 -> 2 | R114: =_xlfn.TEXTJOIN(";",1,AP114,AR114,AT114,AV114) -> 1201;1201;1201;1201 | S114: =_xlfn.TEXTJOIN(";",1,AQ114,AS114,AU114,AW114) -> 1;1;1;1 | T114: 0 | U114: =[3]主表!K112 -> 669.5887286 | V114: =[3]主表!L112 -> 16.151318 | W114: =[3]主表!M112 -> 16.151318 | X114: =[3]主表!N112 -> 0 | Y114: =[3]主表!$G112 -> 7020 | Z114: =[3]升级!$H112 -> 1300 | AA114: =MAX(1,ROUND(100/(24*3600)*VLOOKUP(B114,[1]ResourceLevelConfig!$A:$E,5,FALSE),2)) -> 3.45 | AB114: 20 | AC114: 4 | AD114: 4 | AE114: 4 | AF114: 1210 | AJ114: 1 | AK114: 2 | AL114: 110 | AM114: 30 | AN114: 1202 | AO114: 2 | AP114: 1201 | AQ114: 1 | AR114: 1201 | AS114: 1 | AT114: 1201 | AU114: 1 | AV114: 1201 | AW114: 1 | AX114: =VLOOKUP(AN114,[4]ItemConfig!$A:$AC,29,FALSE)*AO114+AM114 -> 60 | AY114: =VLOOKUP(AP114,[4]ItemConfig!$A:$AC,29,FALSE)*AQ114 -> 10 | AZ114: =VLOOKUP(AR114,[4]ItemConfig!$A:$AC,29,FALSE)*AS114 -> 10 | BA114: =VLOOKUP(AT114,[4]ItemConfig!$A:$AC,29,FALSE)*AU114 -> 10 | BB114: =VLOOKUP(AV114,[4]ItemConfig!$A:$AC,29,FALSE)*AW114 -> 10 | BC114: =CONCATENATE(AX114," + ",SUM(AY114:BB114)) -> 60 + 40
A115: 111 | B115: 111 | C115: 4 | D115: 12 | E115: 1 | F115: 228;237;238 | G115: 元婴 | H115: 后期. | I115: 一重 | J115: 228 | K115: 237 | L115: 238 | M115: =ROUND([1]ResourceLevelConfig!$E115*[1]ResourceLevelConfig!$L115*0.1,0)*10 -> 45150 | N115: -1 | O115: -1 | P115: -1 | Q115: -1 | R115: =IF(I115=10,"1001;1002;1004",-1) -> -1 | S115: -1 | T115: 0 | U115: =[3]主表!K113 -> 742.4899442 | V115: =[3]主表!L113 -> 17.7664498 | W115: =[3]主表!M113 -> 17.7664498 | X115: =[3]主表!N113 -> 0 | Y115: =[3]主表!$G113 -> 7916 | Z115: =[3]升级!$H113 -> 1300 | AA115: =MAX(1,ROUND(100/(24*3600)*VLOOKUP(B115,[1]ResourceLevelConfig!$A:$E,5,FALSE),2)) -> 3.48 | AB115: -1 | AC115: 4 | AD115: 4 | AE115: 4 | AF115: 1220 | AJ115: 1 | AK115: 2 | AL115: 111
A116: 112 | B116: 112 | C116: 4 | D116: 12 | E116: 2 | F116: 228;237;239 | G116: 元婴 | H116: 后期. | I116: 二重 | J116: 228 | K116: 237 | L116: 239 | M116: =ROUND([1]ResourceLevelConfig!$E116*[1]ResourceLevelConfig!$L116*0.1,0)*10 -> 45600 | N116: -1 | O116: -1 | P116: -1 | Q116: -1 | R116: -1 | S116: -1 | T116: 0 | U116: =[3]主表!K114 -> 758.5374912 | V116: =[3]主表!L114 -> 18.00632936 | W116: =[3]主表!M114 -> 18.00632936 | X116: =[3]主表!N114 -> 0 | Y116: =[3]主表!$G114 -> 8051 | Z116: =[3]升级!$H114 -> 1300 | AA116: =MAX(1,ROUND(100/(24*3600)*VLOOKUP(B116,[1]ResourceLevelConfig!$A:$E,5,FALSE),2)) -> 3.52 | AB116: -1 | AC116: 4 | AD116: 4 | AE116: 4 | AF116: 1230 | AJ116: 1 | AK116: 2 | AL116: 112
A117: 113 | B117: 113 | C117: 4 | D117: 12 | E117: 3 | F117: 228;237;240 | G117: 元婴 | H117: 后期. | I117: 三重 | J117: 228 | K117: 237 | L117: 240 | M117: =ROUND([1]ResourceLevelConfig!$E117*[1]ResourceLevelConfig!$L117*0.1,0)*10 -> 46050 | N117: -1 | O117: -1 | P117: -1 | Q117: -1 | R117: -1 | S117: -1 | T117: 0 | U117: =[3]主表!K115 -> 774.8830252 | V117: =[3]主表!L115 -> 18.24944773 | W117: =[3]主表!M115 -> 18.24944773 | X117: =[3]主表!N115 -> 0 | Y117: =[3]主表!$G115 -> 8188 | Z117: =[3]升级!$H115 -> 1300 | AA117: =MAX(1,ROUND(100/(24*3600)*VLOOKUP(B117,[1]ResourceLevelConfig!$A:$E,5,FALSE),2)) -> 3.55 | AB117: -1 | AC117: 4 | AD117: 4 | AE117: 4 | AF117: 1240 | AJ117: 1 | AK117: 2 | AL117: 113
A118: 114 | B118: 114 | C118: 4 | D118: 12 | E118: 4 | F118: 228;237;241 | G118: 元婴 | H118: 后期. | I118: 四重 | J118: 228 | K118: 237 | L118: 241 | M118: =ROUND([1]ResourceLevelConfig!$E118*[1]ResourceLevelConfig!$L118*0.1,0)*10 -> 46500 | N118: -1 | O118: -1 | P118: -1 | Q118: -1 | R118: -1 | S118: -1 | T118: 0 | U118: =[3]主表!K116 -> 791.5316674 | V118: =[3]主表!L116 -> 18.49584864 | W118: =[3]主表!M116 -> 18.49584864 | X118: =[3]主表!N116 -> 0 | Y118: =[3]主表!$G116 -> 8327 | Z118: =[3]升级!$H116 -> 1300 | AA118: =MAX(1,ROUND(100/(24*3600)*VLOOKUP(B118,[1]ResourceLevelConfig!$A:$E,5,FALSE),2)) -> 3.59 | AB118: -1 | AC118: 4 | AD118: 4 | AE118: 4 | AF118: 1250 | AJ118: 1 | AK118: 2 | AL118: 114
A119: 115 | B119: 115 | C119: 4 | D119: 12 | E119: 5 | F119: 228;237;242 | G119: 元婴 | H119: 后期. | I119: 五重 | J119: 228 | K119: 237 | L119: 242 | M119: =ROUND([1]ResourceLevelConfig!$E119*[1]ResourceLevelConfig!$L119*0.1,0)*10 -> 46950 | N119: -1 | O119: -1 | P119: -1 | Q119: -1 | R119: -1 | S119: -1 | T119: 0 | U119: =[3]主表!K117 -> 808.4886232 | V119: =[3]主表!L117 -> 18.74557642 | W119: =[3]主表!M117 -> 18.74557642 | X119: =[3]主表!N117 -> 0 | Y119: =[3]主表!$G117 -> 8469 | Z119: =[3]升级!$H117 -> 1300 | AA119: =MAX(1,ROUND(100/(24*3600)*VLOOKUP(B119,[1]ResourceLevelConfig!$A:$E,5,FALSE),2)) -> 3.62 | AB119: -1 | AC119: 4 | AD119: 4 | AE119: 4 | AF119: 1260 | AJ119: 1 | AK119: 2 | AL119: 115
A120: 116 | B120: 116 | C120: 4 | D120: 12 | E120: 6 | F120: 228;237;243 | G120: 元婴 | H120: 后期. | I120: 六重 | J120: 228 | K120: 237 | L120: 243 | M120: =ROUND([1]ResourceLevelConfig!$E120*[1]ResourceLevelConfig!$L120*0.1,0)*10 -> 47550 | N120: -1 | O120: -1 | P120: -1 | Q120: -1 | R120: -1 | S120: -1 | T120: 0 | U120: =[3]主表!K118 -> 825.7591831 | V120: =[3]主表!L118 -> 18.99867597 | W120: =[3]主表!M118 -> 18.99867597 | X120: =[3]主表!N118 -> 0 | Y120: =[3]主表!$G118 -> 8613 | Z120: =[3]升级!$H118 -> 1300 | AA120: =MAX(1,ROUND(100/(24*3600)*VLOOKUP(B120,[1]ResourceLevelConfig!$A:$E,5,FALSE),2)) -> 3.67 | AB120: -1 | AC120: 4 | AD120: 4 | AE120: 4 | AF120: 1270 | AJ120: 1 | AK120: 2 | AL120: 116
A121: 117 | B121: 117 | C121: 4 | D121: 12 | E121: 7 | F121: 228;237;244 | G121: 元婴 | H121: 后期. | I121: 七重 | J121: 228 | K121: 237 | L121: 244 | M121: =ROUND([1]ResourceLevelConfig!$E121*[1]ResourceLevelConfig!$L121*0.1,0)*10 -> 48000 | N121: -1 | O121: -1 | P121: -1 | Q121: -1 | R121: -1 | S121: -1 | T121: 0 | U121: =[3]主表!K119 -> 843.3487243 | V121: =[3]主表!L119 -> 19.25519283 | W121: =[3]主表!M119 -> 19.25519283 | X121: =[3]主表!N119 -> 0 | Y121: =[3]主表!$G119 -> 8759 | Z121: =[3]升级!$H119 -> 1300 | AA121: =MAX(1,ROUND(100/(24*3600)*VLOOKUP(B121,[1]ResourceLevelConfig!$A:$E,5,FALSE),2)) -> 3.7 | AB121: -1 | AC121: 4 | AD121: 4 | AE121: 4 | AF121: 1280 | AJ121: 1 | AK121: 2 | AL121: 117
A122: 118 | B122: 118 | C122: 4 | D122: 12 | E122: 8 | F122: 228;237;245 | G122: 元婴 | H122: 后期. | I122: 八重 | J122: 228 | K122: 237 | L122: 245 | M122: =ROUND([1]ResourceLevelConfig!$E122*[1]ResourceLevelConfig!$L122*0.1,0)*10 -> 48450 | N122: -1 | O122: -1 | P122: -1 | Q122: -1 | R122: -1 | S122: -1 | T122: 0 | U122: =[3]主表!K120 -> 861.2627121 | V122: =[3]主表!L120 -> 19.51517314 | W122: =[3]主表!M120 -> 19.51517314 | X122: =[3]主表!N120 -> 0 | Y122: =[3]主表!$G120 -> 8908 | Z122: =[3]升级!$H120 -> 1300 | AA122: =MAX(1,ROUND(100/(24*3600)*VLOOKUP(B122,[1]ResourceLevelConfig!$A:$E,5,FALSE),2)) -> 3.74 | AB122: -1 | AC122: 4 | AD122: 4 | AE122: 4 | AF122: 1290 | AJ122: 1 | AK122: 2 | AL122: 118
A123: 119 | B123: 119 | C123: 4 | D123: 12 | E123: 9 | F123: 228;237;246 | G123: 元婴 | H123: 后期. | I123: 九重 | J123: 228 | K123: 237 | L123: 246 | M123: =ROUND([1]ResourceLevelConfig!$E123*[1]ResourceLevelConfig!$L123*0.1,0)*10 -> 48900 | N123: -1 | O123: -1 | P123: -1 | Q123: -1 | R123: -1 | S123: -1 | T123: 0 | U123: =[3]主表!K121 -> 879.5067011 | V123: =[3]主表!L121 -> 19.77866366 | W123: =[3]主表!M121 -> 19.77866366 | X123: =[3]主表!N121 -> 0 | Y123: =[3]主表!$G121 -> 9059 | Z123: =[3]升级!$H121 -> 1300 | AA123: =MAX(1,ROUND(100/(24*3600)*VLOOKUP(B123,[1]ResourceLevelConfig!$A:$E,5,FALSE),2)) -> 3.77 | AB123: -1 | AC123: 4 | AD123: 4 | AE123: 4 | AF123: 1300 | AJ123: 1 | AK123: 2 | AL123: 119
A124: 120 | B124: 120 | C124: 4 | D124: 12 | E124: 10 | F124: 228;237;247 | G124: 元婴 | H124: 后期. | I124: 十重 | J124: 228 | K124: 237 | L124: 247 | M124: =ROUND([1]ResourceLevelConfig!$E124*[1]ResourceLevelConfig!$L124*0.1,0)*10 -> 49350 | N124: 100004 | O124: =AM124 -> 30 | P124: =AN124 -> 1304 | Q124: =AO124 -> 1 | R124: =_xlfn.TEXTJOIN(";",1,AP124,AR124,AT124,AV124) -> 1204;1203;1202;1201 | S124: =_xlfn.TEXTJOIN(";",1,AQ124,AS124,AU124,AW124) -> 1;1;1;1 | T124: =CONCATENATE(ROUND(0.6*VLOOKUP(A124,[3]主表!$A:$P,16,FALSE)*[5]HeroModelConfig!$Q$5,0),";",ROUND(0.9*VLOOKUP(A124,[3]主表!$A:$P,16,FALSE)*[5]HeroModelConfig!$Q$5,0),";",INT(A124/30)+1) -> 123828;185742;5 | U124: =[3]主表!K122 -> 898.0863369 | V124: =[3]主表!L122 -> 20.04571179 | W124: =[3]主表!M122 -> 20.04571179 | X124: =[3]主表!N122 -> 0 | Y124: =[3]主表!$G122 -> 9213 | Z124: =[3]升级!$H122 -> 1300 | AA124: =MAX(1,ROUND(100/(24*3600)*VLOOKUP(B124,[1]ResourceLevelConfig!$A:$E,5,FALSE),2)) -> 3.81 | AB124: 50 | AC124: 4 | AD124: 4 | AE124: 4 | AF124: 1310 | AJ124: 1 | AK124: 2 | AL124: 120 | AM124: 30 | AN124: 1304 | AO124: 1 | AP124: 1204 | AQ124: 1 | AR124: 1203 | AS124: 1 | AT124: 1202 | AU124: 1 | AV124: 1201 | AW124: 1 | AX124: =VLOOKUP(AN124,[4]ItemConfig!$A:$AC,29,FALSE)*AO124+AM124 -> 60 | AY124: =VLOOKUP(AP124,[4]ItemConfig!$A:$AC,29,FALSE)*AQ124 -> 40 | AZ124: =VLOOKUP(AR124,[4]ItemConfig!$A:$AC,29,FALSE)*AS124 -> 25 | BA124: =VLOOKUP(AT124,[4]ItemConfig!$A:$AC,29,FALSE)*AU124 -> 15 | BB124: =VLOOKUP(AV124,[4]ItemConfig!$A:$AC,29,FALSE)*AW124 -> 10 | BC124: =CONCATENATE(AX124," + ",SUM(AY124:BB124)) -> 60 + 90
A125: 121 | B125: 121 | C125: 5 | D125: 13 | E125: 1 | F125: 229;235;238 | G125: 化神 | H125: 前期. | I125: 一重 | J125: 229 | K125: 235 | L125: 238 | M125: =ROUND([1]ResourceLevelConfig!$E125*[1]ResourceLevelConfig!$L125*0.1,0)*10 -> 49950 | N125: -1 | O125: -1 | P125: -1 | Q125: -1 | R125: =IF(I125=10,"1001;1002;1004",-1) -> -1 | S125: =IF(R125=-1,-1,"100;200;300") -> -1 | T125: 0 | U125: =[3]主表!K123 -> 1176.228331 | V125: =[3]主表!L123 -> 26.05942532 | W125: =[3]主表!M123 -> 26.05942532 | X125: =[3]主表!N123 -> 0 | Y125: =[3]主表!$G123 -> 12263 | Z125: =[3]升级!$H123 -> 1400 | AA125: =MAX(1,ROUND(100/(24*3600)*VLOOKUP(B125,[1]ResourceLevelConfig!$A:$E,5,FALSE),2)) -> 3.85 | AB125: -1 | AC125: 4 | AD125: 4 | AE125: 4 | AF125: 1320 | AJ125: 1 | AK125: 3 | AL125: 121
A126: 122 | B126: 122 | C126: 5 | D126: 13 | E126: 2 | F126: 229;235;239 | G126: 化神 | H126: 前期. | I126: 二重 | J126: 229 | K126: 235 | L126: 239 | M126: =ROUND([1]ResourceLevelConfig!$E126*[1]ResourceLevelConfig!$L126*0.1,0)*10 -> 50400 | N126: -1 | O126: -1 | P126: -1 | Q126: -1 | R126: =IF(I126=10,"1001;1002;1004",-1) -> -1 | S126: =IF(R126=-1,-1,"100;200;300") -> -1 | T126: 0 | U126: =[3]主表!K124 -> 1200.943341 | V126: =[3]主表!L124 -> 26.41127521 | W126: =[3]主表!M124 -> 26.41127521 | X126: =[3]主表!N124 -> 0 | Y126: =[3]主表!$G124 -> 12457 | Z126: =[3]升级!$H124 -> 1400 | AA126: =MAX(1,ROUND(100/(24*3600)*VLOOKUP(B126,[1]ResourceLevelConfig!$A:$E,5,FALSE),2)) -> 3.89 | AB126: -1 | AC126: 4 | AD126: 4 | AE126: 4 | AF126: 1330 | AJ126: 1 | AK126: 3 | AL126: 122
A127: 123 | B127: 123 | C127: 5 | D127: 13 | E127: 3 | F127: 229;235;240 | G127: 化神 | H127: 前期. | I127: 三重 | J127: 229 | K127: 235 | L127: 240 | M127: =ROUND([1]ResourceLevelConfig!$E127*[1]ResourceLevelConfig!$L127*0.1,0)*10 -> 51000 | N127: -1 | O127: -1 | P127: -1 | Q127: -1 | R127: -1 | S127: -1 | T127: 0 | U127: =[3]主表!K125 -> 1226.111321 | V127: =[3]主表!L125 -> 26.76787572 | W127: =[3]主表!M125 -> 26.76787572 | X127: =[3]主表!N125 -> 0 | Y127: =[3]主表!$G125 -> 12655 | Z127: =[3]升级!$H125 -> 1400 | AA127: =MAX(1,ROUND(100/(24*3600)*VLOOKUP(B127,[1]ResourceLevelConfig!$A:$E,5,FALSE),2)) -> 3.94 | AB127: -1 | AC127: 4 | AD127: 4 | AE127: 4 | AF127: 1340 | AJ127: 1 | AK127: 3 | AL127: 123
A128: 124 | B128: 124 | C128: 5 | D128: 13 | E128: 4 | F128: 229;235;241 | G128: 化神 | H128: 前期. | I128: 四重 | J128: 229 | K128: 235 | L128: 241 | M128: =ROUND([1]ResourceLevelConfig!$E128*[1]ResourceLevelConfig!$L128*0.1,0)*10 -> 51450 | N128: -1 | O128: -1 | P128: -1 | Q128: -1 | R128: -1 | S128: -1 | T128: 0 | U128: =[3]主表!K126 -> 1251.739996 | V128: =[3]主表!L126 -> 27.12929098 | W128: =[3]主表!M126 -> 27.12929098 | X128: =[3]主表!N126 -> 0 | Y128: =[3]主表!$G126 -> 12855 | Z128: =[3]升级!$H126 -> 1400 | AA128: =MAX(1,ROUND(100/(24*3600)*VLOOKUP(B128,[1]ResourceLevelConfig!$A:$E,5,FALSE),2)) -> 3.97 | AB128: -1 | AC128: 4 | AD128: 4 | AE128: 4 | AF128: 1350 | AJ128: 1 | AK128: 3 | AL128: 124
A129: 125 | B129: 125 | C129: 5 | D129: 13 | E129: 5 | F129: 229;235;242 | G129: 化神 | H129: 前期. | I129: 五重 | J129: 229 | K129: 235 | L129: 242 | M129: =ROUND([1]ResourceLevelConfig!$E129*[1]ResourceLevelConfig!$L129*0.1,0)*10 -> 51900 | N129: -1 | O129: -1 | P129: -1 | Q129: -1 | R129: -1 | S129: -1 | T129: 0 | U129: =[3]主表!K127 -> 1277.837221 | V129: =[3]主表!L127 -> 27.49558601 | W129: =[3]主表!M127 -> 27.49558601 | X129: =[3]主表!N127 -> 0 | Y129: =[3]主表!$G127 -> 13059 | Z129: =[3]升级!$H127 -> 1400 | AA129: =MAX(1,ROUND(100/(24*3600)*VLOOKUP(B129,[1]ResourceLevelConfig!$A:$E,5,FALSE),2)) -> 4 | AB129: -1 | AC129: 4 | AD129: 4 | AE129: 4 | AF129: 1360 | AJ129: 1 | AK129: 3 | AL129: 125
A130: 126 | B130: 126 | C130: 5 | D130: 13 | E130: 6 | F130: 229;235;243 | G130: 化神 | H130: 前期. | I130: 六重 | J130: 229 | K130: 235 | L130: 243 | M130: =ROUND([1]ResourceLevelConfig!$E130*[1]ResourceLevelConfig!$L130*0.1,0)*10 -> 52500 | N130: -1 | O130: -1 | P130: -1 | Q130: -1 | R130: -1 | S130: -1 | T130: 0 | U130: =[3]主表!K128 -> 1304.410975 | V130: =[3]主表!L128 -> 27.8668267 | W130: =[3]主表!M128 -> 27.8668267 | X130: =[3]主表!N128 -> 0 | Y130: =[3]主表!$G128 -> 13253 | Z130: =[3]升级!$H128 -> 1400 | AA130: =MAX(1,ROUND(100/(24*3600)*VLOOKUP(B130,[1]ResourceLevelConfig!$A:$E,5,FALSE),2)) -> 4.05 | AB130: -1 | AC130: 4 | AD130: 4 | AE130: 4 | AF130: 1370 | AJ130: 1 | AK130: 3 | AL130: 126
A131: 127 | B131: 127 | C131: 5 | D131: 13 | E131: 7 | F131: 229;235;244 | G131: 化神 | H131: 前期. | I131: 七重 | J131: 229 | K131: 235 | L131: 244 | M131: =ROUND([1]ResourceLevelConfig!$E131*[1]ResourceLevelConfig!$L131*0.1,0)*10 -> 52950 | N131: -1 | O131: -1 | P131: -1 | Q131: -1 | R131: -1 | S131: -1 | T131: 0 | U131: =[3]主表!K129 -> 1331.469368 | V131: =[3]主表!L129 -> 28.24307981 | W131: =[3]主表!M129 -> 28.24307981 | X131: =[3]主表!N129 -> 0 | Y131: =[3]主表!$G129 -> 13450 | Z131: =[3]升级!$H129 -> 1400 | AA131: =MAX(1,ROUND(100/(24*3600)*VLOOKUP(B131,[1]ResourceLevelConfig!$A:$E,5,FALSE),2)) -> 4.09 | AB131: -1 | AC131: =AC130 -> 4 | AD131: =AD130 -> 4 | AE131: =AE130 -> 4 | AF131: 1380 | AJ131: 1 | AK131: 3 | AL131: 127
A132: 128 | B132: 128 | C132: 5 | D132: 13 | E132: 8 | F132: 229;235;245 | G132: 化神 | H132: 前期. | I132: 八重 | J132: 229 | K132: 235 | L132: 245 | M132: =ROUND([1]ResourceLevelConfig!$E132*[1]ResourceLevelConfig!$L132*0.1,0)*10 -> 53550 | N132: -1 | O132: -1 | P132: -1 | Q132: -1 | R132: -1 | S132: -1 | T132: 0 | U132: =[3]主表!K130 -> 1359.020643 | V132: =[3]主表!L130 -> 28.62441302 | W132: =[3]主表!M130 -> 28.62441302 | X132: =[3]主表!N130 -> 0 | Y132: =[3]主表!$G130 -> 13650 | Z132: =[3]升级!$H130 -> 1400 | AA132: =MAX(1,ROUND(100/(24*3600)*VLOOKUP(B132,[1]ResourceLevelConfig!$A:$E,5,FALSE),2)) -> 4.13 | AB132: -1 | AC132: 4 | AD132: 4 | AE132: 4 | AF132: 1390 | AJ132: 1 | AK132: 3 | AL132: 128
A133: 129 | B133: 129 | C133: 5 | D133: 13 | E133: 9 | F133: 229;235;246 | G133: 化神 | H133: 前期. | I133: 九重 | J133: 229 | K133: 235 | L133: 246 | M133: =ROUND([1]ResourceLevelConfig!$E133*[1]ResourceLevelConfig!$L133*0.1,0)*10 -> 54150 | N133: -1 | O133: -1 | P133: -1 | Q133: -1 | R133: -1 | S133: -1 | T133: 0 | U133: =[3]主表!K131 -> 1387.073178 | V133: =[3]主表!L131 -> 29.01089494 | W133: =[3]主表!M131 -> 29.01089494 | X133: =[3]主表!N131 -> 0 | Y133: =[3]主表!$G131 -> 13853 | Z133: =[3]升级!$H131 -> 1400 | AA133: =MAX(1,ROUND(100/(24*3600)*VLOOKUP(B133,[1]ResourceLevelConfig!$A:$E,5,FALSE),2)) -> 4.18 | AB133: -1 | AC133: 4 | AD133: 4 | AE133: 4 | AF133: 1400 | AJ133: 1 | AK133: 3 | AL133: 129
A134: 130 | B134: 130 | C134: 5 | D134: 13 | E134: 10 | F134: =_xlfn.TEXTJOIN(";",1,J134:L134) -> 229;235;247 | G134: 化神 | H134: 前期. | I134: 十重 | J134: 229 | K134: 235 | L134: 247 | M134: =ROUND([1]ResourceLevelConfig!$E134*[1]ResourceLevelConfig!$L134*0.1,0)*10 -> 54600 | N134: =IF(E134=10,100004,-1) -> 100004 | O134: =AM134 -> 30 | P134: =AN134 -> 1202 | Q134: =AO134 -> 2 | R134: =_xlfn.TEXTJOIN(";",1,AP134,AR134,AT134,AV134) -> 1202;1201;1201;1201 | S134: =_xlfn.TEXTJOIN(";",1,AQ134,AS134,AU134,AW134) -> 1;1;1;1 | T134: 0 | U134: =[3]主表!K132 -> 1415.635485 | V134: =[3]主表!L132 -> 29.40259506 | W134: =[3]主表!M132 -> 29.40259506 | X134: =[3]主表!N132 -> 0 | Y134: =[3]主表!$G132 -> 14059 | Z134: =[3]升级!$H132 -> 1400 | AA134: =MAX(1,ROUND(100/(24*3600)*VLOOKUP(B134,[1]ResourceLevelConfig!$A:$E,5,FALSE),2)) -> 4.21 | AB134: 20 | AC134: 4 | AD134: 4 | AE134: 4 | AF134: =MAX(AF133+10,ROUND(10^(B134*0.01+1.405),0)) -> 1410 | AJ134: 1 | AK134: 3 | AL134: 130 | AM134: 30 | AN134: 1202 | AO134: 2 | AP134: 1202 | AQ134: 1 | AR134: 1201 | AS134: 1 | AT134: 1201 | AU134: 1 | AV134: 1201 | AW134: 1 | AX134: =VLOOKUP(AN134,[4]ItemConfig!$A:$AC,29,FALSE)*AO134+AM134 -> 60 | AY134: =VLOOKUP(AP134,[4]ItemConfig!$A:$AC,29,FALSE)*AQ134 -> 15 | AZ134: =VLOOKUP(AR134,[4]ItemConfig!$A:$AC,29,FALSE)*AS134 -> 10 | BA134: =VLOOKUP(AT134,[4]ItemConfig!$A:$AC,29,FALSE)*AU134 -> 10 | BB134: =VLOOKUP(AV134,[4]ItemConfig!$A:$AC,29,FALSE)*AW134 -> 10 | BC134: =CONCATENATE(AX134," + ",SUM(AY134:BB134)) -> 60 + 45
A135: 131 | B135: 131 | C135: 5 | D135: 14 | E135: 1 | F135: 229;236;238 | G135: 化神 | H135: 中期. | I135: 一重 | J135: 229 | K135: 236 | L135: 238 | M135: =ROUND([1]ResourceLevelConfig!$E135*[1]ResourceLevelConfig!$L135*0.1,0)*10 -> 55200 | N135: -1 | O135: =IF(N135=-1,-1,20) -> -1 | P135: -1 | Q135: -1 | R135: =IF(I135=10,"1001;1002;1004",-1) -> -1 | S135: -1 | T135: 0 | U135: =[3]主表!K133 -> 1568.016745 | V135: =[3]主表!L133 -> 32.34285457 | W135: =[3]主表!M133 -> 32.34285457 | X135: =[3]主表!N133 -> 0 | Y135: =[3]主表!$G133 -> 15818 | Z135: =[3]升级!$H133 -> 1400 | AA135: =MAX(1,ROUND(100/(24*3600)*VLOOKUP(B135,[1]ResourceLevelConfig!$A:$E,5,FALSE),2)) -> 4.26 | AB135: -1 | AC135: 4 | AD135: 4 | AE135: 4 | AF135: 1420 | AJ135: 1 | AK135: 3 | AL135: 131
A136: 132 | B136: 132 | C136: 5 | D136: 14 | E136: 2 | F136: 229;236;239 | G136: 化神 | H136: 中期. | I136: 二重 | J136: 229 | K136: 236 | L136: 239 | M136: =ROUND([1]ResourceLevelConfig!$E136*[1]ResourceLevelConfig!$L136*0.1,0)*10 -> 55800 | N136: -1 | O136: -1 | P136: -1 | Q136: -1 | R136: -1 | S136: -1 | T136: 0 | U136: =[3]主表!K134 -> 1600.151608 | V136: =[3]主表!L134 -> 32.77954224 | W136: =[3]主表!M134 -> 32.77954224 | X136: =[3]主表!N134 -> 0 | Y136: =[3]主表!$G134 -> 16050 | Z136: =[3]升级!$H134 -> 1400 | AA136: =MAX(1,ROUND(100/(24*3600)*VLOOKUP(B136,[1]ResourceLevelConfig!$A:$E,5,FALSE),2)) -> 4.31 | AB136: -1 | AC136: 4 | AD136: 4 | AE136: 4 | AF136: 1430 | AJ136: 1 | AK136: 3 | AL136: 132
A137: 133 | B137: 133 | C137: 5 | D137: 14 | E137: 3 | F137: 229;236;240 | G137: 化神 | H137: 中期. | I137: 三重 | J137: 229 | K137: 236 | L137: 240 | M137: =ROUND([1]ResourceLevelConfig!$E137*[1]ResourceLevelConfig!$L137*0.1,0)*10 -> 56250 | N137: -1 | O137: -1 | P137: -1 | Q137: -1 | R137: -1 | S137: -1 | T137: 0 | U137: =[3]主表!K135 -> 1632.868382 | V137: =[3]主表!L135 -> 33.222126 | W137: =[3]主表!M135 -> 33.222126 | X137: =[3]主表!N135 -> 0 | Y137: =[3]主表!$G135 -> 16286 | Z137: =[3]升级!$H135 -> 1400 | AA137: =MAX(1,ROUND(100/(24*3600)*VLOOKUP(B137,[1]ResourceLevelConfig!$A:$E,5,FALSE),2)) -> 4.34 | AB137: -1 | AC137: 4 | AD137: 4 | AE137: 4 | AF137: 1440 | AJ137: 1 | AK137: 3 | AL137: 133
A138: 134 | B138: 134 | C138: 5 | D138: 14 | E138: 4 | F138: 229;236;241 | G138: 化神 | H138: 中期. | I138: 四重 | J138: 229 | K138: 236 | L138: 241 | M138: =ROUND([1]ResourceLevelConfig!$E138*[1]ResourceLevelConfig!$L138*0.1,0)*10 -> 56850 | N138: -1 | O138: -1 | P138: -1 | Q138: -1 | R138: -1 | S138: -1 | T138: 0 | U138: =[3]主表!K136 -> 1666.176921 | V138: =[3]主表!L136 -> 33.67068544 | W138: =[3]主表!M136 -> 33.67068544 | X138: =[3]主表!N136 -> 0 | Y138: =[3]主表!$G136 -> 16525 | Z138: =[3]升级!$H136 -> 1400 | AA138: =MAX(1,ROUND(100/(24*3600)*VLOOKUP(B138,[1]ResourceLevelConfig!$A:$E,5,FALSE),2)) -> 4.39 | AB138: -1 | AC138: 4 | AD138: 4 | AE138: 4 | AF138: 1450 | AJ138: 1 | AK138: 3 | AL138: 134
A139: 135 | B139: 135 | C139: 5 | D139: 14 | E139: 5 | F139: 229;236;242 | G139: 化神 | H139: 中期. | I139: 五重 | J139: 229 | K139: 236 | L139: 242 | M139: =ROUND([1]ResourceLevelConfig!$E139*[1]ResourceLevelConfig!$L139*0.1,0)*10 -> 57450 | N139: -1 | O139: -1 | P139: -1 | Q139: -1 | R139: -1 | S139: -1 | T139: 0 | U139: =[3]主表!K137 -> 1700.087242 | V139: =[3]主表!L137 -> 34.12530126 | W139: =[3]主表!M137 -> 34.12530126 | X139: =[3]主表!N137 -> 0 | Y139: =[3]主表!$G137 -> 16769 | Z139: =[3]升级!$H137 -> 1400 | AA139: =MAX(1,ROUND(100/(24*3600)*VLOOKUP(B139,[1]ResourceLevelConfig!$A:$E,5,FALSE),2)) -> 4.43 | AB139: -1 | AC139: 4 | AD139: 4 | AE139: 4 | AF139: 1460 | AJ139: 1 | AK139: 3 | AL139: 135
A140: 136 | B140: 136 | C140: 5 | D140: 14 | E140: 6 | F140: 229;236;243 | G140: 化神 | H140: 中期. | I140: 六重 | J140: 229 | K140: 236 | L140: 243 | M140: =ROUND([1]ResourceLevelConfig!$E140*[1]ResourceLevelConfig!$L140*0.1,0)*10 -> 58050 | N140: -1 | O140: -1 | P140: -1 | Q140: -1 | R140: -1 | S140: -1 | T140: 0 | U140: =[3]主表!K138 -> 1734.609523 | V140: =[3]主表!L138 -> 34.58605522 | W140: =[3]主表!M138 -> 34.58605522 | X140: =[3]主表!N138 -> 0 | Y140: =[3]主表!$G138 -> 17016 | Z140: =[3]升级!$H138 -> 1400 | AA140: =MAX(1,ROUND(100/(24*3600)*VLOOKUP(B140,[1]ResourceLevelConfig!$A:$E,5,FALSE),2)) -> 4.48 | AB140: -1 | AC140: 4 | AD140: 4 | AE140: 4 | AF140: 1470 | AJ140: 1 | AK140: 3 | AL140: 136
A141: 137 | B141: 137 | C141: 5 | D141: 14 | E141: 7 | F141: 229;236;244 | G141: 化神 | H141: 中期. | I141: 七重 | J141: 229 | K141: 236 | L141: 244 | M141: =ROUND([1]ResourceLevelConfig!$E141*[1]ResourceLevelConfig!$L141*0.1,0)*10 -> 58650 | N141: -1 | O141: -1 | P141: -1 | Q141: -1 | R141: -1 | S141: -1 | T141: 0 | U141: =[3]主表!K139 -> 1769.754106 | V141: =[3]主表!L139 -> 35.0530302 | W141: =[3]主表!M139 -> 35.0530302 | X141: =[3]主表!N139 -> 0 | Y141: =[3]主表!$G139 -> 17267 | Z141: =[3]升级!$H139 -> 1400 | AA141: =MAX(1,ROUND(100/(24*3600)*VLOOKUP(B141,[1]ResourceLevelConfig!$A:$E,5,FALSE),2)) -> 4.53 | AB141: -1 | AC141: 4 | AD141: 4 | AE141: 4 | AF141: 1480 | AJ141: 1 | AK141: 3 | AL141: 137
A142: 138 | B142: 138 | C142: 5 | D142: 14 | E142: 8 | F142: 229;236;245 | G142: 化神 | H142: 中期. | I142: 八重 | J142: 229 | K142: 236 | L142: 245 | M142: =ROUND([1]ResourceLevelConfig!$E142*[1]ResourceLevelConfig!$L142*0.1,0)*10 -> 59250 | N142: -1 | O142: -1 | P142: -1 | Q142: -1 | R142: -1 | S142: -1 | T142: 0 | U142: =[3]主表!K140 -> 1805.531504 | V142: =[3]主表!L140 -> 35.5263102 | W142: =[3]主表!M140 -> 35.5263102 | X142: =[3]主表!N140 -> 0 | Y142: =[3]主表!$G140 -> 17521 | Z142: =[3]升级!$H140 -> 1400 | AA142: =MAX(1,ROUND(100/(24*3600)*VLOOKUP(B142,[1]ResourceLevelConfig!$A:$E,5,FALSE),2)) -> 4.57 | AB142: -1 | AC142: 4 | AD142: 4 | AE142: 4 | AF142: 1490 | AJ142: 1 | AK142: 3 | AL142: 138
A143: 139 | B143: 139 | C143: 5 | D143: 14 | E143: 9 | F143: 229;236;246 | G143: 化神 | H143: 中期. | I143: 九重 | J143: 229 | K143: 236 | L143: 246 | M143: =ROUND([1]ResourceLevelConfig!$E143*[1]ResourceLevelConfig!$L143*0.1,0)*10 -> 59850 | N143: -1 | O143: -1 | P143: -1 | Q143: -1 | R143: -1 | S143: -1 | T143: 0 | U143: =[3]主表!K141 -> 1841.952397 | V143: =[3]主表!L141 -> 36.00598034 | W143: =[3]主表!M141 -> 36.00598034 | X143: =[3]主表!N141 -> 0 | Y143: =[3]主表!$G141 -> 17780 | Z143: =[3]升级!$H141 -> 1400 | AA143: =MAX(1,ROUND(100/(24*3600)*VLOOKUP(B143,[1]ResourceLevelConfig!$A:$E,5,FALSE),2)) -> 4.62 | AB143: -1 | AC143: 4 | AD143: 4 | AE143: 4 | AF143: 1500 | AJ143: 1 | AK143: 3 | AL143: 139
A144: 140 | B144: 140 | C144: 5 | D144: 14 | E144: 10 | F144: 229;236;247 | G144: 化神 | H144: 中期. | I144: 十重 | J144: 229 | K144: 236 | L144: 247 | M144: =ROUND([1]ResourceLevelConfig!$E144*[1]ResourceLevelConfig!$L144*0.1,0)*10 -> 60450 | N144: 100004 | O144: =AM144 -> 30 | P144: =AN144 -> 1202 | Q144: =AO144 -> 2 | R144: =_xlfn.TEXTJOIN(";",1,AP144,AR144,AT144,AV144) -> 1202;1201;1201;1201 | S144: =_xlfn.TEXTJOIN(";",1,AQ144,AS144,AU144,AW144) -> 1;1;1;1 | T144: 0 | U144: =[3]主表!K142 -> 1879.02764 | V144: =[3]主表!L142 -> 36.49212691 | W144: =[3]主表!M142 -> 36.49212691 | X144: =[3]主表!N142 -> 0 | Y144: =[3]主表!$G142 -> 18043 | Z144: =[3]升级!$H142 -> 1400 | AA144: =MAX(1,ROUND(100/(24*3600)*VLOOKUP(B144,[1]ResourceLevelConfig!$A:$E,5,FALSE),2)) -> 4.66 | AB144: 20 | AC144: 4 | AD144: 4 | AE144: 4 | AF144: 1510 | AJ144: 1 | AK144: 3 | AL144: 140 | AM144: 30 | AN144: 1202 | AO144: 2 | AP144: 1202 | AQ144: 1 | AR144: 1201 | AS144: 1 | AT144: 1201 | AU144: 1 | AV144: 1201 | AW144: 1 | AX144: =VLOOKUP(AN144,[4]ItemConfig!$A:$AC,29,FALSE)*AO144+AM144 -> 60 | AY144: =VLOOKUP(AP144,[4]ItemConfig!$A:$AC,29,FALSE)*AQ144 -> 15 | AZ144: =VLOOKUP(AR144,[4]ItemConfig!$A:$AC,29,FALSE)*AS144 -> 10 | BA144: =VLOOKUP(AT144,[4]ItemConfig!$A:$AC,29,FALSE)*AU144 -> 10 | BB144: =VLOOKUP(AV144,[4]ItemConfig!$A:$AC,29,FALSE)*AW144 -> 10 | BC144: =CONCATENATE(AX144," + ",SUM(AY144:BB144)) -> 60 + 45
A145: 141 | B145: 141 | C145: 5 | D145: 15 | E145: 1 | F145: 229;237;238 | G145: 化神 | H145: 后期. | I145: 一重 | J145: 229 | K145: 237 | L145: 238 | M145: =ROUND([1]ResourceLevelConfig!$E145*[1]ResourceLevelConfig!$L145*0.1,0)*10 -> 61050 | N145: -1 | O145: -1 | P145: -1 | Q145: -1 | R145: =IF(I145=10,"1001;1002;1004",-1) -> -1 | S145: -1 | T145: 0 | U145: =[3]主表!K143 -> 2080.356474 | V145: =[3]主表!L143 -> 40.1413396 | W145: =[3]主表!M143 -> 40.1413396 | X145: =[3]主表!N143 -> 0 | Y145: =[3]主表!$G143 -> 20298 | Z145: =[3]升级!$H143 -> 1400 | AA145: =MAX(1,ROUND(100/(24*3600)*VLOOKUP(B145,[1]ResourceLevelConfig!$A:$E,5,FALSE),2)) -> 4.71 | AB145: -1 | AC145: 4 | AD145: 4 | AE145: 4 | AF145: 1520 | AJ145: 1 | AK145: 3 | AL145: 141
A146: 142 | B146: 142 | C146: 5 | D146: 15 | E146: 2 | F146: 229;237;239 | G146: 化神 | H146: 后期. | I146: 二重 | J146: 229 | K146: 237 | L146: 239 | M146: =ROUND([1]ResourceLevelConfig!$E146*[1]ResourceLevelConfig!$L146*0.1,0)*10 -> 61650 | N146: -1 | O146: -1 | P146: -1 | Q146: -1 | R146: -1 | S146: -1 | T146: 0 | U146: =[3]主表!K144 -> 2122.052437 | V146: =[3]主表!L144 -> 40.68332108 | W146: =[3]主表!M144 -> 40.68332108 | X146: =[3]主表!N144 -> 0 | Y146: =[3]主表!$G144 -> 20593 | Z146: =[3]升级!$H144 -> 1400 | AA146: =MAX(1,ROUND(100/(24*3600)*VLOOKUP(B146,[1]ResourceLevelConfig!$A:$E,5,FALSE),2)) -> 4.76 | AB146: -1 | AC146: 4 | AD146: 4 | AE146: 4 | AF146: 1530 | AJ146: 1 | AK146: 3 | AL146: 142
A147: 143 | B147: 143 | C147: 5 | D147: 15 | E147: 3 | F147: 229;237;240 | G147: 化神 | H147: 后期. | I147: 三重 | J147: 229 | K147: 237 | L147: 240 | M147: =ROUND([1]ResourceLevelConfig!$E147*[1]ResourceLevelConfig!$L147*0.1,0)*10 -> 62250 | N147: -1 | O147: -1 | P147: -1 | Q147: -1 | R147: -1 | S147: -1 | T147: 0 | U147: =[3]主表!K145 -> 2164.495095 | V147: =[3]主表!L145 -> 41.2326203 | W147: =[3]主表!M145 -> 41.2326203 | X147: =[3]主表!N145 -> 0 | Y147: =[3]主表!$G145 -> 20894 | Z147: =[3]升级!$H145 -> 1400 | AA147: =MAX(1,ROUND(100/(24*3600)*VLOOKUP(B147,[1]ResourceLevelConfig!$A:$E,5,FALSE),2)) -> 4.8 | AB147: -1 | AC147: 4 | AD147: 4 | AE147: 4 | AF147: 1540 | AJ147: 1 | AK147: 3 | AL147: 143
A148: 144 | B148: 144 | C148: 5 | D148: 15 | E148: 4 | F148: 229;237;241 | G148: 化神 | H148: 后期. | I148: 四重 | J148: 229 | K148: 237 | L148: 241 | M148: =ROUND([1]ResourceLevelConfig!$E148*[1]ResourceLevelConfig!$L148*0.1,0)*10 -> 62850 | N148: -1 | O148: -1 | P148: -1 | Q148: -1 | R148: -1 | S148: -1 | T148: 0 | U148: =[3]主表!K146 -> 2207.697011 | V148: =[3]主表!L146 -> 41.78933607 | W148: =[3]主表!M146 -> 41.78933607 | X148: =[3]主表!N146 -> 0 | Y148: =[3]主表!$G146 -> 21199 | Z148: =[3]升级!$H146 -> 1400 | AA148: =MAX(1,ROUND(100/(24*3600)*VLOOKUP(B148,[1]ResourceLevelConfig!$A:$E,5,FALSE),2)) -> 4.85 | AB148: -1 | AC148: 4 | AD148: 4 | AE148: 4 | AF148: 1550 | AJ148: 1 | AK148: 3 | AL148: 144
A149: 145 | B149: 145 | C149: 5 | D149: 15 | E149: 5 | F149: 229;237;242 | G149: 化神 | H149: 后期. | I149: 五重 | J149: 229 | K149: 237 | L149: 242 | M149: =ROUND([1]ResourceLevelConfig!$E149*[1]ResourceLevelConfig!$L149*0.1,0)*10 -> 63450 | N149: -1 | O149: -1 | P149: -1 | Q149: -1 | R149: -1 | S149: -1 | T149: 0 | U149: =[3]主表!K147 -> 2251.670951 | V149: =[3]主表!L147 -> 42.35356851 | W149: =[3]主表!M147 -> 42.35356851 | X149: =[3]主表!N147 -> 0 | Y149: =[3]主表!$G147 -> 21508 | Z149: =[3]升级!$H147 -> 1400 | AA149: =MAX(1,ROUND(100/(24*3600)*VLOOKUP(B149,[1]ResourceLevelConfig!$A:$E,5,FALSE),2)) -> 4.9 | AB149: -1 | AC149: 4 | AD149: 4 | AE149: 4 | AF149: 1560 | AJ149: 1 | AK149: 3 | AL149: 145
A150: 146 | B150: 146 | C150: 5 | D150: 15 | E150: 6 | F150: 229;237;243 | G150: 化神 | H150: 后期. | I150: 六重 | J150: 229 | K150: 237 | L150: 243 | M150: =ROUND([1]ResourceLevelConfig!$E150*[1]ResourceLevelConfig!$L150*0.1,0)*10 -> 64050 | N150: -1 | O150: -1 | P150: -1 | Q150: -1 | R150: -1 | S150: -1 | T150: 0 | U150: =[3]主表!K148 -> 2296.429887 | V150: =[3]主表!L148 -> 42.92541912 | W150: =[3]主表!M148 -> 42.92541912 | X150: =[3]主表!N148 -> 0 | Y150: =[3]主表!$G148 -> 21823 | Z150: =[3]升级!$H148 -> 1400 | AA150: =MAX(1,ROUND(100/(24*3600)*VLOOKUP(B150,[1]ResourceLevelConfig!$A:$E,5,FALSE),2)) -> 4.94 | AB150: -1 | AC150: 4 | AD150: 4 | AE150: 4 | AF150: 1570 | AJ150: 1 | AK150: 3 | AL150: 146
A151: 147 | B151: 147 | C151: 5 | D151: 15 | E151: 7 | F151: 229;237;244 | G151: 化神 | H151: 后期. | I151: 七重 | J151: 229 | K151: 237 | L151: 244 | M151: =ROUND([1]ResourceLevelConfig!$E151*[1]ResourceLevelConfig!$L151*0.1,0)*10 -> 64800 | N151: -1 | O151: -1 | P151: -1 | Q151: -1 | R151: -1 | S151: -1 | T151: 0 | U151: =[3]主表!K149 -> 2341.986999 | V151: =[3]主表!L149 -> 43.50499077 | W151: =[3]主表!M149 -> 43.50499077 | X151: =[3]主表!N149 -> 0 | Y151: =[3]主表!$G149 -> 22142 | Z151: =[3]升级!$H149 -> 1400 | AA151: =MAX(1,ROUND(100/(24*3600)*VLOOKUP(B151,[1]ResourceLevelConfig!$A:$E,5,FALSE),2)) -> 5 | AB151: -1 | AC151: 4 | AD151: 4 | AE151: 4 | AF151: 1580 | AJ151: 1 | AK151: 3 | AL151: 147
A152: 148 | B152: 148 | C152: 5 | D152: 15 | E152: 8 | F152: 229;237;245 | G152: 化神 | H152: 后期. | I152: 八重 | J152: 229 | K152: 237 | L152: 245 | M152: =ROUND([1]ResourceLevelConfig!$E152*[1]ResourceLevelConfig!$L152*0.1,0)*10 -> 65400 | N152: -1 | O152: -1 | P152: -1 | Q152: -1 | R152: -1 | S152: -1 | T152: 0 | U152: =[3]主表!K150 -> 2388.355682 | V152: =[3]主表!L150 -> 44.09238769 | W152: =[3]主表!M150 -> 44.09238769 | X152: =[3]主表!N150 -> 0 | Y152: =[3]主表!$G150 -> 22467 | Z152: =[3]升级!$H150 -> 1400 | AA152: =MAX(1,ROUND(100/(24*3600)*VLOOKUP(B152,[1]ResourceLevelConfig!$A:$E,5,FALSE),2)) -> 5.05 | AB152: -1 | AC152: 4 | AD152: 4 | AE152: 4 | AF152: 1590 | AJ152: 1 | AK152: 3 | AL152: 148
A153: 149 | B153: 149 | C153: 5 | D153: 15 | E153: 9 | F153: 229;237;246 | G153: 化神 | H153: 后期. | I153: 九重 | J153: 229 | K153: 237 | L153: 246 | M153: =ROUND([1]ResourceLevelConfig!$E153*[1]ResourceLevelConfig!$L153*0.1,0)*10 -> 66150 | N153: -1 | O153: -1 | P153: -1 | Q153: -1 | R153: -1 | S153: -1 | T153: 0 | U153: =[3]主表!K151 -> 2435.549546 | V153: =[3]主表!L151 -> 44.68771554 | W153: =[3]主表!M151 -> 44.68771554 | X153: =[3]主表!N151 -> 0 | Y153: =[3]主表!$G151 -> 22796 | Z153: =[3]升级!$H151 -> 1400 | AA153: =MAX(1,ROUND(100/(24*3600)*VLOOKUP(B153,[1]ResourceLevelConfig!$A:$E,5,FALSE),2)) -> 5.1 | AB153: -1 | AC153: 4 | AD153: 4 | AE153: 4 | AF153: 1600 | AJ153: 1 | AK153: 3 | AL153: 149
A154: 150 | B154: 150 | C154: 5 | D154: 15 | E154: 10 | F154: 229;237;247 | G154: 化神 | H154: 后期. | I154: 十重 | J154: 229 | K154: 237 | L154: 247 | M154: =ROUND([1]ResourceLevelConfig!$E154*[1]ResourceLevelConfig!$L154*0.1,0)*10 -> 66750 | N154: 100004 | O154: =AM154 -> 35 | P154: =AN154 -> 1305 | Q154: =AO154 -> 1 | R154: =_xlfn.TEXTJOIN(";",1,AP154,AR154,AT154,AV154) -> 1204;1203;1202;1201 | S154: =_xlfn.TEXTJOIN(";",1,AQ154,AS154,AU154,AW154) -> 1;1;1;1 | T154: =CONCATENATE(ROUND(0.6*VLOOKUP(A154,[3]主表!$A:$P,16,FALSE)*[5]HeroModelConfig!$Q$5,0),";",ROUND(0.9*VLOOKUP(A154,[3]主表!$A:$P,16,FALSE)*[5]HeroModelConfig!$Q$5,0),";",INT(A154/30)+1) -> 380524;570785;6 | U154: =[3]主表!K152 -> 2483.582422 | V154: =[3]主表!L152 -> 45.29108141 | W154: =[3]主表!M152 -> 45.29108141 | X154: =[3]主表!N152 -> 0 | Y154: =[3]主表!$G152 -> 23131 | Z154: =[3]升级!$H152 -> 1400 | AA154: =MAX(1,ROUND(100/(24*3600)*VLOOKUP(B154,[1]ResourceLevelConfig!$A:$E,5,FALSE),2)) -> 5.15 | AB154: 50 | AC154: 4 | AD154: 4 | AE154: 4 | AF154: 1610 | AJ154: 1 | AK154: 3 | AL154: 150 | AM154: 35 | AN154: 1305 | AO154: 1 | AP154: 1204 | AQ154: 1 | AR154: 1203 | AS154: 1 | AT154: 1202 | AU154: 1 | AV154: 1201 | AW154: 1 | AX154: =VLOOKUP(AN154,[4]ItemConfig!$A:$AC,29,FALSE)*AO154+AM154 -> 60 | AY154: =VLOOKUP(AP154,[4]ItemConfig!$A:$AC,29,FALSE)*AQ154 -> 40 | AZ154: =VLOOKUP(AR154,[4]ItemConfig!$A:$AC,29,FALSE)*AS154 -> 25 | BA154: =VLOOKUP(AT154,[4]ItemConfig!$A:$AC,29,FALSE)*AU154 -> 15 | BB154: =VLOOKUP(AV154,[4]ItemConfig!$A:$AC,29,FALSE)*AW154 -> 10 | BC154: =CONCATENATE(AX154," + ",SUM(AY154:BB154)) -> 60 + 90
A155: 151 | B155: 151 | C155: 6 | D155: 16 | E155: 1 | F155: 230;235;238 | G155: 炼虚 | H155: 前期. | I155: 一重 | J155: 230 | K155: 235 | L155: 238 | M155: =ROUND([1]ResourceLevelConfig!$E155*[1]ResourceLevelConfig!$L155*0.1,0)*10 -> 67350 | N155: -1 | O155: -1 | P155: -1 | Q155: -1 | R155: =IF(I155=10,"1001;1002;1004",-1) -> -1 | S155: =IF(R155=-1,-1,"100;200;300") -> -1 | T155: 0 | U155: =[3]主表!K153 -> 3248.350203 | V155: =[3]主表!L153 -> 58.87840583 | W155: =[3]主表!M153 -> 58.87840583 | X155: =[3]主表!N153 -> 0 | Y155: =[3]主表!$G153 -> 30749 | Z155: =[3]升级!$H153 -> 1500 | AA155: =MAX(1,ROUND(100/(24*3600)*VLOOKUP(B155,[1]ResourceLevelConfig!$A:$E,5,FALSE),2)) -> 5.2 | AB155: -1 | AC155: 4 | AD155: 4 | AE155: 4 | AF155: 1620 | AJ155: 1 | AK155: 3 | AL155: 151
A156: 152 | B156: 152 | C156: 6 | D156: 16 | E156: 2 | F156: 230;235;239 | G156: 炼虚 | H156: 前期. | I156: 二重 | J156: 230 | K156: 235 | L156: 239 | M156: =ROUND([1]ResourceLevelConfig!$E156*[1]ResourceLevelConfig!$L156*0.1,0)*10 -> 68100 | N156: -1 | O156: -1 | P156: -1 | Q156: -1 | R156: =IF(I156=10,"1001;1002;1004",-1) -> -1 | S156: =IF(R156=-1,-1,"100;200;300") -> -1 | T156: 0 | U156: =[3]主表!K154 -> 3312.167816 | V156: =[3]主表!L154 -> 59.67337196 | W156: =[3]主表!M154 -> 59.67337196 | X156: =[3]主表!N154 -> 0 | Y156: =[3]主表!$G154 -> 31194 | Z156: =[3]升级!$H154 -> 1500 | AA156: =MAX(1,ROUND(100/(24*3600)*VLOOKUP(B156,[1]ResourceLevelConfig!$A:$E,5,FALSE),2)) -> 5.25 | AB156: -1 | AC156: 4 | AD156: 4 | AE156: 4 | AF156: 1630 | AJ156: 1 | AK156: 3 | AL156: 152
A157: 153 | B157: 153 | C157: 6 | D157: 16 | E157: 3 | F157: 230;235;240 | G157: 炼虚 | H157: 前期. | I157: 三重 | J157: 230 | K157: 235 | L157: 240 | M157: =ROUND([1]ResourceLevelConfig!$E157*[1]ResourceLevelConfig!$L157*0.1,0)*10 -> 68850 | N157: -1 | O157: -1 | P157: -1 | Q157: -1 | R157: -1 | S157: -1 | T157: 0 | U157: =[3]主表!K155 -> 3377.116567 | V157: =[3]主表!L155 -> 60.47907159 | W157: =[3]主表!M155 -> 60.47907159 | X157: =[3]主表!N155 -> 0 | Y157: =[3]主表!$G155 -> 31645 | Z157: =[3]升级!$H155 -> 1500 | AA157: =MAX(1,ROUND(100/(24*3600)*VLOOKUP(B157,[1]ResourceLevelConfig!$A:$E,5,FALSE),2)) -> 5.31 | AB157: -1 | AC157: 4 | AD157: 4 | AE157: 4 | AF157: 1640 | AJ157: 1 | AK157: 3 | AL157: 153
A158: 154 | B158: 154 | C158: 6 | D158: 16 | E158: 4 | F158: 230;235;241 | G158: 炼虚 | H158: 前期. | I158: 四重 | J158: 230 | K158: 235 | L158: 241 | M158: =ROUND([1]ResourceLevelConfig!$E158*[1]ResourceLevelConfig!$L158*0.1,0)*10 -> 69450 | N158: -1 | O158: -1 | P158: -1 | Q158: -1 | R158: -1 | S158: -1 | T158: 0 | U158: =[3]主表!K156 -> 3443.215365 | V158: =[3]主表!L156 -> 61.29564963 | W158: =[3]主表!M156 -> 61.29564963 | X158: =[3]主表!N156 -> 0 | Y158: =[3]主表!$G156 -> 32104 | Z158: =[3]升级!$H156 -> 1500 | AA158: =MAX(1,ROUND(100/(24*3600)*VLOOKUP(B158,[1]ResourceLevelConfig!$A:$E,5,FALSE),2)) -> 5.36 | AB158: -1 | AC158: 4 | AD158: 4 | AE158: 4 | AF158: 1650 | AJ158: 1 | AK158: 3 | AL158: 154
A159: 155 | B159: 155 | C159: 6 | D159: 16 | E159: 5 | F159: 230;235;242 | G159: 炼虚 | H159: 前期. | I159: 五重 | J159: 230 | K159: 235 | L159: 242 | M159: =ROUND([1]ResourceLevelConfig!$E159*[1]ResourceLevelConfig!$L159*0.1,0)*10 -> 70200 | N159: -1 | O159: -1 | P159: -1 | Q159: -1 | R159: -1 | S159: -1 | T159: 0 | U159: =[3]主表!K157 -> 3510.483426 | V159: =[3]主表!L157 -> 62.12325298 | W159: =[3]主表!M157 -> 62.12325298 | X159: =[3]主表!N157 -> 0 | Y159: =[3]主表!$G157 -> 32570 | Z159: =[3]升级!$H157 -> 1500 | AA159: =MAX(1,ROUND(100/(24*3600)*VLOOKUP(B159,[1]ResourceLevelConfig!$A:$E,5,FALSE),2)) -> 5.42 | AB159: -1 | AC159: 4 | AD159: 4 | AE159: 4 | AF159: 1660 | AJ159: 1 | AK159: 3 | AL159: 155
A160: 156 | B160: 156 | C160: 6 | D160: 16 | E160: 6 | F160: 230;235;243 | G160: 炼虚 | H160: 前期. | I160: 六重 | J160: 230 | K160: 235 | L160: 243 | M160: =ROUND([1]ResourceLevelConfig!$E160*[1]ResourceLevelConfig!$L160*0.1,0)*10 -> 70950 | N160: -1 | O160: -1 | P160: -1 | Q160: -1 | R160: -1 | S160: -1 | T160: 0 | U160: =[3]主表!K158 -> 3578.940275 | V160: =[3]主表!L158 -> 62.96203048 | W160: =[3]主表!M158 -> 62.96203048 | X160: =[3]主表!N158 -> 0 | Y160: =[3]主表!$G158 -> 33043 | Z160: =[3]升级!$H158 -> 1500 | AA160: =MAX(1,ROUND(100/(24*3600)*VLOOKUP(B160,[1]ResourceLevelConfig!$A:$E,5,FALSE),2)) -> 5.47 | AB160: -1 | AC160: 4 | AD160: 4 | AE160: 4 | AF160: 1670 | AJ160: 1 | AK160: 3 | AL160: 156
A161: 157 | B161: 157 | C161: 6 | D161: 16 | E161: 7 | F161: 230;235;244 | G161: 炼虚 | H161: 前期. | I161: 七重 | J161: 230 | K161: 235 | L161: 244 | M161: =ROUND([1]ResourceLevelConfig!$E161*[1]ResourceLevelConfig!$L161*0.1,0)*10 -> 71550 | N161: -1 | O161: -1 | P161: -1 | Q161: -1 | R161: -1 | S161: -1 | T161: 0 | U161: =[3]主表!K159 -> 3648.60575 | V161: =[3]主表!L159 -> 63.81213301 | W161: =[3]主表!M159 -> 63.81213301 | X161: =[3]主表!N159 -> 0 | Y161: =[3]主表!$G159 -> 33523 | Z161: =[3]升级!$H159 -> 1500 | AA161: =MAX(1,ROUND(100/(24*3600)*VLOOKUP(B161,[1]ResourceLevelConfig!$A:$E,5,FALSE),2)) -> 5.52 | AB161: -1 | AC161: 4 | AD161: 4 | AE161: 4 | AF161: 1680 | AJ161: 1 | AK161: 3 | AL161: 157
A162: 158 | B162: 158 | C162: 6 | D162: 16 | E162: 8 | F162: 230;235;245 | G162: 炼虚 | H162: 前期. | I162: 八重 | J162: 230 | K162: 235 | L162: 245 | M162: =ROUND([1]ResourceLevelConfig!$E162*[1]ResourceLevelConfig!$L162*0.1,0)*10 -> 72300 | N162: -1 | O162: -1 | P162: -1 | Q162: -1 | R162: -1 | S162: -1 | T162: 0 | U162: =[3]主表!K160 -> 3719.500009 | V162: =[3]主表!L160 -> 64.67371348 | W162: =[3]主表!M160 -> 64.67371348 | X162: =[3]主表!N160 -> 0 | Y162: =[3]主表!$G160 -> 34011 | Z162: =[3]升级!$H160 -> 1500 | AA162: =MAX(1,ROUND(100/(24*3600)*VLOOKUP(B162,[1]ResourceLevelConfig!$A:$E,5,FALSE),2)) -> 5.58 | AB162: -1 | AC162: 4 | AD162: 4 | AE162: 4 | AF162: 1690 | AJ162: 1 | AK162: 3 | AL162: 158
A163: 159 | B163: 159 | C163: 6 | D163: 16 | E163: 9 | F163: 230;235;246 | G163: 炼虚 | H163: 前期. | I163: 九重 | J163: 230 | K163: 235 | L163: 246 | M163: =ROUND([1]ResourceLevelConfig!$E163*[1]ResourceLevelConfig!$L163*0.1,0)*10 -> 73050 | N163: -1 | O163: -1 | P163: -1 | Q163: -1 | R163: -1 | S163: -1 | T163: =IF(G163=G164,0,CONCATENATE("1;1")) -> 0 | U163: =[3]主表!K161 -> 3791.643534 | V163: =[3]主表!L161 -> 65.54692686 | W163: =[3]主表!M161 -> 65.54692686 | X163: =[3]主表!N161 -> 0 | Y163: =[3]主表!$G161 -> 34506 | Z163: =[3]升级!$H161 -> 1500 | AA163: =MAX(1,ROUND(100/(24*3600)*VLOOKUP(B163,[1]ResourceLevelConfig!$A:$E,5,FALSE),2)) -> 5.64 | AB163: -1 | AC163: 4 | AD163: 4 | AE163: 4 | AF163: 1700 | AJ163: 1 | AK163: 3 | AL163: 159
A164: 160 | B164: 160 | C164: 6 | D164: 16 | E164: 10 | F164: 230;235;247 | G164: 炼虚 | H164: 前期. | I164: 十重 | J164: 230 | K164: 235 | L164: 247 | M164: =ROUND([1]ResourceLevelConfig!$E164*[1]ResourceLevelConfig!$L164*0.1,0)*10 -> 73800 | N164: 100004 | O164: =AM164 -> 15 | P164: =AN164 -> 1202 | Q164: =AO164 -> 3 | R164: =_xlfn.TEXTJOIN(";",1,AP164,AR164,AT164,AV164) -> 1201;1201;1201;1201 | S164: =_xlfn.TEXTJOIN(";",1,AQ164,AS164,AU164,AW164) -> 1;1;1;1 | T164: 0 | U164: =[3]主表!K162 -> 3865.057136 | V164: =[3]主表!L162 -> 66.43193022 | W164: =[3]主表!M162 -> 66.43193022 | X164: =[3]主表!N162 -> 175.05 | Y164: =[3]主表!$G162 -> 35009 | Z164: =[3]升级!$H162 -> 1500 | AA164: =MAX(1,ROUND(100/(24*3600)*VLOOKUP(B164,[1]ResourceLevelConfig!$A:$E,5,FALSE),2)) -> 5.69 | AB164: 20 | AC164: 4 | AD164: 4 | AE164: 4 | AF164: 1710 | AJ164: 1 | AK164: 3 | AL164: 160 | AM164: 15 | AN164: 1202 | AO164: 3 | AP164: 1201 | AQ164: 1 | AR164: 1201 | AS164: 1 | AT164: 1201 | AU164: 1 | AV164: 1201 | AW164: 1 | AX164: =VLOOKUP(AN164,[4]ItemConfig!$A:$AC,29,FALSE)*AO164+AM164 -> 60 | AY164: =VLOOKUP(AP164,[4]ItemConfig!$A:$AC,29,FALSE)*AQ164 -> 10 | AZ164: =VLOOKUP(AR164,[4]ItemConfig!$A:$AC,29,FALSE)*AS164 -> 10 | BA164: =VLOOKUP(AT164,[4]ItemConfig!$A:$AC,29,FALSE)*AU164 -> 10 | BB164: =VLOOKUP(AV164,[4]ItemConfig!$A:$AC,29,FALSE)*AW164 -> 10 | BC164: =CONCATENATE(AX164," + ",SUM(AY164:BB164)) -> 60 + 40
A165: 161 | B165: 161 | C165: 6 | D165: 17 | E165: 1 | F165: 230;236;238 | G165: 炼虚 | H165: 中期. | I165: 一重 | J165: 230 | K165: 236 | L165: 238 | M165: =ROUND([1]ResourceLevelConfig!$E165*[1]ResourceLevelConfig!$L165*0.1,0)*10 -> 74550 | N165: -1 | O165: -1 | P165: -1 | Q165: -1 | R165: =IF(I165=10,"1001;1002;1004",-1) -> -1 | S165: -1 | T165: 0 | U165: =[3]主表!K163 -> 4276.004278 | V165: =[3]主表!L163 -> 73.07512324 | W165: =[3]主表!M163 -> 73.07512324 | X165: =[3]主表!N163 -> 196.88 | Y165: =[3]主表!$G163 -> 39375 | Z165: =[3]升级!$H163 -> 1500 | AA165: =MAX(1,ROUND(100/(24*3600)*VLOOKUP(B165,[1]ResourceLevelConfig!$A:$E,5,FALSE),2)) -> 5.75 | AB165: -1 | AC165: 4 | AD165: 4 | AE165: 4 | AF165: 1720 | AJ165: 1 | AK165: 3 | AL165: 161
A166: 162 | B166: 162 | C166: 6 | D166: 17 | E166: 2 | F166: 230;236;239 | G166: 炼虚 | H166: 中期. | I166: 二重 | J166: 230 | K166: 236 | L166: 239 | M166: =ROUND([1]ResourceLevelConfig!$E166*[1]ResourceLevelConfig!$L166*0.1,0)*10 -> 75300 | N166: -1 | O166: -1 | P166: -1 | Q166: -1 | R166: -1 | S166: -1 | T166: 0 | U166: =[3]主表!K164 -> 4358.509588 | V166: =[3]主表!L164 -> 74.06177102 | W166: =[3]主表!M164 -> 74.06177102 | X166: =[3]主表!N164 -> 199.71 | Y166: =[3]主表!$G164 -> 39941 | Z166: =[3]升级!$H164 -> 1500 | AA166: =MAX(1,ROUND(100/(24*3600)*VLOOKUP(B166,[1]ResourceLevelConfig!$A:$E,5,FALSE),2)) -> 5.81 | AB166: -1 | AC166: 4 | AD166: 4 | AE166: 4 | AF166: 1730 | AJ166: 1 | AK166: 3 | AL166: 162
A167: 163 | B167: 163 | C167: 6 | D167: 17 | E167: 3 | F167: 230;236;240 | G167: 炼虚 | H167: 中期. | I167: 三重 | J167: 230 | K167: 236 | L167: 240 | M167: =ROUND([1]ResourceLevelConfig!$E167*[1]ResourceLevelConfig!$L167*0.1,0)*10 -> 76050 | N167: -1 | O167: -1 | P167: -1 | Q167: -1 | R167: -1 | S167: -1 | T167: 0 | U167: =[3]主表!K165 -> 4442.463329 | V167: =[3]主表!L165 -> 75.06174034 | W167: =[3]主表!M165 -> 75.06174034 | X167: =[3]主表!N165 -> 202.58 | Y167: =[3]主表!$G165 -> 40515 | Z167: =[3]升级!$H165 -> 1500 | AA167: =MAX(1,ROUND(100/(24*3600)*VLOOKUP(B167,[1]ResourceLevelConfig!$A:$E,5,FALSE),2)) -> 5.87 | AB167: -1 | AC167: 4 | AD167: 4 | AE167: 4 | AF167: 1740 | AJ167: 1 | AK167: 3 | AL167: 163
A168: 164 | B168: 164 | C168: 6 | D168: 17 | E168: 4 | F168: 230;236;241 | G168: 炼虚 | H168: 中期. | I168: 四重 | J168: 230 | K168: 236 | L168: 241 | M168: =ROUND([1]ResourceLevelConfig!$E168*[1]ResourceLevelConfig!$L168*0.1,0)*10 -> 76800 | N168: -1 | O168: -1 | P168: -1 | Q168: -1 | R168: -1 | S168: -1 | T168: 0 | U168: =[3]主表!K166 -> 4527.889575 | V168: =[3]主表!L166 -> 76.07521108 | W168: =[3]主表!M166 -> 76.07521108 | X168: =[3]主表!N166 -> 205.5 | Y168: =[3]主表!$G166 -> 41099 | Z168: =[3]升级!$H166 -> 1500 | AA168: =MAX(1,ROUND(100/(24*3600)*VLOOKUP(B168,[1]ResourceLevelConfig!$A:$E,5,FALSE),2)) -> 5.93 | AB168: -1 | AC168: 4 | AD168: 4 | AE168: 4 | AF168: 1750 | AJ168: 1 | AK168: 3 | AL168: 164
A169: 165 | B169: 165 | C169: 6 | D169: 17 | E169: 5 | F169: 230;236;242 | G169: 炼虚 | H169: 中期. | I169: 五重 | J169: 230 | K169: 236 | L169: 242 | M169: =ROUND([1]ResourceLevelConfig!$E169*[1]ResourceLevelConfig!$L169*0.1,0)*10 -> 77550 | N169: -1 | O169: -1 | P169: -1 | Q169: -1 | R169: -1 | S169: -1 | T169: 0 | U169: =[3]主表!K167 -> 4614.812783 | V169: =[3]主表!L167 -> 77.10236552 | W169: =[3]主表!M167 -> 77.10236552 | X169: =[3]主表!N167 -> 208.46 | Y169: =[3]主表!$G167 -> 41691 | Z169: =[3]升级!$H167 -> 1500 | AA169: =MAX(1,ROUND(100/(24*3600)*VLOOKUP(B169,[1]ResourceLevelConfig!$A:$E,5,FALSE),2)) -> 5.98 | AB169: -1 | AC169: 4 | AD169: 4 | AE169: 4 | AF169: 1760 | AJ169: 1 | AK169: 3 | AL169: 165
A170: 166 | B170: 166 | C170: 6 | D170: 17 | E170: 6 | F170: 230;236;243 | G170: 炼虚 | H170: 中期. | I170: 六重 | J170: 230 | K170: 236 | L170: 243 | M170: =ROUND([1]ResourceLevelConfig!$E170*[1]ResourceLevelConfig!$L170*0.1,0)*10 -> 78300 | N170: -1 | O170: -1 | P170: -1 | Q170: -1 | R170: -1 | S170: -1 | T170: 0 | U170: =[3]主表!K168 -> 4703.257805 | V170: =[3]主表!L168 -> 78.14338843 | W170: =[3]主表!M168 -> 78.14338843 | X170: =[3]主表!N168 -> 211.47 | Y170: =[3]主表!$G168 -> 42293 | Z170: =[3]升级!$H168 -> 1500 | AA170: =MAX(1,ROUND(100/(24*3600)*VLOOKUP(B170,[1]ResourceLevelConfig!$A:$E,5,FALSE),2)) -> 6.04 | AB170: -1 | AC170: 4 | AD170: 4 | AE170: 4 | AF170: 1770 | AJ170: 1 | AK170: 3 | AL170: 166
A171: 167 | B171: 167 | C171: 6 | D171: 17 | E171: 7 | F171: 230;236;244 | G171: 炼虚 | H171: 中期. | I171: 七重 | J171: 230 | K171: 236 | L171: 244 | M171: =ROUND([1]ResourceLevelConfig!$E171*[1]ResourceLevelConfig!$L171*0.1,0)*10 -> 79200 | N171: -1 | O171: -1 | P171: -1 | Q171: -1 | R171: -1 | S171: -1 | T171: 0 | U171: =[3]主表!K169 -> 4793.249888 | V171: =[3]主表!L169 -> 79.19846705 | W171: =[3]主表!M169 -> 79.19846705 | X171: =[3]主表!N169 -> 214.52 | Y171: =[3]主表!$G169 -> 42903 | Z171: =[3]升级!$H169 -> 1500 | AA171: =MAX(1,ROUND(100/(24*3600)*VLOOKUP(B171,[1]ResourceLevelConfig!$A:$E,5,FALSE),2)) -> 6.11 | AB171: -1 | AC171: 4 | AD171: 4 | AE171: 4 | AF171: 1780 | AJ171: 1 | AK171: 3 | AL171: 167
A172: 168 | B172: 168 | C172: 6 | D172: 17 | E172: 8 | F172: 230;236;245 | G172: 炼虚 | H172: 中期. | I172: 八重 | J172: 230 | K172: 236 | L172: 245 | M172: =ROUND([1]ResourceLevelConfig!$E172*[1]ResourceLevelConfig!$L172*0.1,0)*10 -> 79950 | N172: -1 | O172: -1 | P172: -1 | Q172: -1 | R172: -1 | S172: -1 | T172: 0 | U172: =[3]主表!K170 -> 4884.814685 | V172: =[3]主表!L170 -> 80.26779116 | W172: =[3]主表!M170 -> 80.26779116 | X172: =[3]主表!N170 -> 217.62 | Y172: =[3]主表!$G170 -> 43524 | Z172: =[3]升级!$H170 -> 1500 | AA172: =MAX(1,ROUND(100/(24*3600)*VLOOKUP(B172,[1]ResourceLevelConfig!$A:$E,5,FALSE),2)) -> 6.17 | AB172: -1 | AC172: 4 | AD172: 4 | AE172: 4 | AF172: 1790 | AJ172: 1 | AK172: 3 | AL172: 168
A173: 169 | B173: 169 | C173: 6 | D173: 17 | E173: 9 | F173: 230;236;246 | G173: 炼虚 | H173: 中期. | I173: 九重 | J173: 230 | K173: 236 | L173: 246 | M173: =ROUND([1]ResourceLevelConfig!$E173*[1]ResourceLevelConfig!$L173*0.1,0)*10 -> 80700 | N173: -1 | O173: -1 | P173: -1 | Q173: -1 | R173: -1 | S173: -1 | T173: 0 | U173: =[3]主表!K171 -> 4977.978261 | V173: =[3]主表!L171 -> 81.35155311 | W173: =[3]主表!M171 -> 81.35155311 | X173: =[3]主表!N171 -> 220.77 | Y173: =[3]主表!$G171 -> 44153 | Z173: =[3]升级!$H171 -> 1500 | AA173: =MAX(1,ROUND(100/(24*3600)*VLOOKUP(B173,[1]ResourceLevelConfig!$A:$E,5,FALSE),2)) -> 6.23 | AB173: -1 | AC173: 4 | AD173: 4 | AE173: 4 | AF173: 1800 | AJ173: 1 | AK173: 3 | AL173: 169
A174: 170 | B174: 170 | C174: 6 | D174: 17 | E174: 10 | F174: 230;236;247 | G174: 炼虚 | H174: 中期. | I174: 十重 | J174: 230 | K174: 236 | L174: 247 | M174: =ROUND([1]ResourceLevelConfig!$E174*[1]ResourceLevelConfig!$L174*0.1,0)*10 -> 81600 | N174: 100004 | O174: =AM174 -> 15 | P174: =AN174 -> 1202 | Q174: =AO174 -> 3 | R174: =_xlfn.TEXTJOIN(";",1,AP174,AR174,AT174,AV174) -> 1201;1201;1201;1201 | S174: =_xlfn.TEXTJOIN(";",1,AQ174,AS174,AU174,AW174) -> 1;1;1;1 | T174: 0 | U174: =[3]主表!K172 -> 5072.767095 | V174: =[3]主表!L172 -> 82.44994782 | W174: =[3]主表!M172 -> 82.44994782 | X174: =[3]主表!N172 -> 246.36 | Y174: =[3]主表!$G172 -> 44793 | Z174: =[3]升级!$H172 -> 1500 | AA174: =MAX(1,ROUND(100/(24*3600)*VLOOKUP(B174,[1]ResourceLevelConfig!$A:$E,5,FALSE),2)) -> 6.3 | AB174: 20 | AC174: 4 | AD174: 4 | AE174: 4 | AF174: 1810 | AJ174: 1 | AK174: 3 | AL174: 170 | AM174: 15 | AN174: 1202 | AO174: 3 | AP174: 1201 | AQ174: 1 | AR174: 1201 | AS174: 1 | AT174: 1201 | AU174: 1 | AV174: 1201 | AW174: 1 | AX174: =VLOOKUP(AN174,[4]ItemConfig!$A:$AC,29,FALSE)*AO174+AM174 -> 60 | AY174: =VLOOKUP(AP174,[4]ItemConfig!$A:$AC,29,FALSE)*AQ174 -> 10 | AZ174: =VLOOKUP(AR174,[4]ItemConfig!$A:$AC,29,FALSE)*AS174 -> 10 | BA174: =VLOOKUP(AT174,[4]ItemConfig!$A:$AC,29,FALSE)*AU174 -> 10 | BB174: =VLOOKUP(AV174,[4]ItemConfig!$A:$AC,29,FALSE)*AW174 -> 10 | BC174: =CONCATENATE(AX174," + ",SUM(AY174:BB174)) -> 60 + 40
A175: 171 | B175: 171 | C175: 6 | D175: 18 | E175: 1 | F175: 230;237;238 | G175: 炼虚 | H175: 后期. | I175: 一重 | J175: 230 | K175: 237 | L175: 238 | M175: =ROUND([1]ResourceLevelConfig!$E175*[1]ResourceLevelConfig!$L175*0.1,0)*10 -> 82350 | N175: -1 | O175: -1 | P175: -1 | Q175: -1 | R175: =IF(I175=10,"1001;1002;1004",-1) -> -1 | S175: -1 | T175: 0 | U175: =[3]主表!K173 -> 5610.378533 | V175: =[3]主表!L173 -> 90.6949426 | W175: =[3]主表!M173 -> 90.6949426 | X175: =[3]主表!N173 -> 277.06 | Y175: =[3]主表!$G173 -> 50374 | Z175: =[3]升级!$H173 -> 1500 | AA175: =MAX(1,ROUND(100/(24*3600)*VLOOKUP(B175,[1]ResourceLevelConfig!$A:$E,5,FALSE),2)) -> 6.35 | AB175: -1 | AC175: 4 | AD175: 4 | AE175: 4 | AF175: 1820 | AJ175: 1 | AK175: 3 | AL175: 171
A176: 172 | B176: 172 | C176: 6 | D176: 18 | E176: 2 | F176: 230;237;239 | G176: 炼虚 | H176: 后期. | I176: 二重 | J176: 230 | K176: 237 | L176: 239 | M176: =ROUND([1]ResourceLevelConfig!$E176*[1]ResourceLevelConfig!$L176*0.1,0)*10 -> 83250 | N176: -1 | O176: -1 | P176: -1 | Q176: -1 | R176: -1 | S176: -1 | T176: 0 | U176: =[3]主表!K174 -> 5716.873204 | V176: =[3]主表!L174 -> 91.91949015 | W176: =[3]主表!M174 -> 91.91949015 | X176: =[3]主表!N174 -> 281.01 | Y176: =[3]主表!$G174 -> 51093 | Z176: =[3]升级!$H174 -> 1500 | AA176: =MAX(1,ROUND(100/(24*3600)*VLOOKUP(B176,[1]ResourceLevelConfig!$A:$E,5,FALSE),2)) -> 6.42 | AB176: -1 | AC176: 4 | AD176: 4 | AE176: 4 | AF176: 1830 | AJ176: 1 | AK176: 3 | AL176: 172
A177: 173 | B177: 173 | C177: 6 | D177: 18 | E177: 3 | F177: 230;237;240 | G177: 炼虚 | H177: 后期. | I177: 三重 | J177: 230 | K177: 237 | L177: 240 | M177: =ROUND([1]ResourceLevelConfig!$E177*[1]ResourceLevelConfig!$L177*0.1,0)*10 -> 84000 | N177: -1 | O177: -1 | P177: -1 | Q177: -1 | R177: -1 | S177: -1 | T177: 0 | U177: =[3]主表!K175 -> 5825.220851 | V177: =[3]主表!L175 -> 93.16057133 | W177: =[3]主表!M175 -> 93.16057133 | X177: =[3]主表!N175 -> 285.03 | Y177: =[3]主表!$G175 -> 51823 | Z177: =[3]升级!$H175 -> 1500 | AA177: =MAX(1,ROUND(100/(24*3600)*VLOOKUP(B177,[1]ResourceLevelConfig!$A:$E,5,FALSE),2)) -> 6.48 | AB177: -1 | AC177: 4 | AD177: 4 | AE177: 4 | AF177: 1840 | AJ177: 1 | AK177: 3 | AL177: 173
A178: 174 | B178: 174 | C178: 6 | D178: 18 | E178: 4 | F178: 230;237;241 | G178: 炼虚 | H178: 后期. | I178: 四重 | J178: 230 | K178: 237 | L178: 241 | M178: =ROUND([1]ResourceLevelConfig!$E178*[1]ResourceLevelConfig!$L178*0.1,0)*10 -> 84900 | N178: -1 | O178: -1 | P178: -1 | Q178: -1 | R178: -1 | S178: -1 | T178: 0 | U178: =[3]主表!K176 -> 5935.4521 | V178: =[3]主表!L176 -> 94.41840938 | W178: =[3]主表!M176 -> 94.41840938 | X178: =[3]主表!N176 -> 289.11 | Y178: =[3]主表!$G176 -> 52565 | Z178: =[3]升级!$H176 -> 1500 | AA178: =MAX(1,ROUND(100/(24*3600)*VLOOKUP(B178,[1]ResourceLevelConfig!$A:$E,5,FALSE),2)) -> 6.55 | AB178: -1 | AC178: 4 | AD178: 4 | AE178: 4 | AF178: 1850 | AJ178: 1 | AK178: 3 | AL178: 174
A179: 175 | B179: 175 | C179: 6 | D179: 18 | E179: 5 | F179: 230;237;242 | G179: 炼虚 | H179: 后期. | I179: 五重 | J179: 230 | K179: 237 | L179: 242 | M179: =ROUND([1]ResourceLevelConfig!$E179*[1]ResourceLevelConfig!$L179*0.1,0)*10 -> 85800 | N179: -1 | O179: -1 | P179: -1 | Q179: -1 | R179: -1 | S179: -1 | T179: 0 | U179: =[3]主表!K177 -> 6047.598061 | V179: =[3]主表!L177 -> 95.69323054 | W179: =[3]主表!M177 -> 95.69323054 | X179: =[3]主表!N177 -> 293.24 | Y179: =[3]主表!$G177 -> 53317 | Z179: =[3]升级!$H177 -> 1500 | AA179: =MAX(1,ROUND(100/(24*3600)*VLOOKUP(B179,[1]ResourceLevelConfig!$A:$E,5,FALSE),2)) -> 6.62 | AB179: -1 | AC179: 4 | AD179: 4 | AE179: 4 | AF179: 1860 | AJ179: 1 | AK179: 3 | AL179: 175
A180: 176 | B180: 176 | C180: 6 | D180: 18 | E180: 6 | F180: 230;237;243 | G180: 炼虚 | H180: 后期. | I180: 六重 | J180: 230 | K180: 237 | L180: 243 | M180: =ROUND([1]ResourceLevelConfig!$E180*[1]ResourceLevelConfig!$L180*0.1,0)*10 -> 86550 | N180: -1 | O180: -1 | P180: -1 | Q180: -1 | R180: -1 | S180: -1 | T180: 0 | U180: =[3]主表!K178 -> 6161.690343 | V180: =[3]主表!L178 -> 96.98526412 | W180: =[3]主表!M178 -> 96.98526412 | X180: =[3]主表!N178 -> 297.45 | Y180: =[3]主表!$G178 -> 54082 | Z180: =[3]升级!$H178 -> 1500 | AA180: =MAX(1,ROUND(100/(24*3600)*VLOOKUP(B180,[1]ResourceLevelConfig!$A:$E,5,FALSE),2)) -> 6.68 | AB180: -1 | AC180: 4 | AD180: 4 | AE180: 4 | AF180: 1870 | AJ180: 1 | AK180: 3 | AL180: 176
A181: 177 | B181: 177 | C181: 6 | D181: 18 | E181: 7 | F181: 230;237;244 | G181: 炼虚 | H181: 后期. | I181: 七重 | J181: 230 | K181: 237 | L181: 244 | M181: =ROUND([1]ResourceLevelConfig!$E181*[1]ResourceLevelConfig!$L181*0.1,0)*10 -> 87450 | N181: -1 | O181: -1 | P181: -1 | Q181: -1 | R181: -1 | S181: -1 | T181: 0 | U181: =[3]主表!K179 -> 6277.761062 | V181: =[3]主表!L179 -> 98.29474251 | W181: =[3]主表!M179 -> 98.29474251 | X181: =[3]主表!N179 -> 301.72 | Y181: =[3]主表!$G179 -> 54858 | Z181: =[3]升级!$H179 -> 1500 | AA181: =MAX(1,ROUND(100/(24*3600)*VLOOKUP(B181,[1]ResourceLevelConfig!$A:$E,5,FALSE),2)) -> 6.75 | AB181: -1 | AC181: 4 | AD181: 4 | AE181: 4 | AF181: 1880 | AJ181: 1 | AK181: 3 | AL181: 177
A182: 178 | B182: 178 | C182: 6 | D182: 18 | E182: 8 | F182: 230;237;245 | G182: 炼虚 | H182: 后期. | I182: 八重 | J182: 230 | K182: 237 | L182: 245 | M182: =ROUND([1]ResourceLevelConfig!$E182*[1]ResourceLevelConfig!$L182*0.1,0)*10 -> 88350 | N182: -1 | O182: -1 | P182: -1 | Q182: -1 | R182: -1 | S182: -1 | T182: 0 | U182: =[3]主表!K180 -> 6395.842842 | V182: =[3]主表!L180 -> 99.62190126 | W182: =[3]主表!M180 -> 99.62190126 | X182: =[3]主表!N180 -> 306.05 | Y182: =[3]主表!$G180 -> 55646 | Z182: =[3]升级!$H180 -> 1500 | AA182: =MAX(1,ROUND(100/(24*3600)*VLOOKUP(B182,[1]ResourceLevelConfig!$A:$E,5,FALSE),2)) -> 6.82 | AB182: -1 | AC182: 4 | AD182: 4 | AE182: 4 | AF182: 1890 | AJ182: 1 | AK182: 3 | AL182: 178
A183: 179 | B183: 179 | C183: 6 | D183: 18 | E183: 9 | F183: 230;237;246 | G183: 炼虚 | H183: 后期. | I183: 九重 | J183: 230 | K183: 237 | L183: 246 | M183: =ROUND([1]ResourceLevelConfig!$E183*[1]ResourceLevelConfig!$L183*0.1,0)*10 -> 89250 | N183: -1 | O183: -1 | P183: -1 | Q183: -1 | R183: -1 | S183: -1 | T183: 0 | U183: =[3]主表!K181 -> 6515.96883 | V183: =[3]主表!L181 -> 100.9669791 | W183: =[3]主表!M181 -> 100.9669791 | X183: =[3]主表!N181 -> 310.45 | Y183: =[3]主表!$G181 -> 56446 | Z183: =[3]升级!$H181 -> 1500 | AA183: =MAX(1,ROUND(100/(24*3600)*VLOOKUP(B183,[1]ResourceLevelConfig!$A:$E,5,FALSE),2)) -> 6.89 | AB183: -1 | AC183: 4 | AD183: 4 | AE183: 4 | AF183: 1900 | AJ183: 1 | AK183: 3 | AL183: 179
A184: 180 | B184: 180 | C184: 6 | D184: 18 | E184: 10 | F184: 230;237;247 | G184: 炼虚 | H184: 后期. | I184: 十重 | J184: 230 | K184: 237 | L184: 247 | M184: =ROUND([1]ResourceLevelConfig!$E184*[1]ResourceLevelConfig!$L184*0.1,0)*10 -> 90150 | N184: 100004 | O184: =AM184 -> 15 | P184: =AN184 -> 1306 | Q184: =AO184 -> 1 | R184: =_xlfn.TEXTJOIN(";",1,AP184,AR184,AT184,AV184) -> 1204;1203;1202;1201 | S184: =_xlfn.TEXTJOIN(";",1,AQ184,AS184,AU184,AW184) -> 1;1;1;1 | T184: =CONCATENATE(ROUND(0.6*VLOOKUP(A184,[3]主表!$A:$P,16,FALSE)*[5]HeroModelConfig!$Q$5,0),";",ROUND(0.9*VLOOKUP(A184,[3]主表!$A:$P,16,FALSE)*[5]HeroModelConfig!$Q$5,0),";",INT(A184/30)+1) -> 1114319;1671479;7 | U184: =[3]主表!K182 -> 6638.1727 | V184: =[3]主表!L182 -> 102.3302179 | W184: =[3]主表!M182 -> 102.3302179 | X184: =[3]主表!N182 -> 343.55 | Y184: =[3]主表!$G182 -> 57259 | Z184: =[3]升级!$H182 -> 1500 | AA184: =MAX(1,ROUND(100/(24*3600)*VLOOKUP(B184,[1]ResourceLevelConfig!$A:$E,5,FALSE),2)) -> 6.96 | AB184: 50 | AC184: 4 | AD184: 4 | AE184: 4 | AF184: 1910 | AJ184: 1 | AK184: 3 | AL184: 180 | AM184: 15 | AN184: 1306 | AO184: 1 | AP184: 1204 | AQ184: 1 | AR184: 1203 | AS184: 1 | AT184: 1202 | AU184: 1 | AV184: 1201 | AW184: 1 | AX184: =VLOOKUP(AN184,[4]ItemConfig!$A:$AC,29,FALSE)*AO184+AM184 -> 35 | AY184: =VLOOKUP(AP184,[4]ItemConfig!$A:$AC,29,FALSE)*AQ184 -> 40 | AZ184: =VLOOKUP(AR184,[4]ItemConfig!$A:$AC,29,FALSE)*AS184 -> 25 | BA184: =VLOOKUP(AT184,[4]ItemConfig!$A:$AC,29,FALSE)*AU184 -> 15 | BB184: =VLOOKUP(AV184,[4]ItemConfig!$A:$AC,29,FALSE)*AW184 -> 10 | BC184: =CONCATENATE(AX184," + ",SUM(AY184:BB184)) -> 35 + 90
A185: 181 | B185: 181 | C185: 7 | D185: 19 | E185: 1 | F185: 231;235;238 | G185: 大乘 | H185: 前期. | I185: 一重 | J185: 231 | K185: 235 | L185: 238 | M185: =ROUND([1]ResourceLevelConfig!$E185*[1]ResourceLevelConfig!$L185*0.1,0)*10 -> 91050 | N185: -1 | O185: -1 | P185: -1 | Q185: -1 | R185: =IF(I185=10,"1001;1002;1004",-1) -> -1 | S185: =IF(R185=-1,-1,"100;200;300") -> -1 | T185: 0 | U185: =[3]主表!K183 -> 8674.118801 | V185: =[3]主表!L183 -> 133.0292833 | W185: =[3]主表!M183 -> 133.0292833 | X185: =[3]主表!N183 -> 457.03 | Y185: =[3]主表!$G183 -> 76172 | Z185: =[3]升级!$H183 -> 1600 | AA185: =MAX(1,ROUND(100/(24*3600)*VLOOKUP(B185,[1]ResourceLevelConfig!$A:$E,5,FALSE),2)) -> 7.03 | AB185: -1 | AC185: 4 | AD185: 4 | AE185: 4 | AF185: 1920 | AJ185: 1 | AK185: 4 | AL185: 181
A186: 182 | B186: 182 | C186: 7 | D186: 19 | E186: 2 | F186: 231;235;239 | G186: 大乘 | H186: 前期. | I186: 二重 | J186: 231 | K186: 235 | L186: 239 | M186: =ROUND([1]ResourceLevelConfig!$E186*[1]ResourceLevelConfig!$L186*0.1,0)*10 -> 91950 | N186: -1 | O186: -1 | P186: -1 | Q186: -1 | R186: =IF(I186=10,"1001;1002;1004",-1) -> -1 | S186: =IF(R186=-1,-1,"100;200;300") -> -1 | T186: 0 | U186: =[3]主表!K184 -> 8836.33031 | V186: =[3]主表!L184 -> 134.8254218 | W186: =[3]主表!M184 -> 134.8254218 | X186: =[3]主表!N184 -> 463.98 | Y186: =[3]主表!$G184 -> 77330 | Z186: =[3]升级!$H184 -> 1600 | AA186: =MAX(1,ROUND(100/(24*3600)*VLOOKUP(B186,[1]ResourceLevelConfig!$A:$E,5,FALSE),2)) -> 7.09 | AB186: -1 | AC186: 4 | AD186: 4 | AE186: 4 | AF186: 1930 | AJ186: 1 | AK186: 4 | AL186: 182
A187: 183 | B187: 183 | C187: 7 | D187: 19 | E187: 3 | F187: 231;235;240 | G187: 大乘 | H187: 前期. | I187: 三重 | J187: 231 | K187: 235 | L187: 240 | M187: =ROUND([1]ResourceLevelConfig!$E187*[1]ResourceLevelConfig!$L187*0.1,0)*10 -> 92850 | N187: -1 | O187: -1 | P187: -1 | Q187: -1 | R187: -1 | S187: -1 | T187: 0 | U187: =[3]主表!K185 -> 9001.340837 | V187: =[3]主表!L185 -> 136.6458115 | W187: =[3]主表!M185 -> 136.6458115 | X187: =[3]主表!N185 -> 471.04 | Y187: =[3]主表!$G185 -> 78506 | Z187: =[3]升级!$H185 -> 1600 | AA187: =MAX(1,ROUND(100/(24*3600)*VLOOKUP(B187,[1]ResourceLevelConfig!$A:$E,5,FALSE),2)) -> 7.16 | AB187: -1 | AC187: 4 | AD187: 4 | AE187: 4 | AF187: 1940 | AJ187: 1 | AK187: 4 | AL187: 183
A188: 184 | B188: 184 | C188: 7 | D188: 19 | E188: 4 | F188: 231;235;241 | G188: 大乘 | H188: 前期. | I188: 四重 | J188: 231 | K188: 235 | L188: 241 | M188: =ROUND([1]ResourceLevelConfig!$E188*[1]ResourceLevelConfig!$L188*0.1,0)*10 -> 93900 | N188: -1 | O188: -1 | P188: -1 | Q188: -1 | R188: -1 | S188: -1 | T188: 0 | U188: =[3]主表!K186 -> 9169.196393 | V188: =[3]主表!L186 -> 138.4907798 | W188: =[3]主表!M186 -> 138.4907798 | X188: =[3]主表!N186 -> 478.21 | Y188: =[3]主表!$G186 -> 79701 | Z188: =[3]升级!$H186 -> 1600 | AA188: =MAX(1,ROUND(100/(24*3600)*VLOOKUP(B188,[1]ResourceLevelConfig!$A:$E,5,FALSE),2)) -> 7.25 | AB188: -1 | AC188: 4 | AD188: 4 | AE188: 4 | AF188: 1950 | AJ188: 1 | AK188: 4 | AL188: 184
A189: 185 | B189: 185 | C189: 7 | D189: 19 | E189: 5 | F189: 231;235;242 | G189: 大乘 | H189: 前期. | I189: 五重 | J189: 231 | K189: 235 | L189: 242 | M189: =ROUND([1]ResourceLevelConfig!$E189*[1]ResourceLevelConfig!$L189*0.1,0)*10 -> 94800 | N189: -1 | O189: -1 | P189: -1 | Q189: -1 | R189: -1 | S189: -1 | T189: 0 | U189: =[3]主表!K187 -> 9339.943725 | V189: =[3]主表!L187 -> 140.3606586 | W189: =[3]主表!M187 -> 140.3606586 | X189: =[3]主表!N187 -> 485.48 | Y189: =[3]主表!$G187 -> 80914 | Z189: =[3]升级!$H187 -> 1600 | AA189: =MAX(1,ROUND(100/(24*3600)*VLOOKUP(B189,[1]ResourceLevelConfig!$A:$E,5,FALSE),2)) -> 7.31 | AB189: -1 | AC189: 4 | AD189: 4 | AE189: 4 | AF189: 1960 | AJ189: 1 | AK189: 4 | AL189: 185
A190: 186 | B190: 186 | C190: 7 | D190: 19 | E190: 6 | F190: 231;235;243 | G190: 大乘 | H190: 前期. | I190: 六重 | J190: 231 | K190: 235 | L190: 243 | M190: =ROUND([1]ResourceLevelConfig!$E190*[1]ResourceLevelConfig!$L190*0.1,0)*10 -> 95700 | N190: -1 | O190: -1 | P190: -1 | Q190: -1 | R190: -1 | S190: -1 | T190: 0 | U190: =[3]主表!K188 -> 9513.63032 | V190: =[3]主表!L188 -> 142.2557841 | W190: =[3]主表!M188 -> 142.2557841 | X190: =[3]主表!N188 -> 493.09 | Y190: =[3]主表!$G188 -> 82181 | Z190: =[3]升级!$H188 -> 1600 | AA190: =MAX(1,ROUND(100/(24*3600)*VLOOKUP(B190,[1]ResourceLevelConfig!$A:$E,5,FALSE),2)) -> 7.38 | AB190: -1 | AC190: 4 | AD190: 4 | AE190: 4 | AF190: 1970 | AJ190: 1 | AK190: 4 | AL190: 186
A191: 187 | B191: 187 | C191: 7 | D191: 19 | E191: 7 | F191: 231;235;244 | G191: 大乘 | H191: 前期. | I191: 七重 | J191: 231 | K191: 235 | L191: 244 | M191: =ROUND([1]ResourceLevelConfig!$E191*[1]ResourceLevelConfig!$L191*0.1,0)*10 -> 96750 | N191: -1 | O191: -1 | P191: -1 | Q191: -1 | R191: -1 | S191: -1 | T191: 0 | U191: =[3]主表!K189 -> 9690.304423 | V191: =[3]主表!L189 -> 144.1764973 | W191: =[3]主表!M189 -> 144.1764973 | X191: =[3]主表!N189 -> 500.81 | Y191: =[3]主表!$G189 -> 83468 | Z191: =[3]升级!$H189 -> 1600 | AA191: =MAX(1,ROUND(100/(24*3600)*VLOOKUP(B191,[1]ResourceLevelConfig!$A:$E,5,FALSE),2)) -> 7.47 | AB191: -1 | AC191: 4 | AD191: 4 | AE191: 4 | AF191: 1980 | AJ191: 1 | AK191: 4 | AL191: 187
A192: 188 | B192: 188 | C192: 7 | D192: 19 | E192: 8 | F192: 231;235;245 | G192: 大乘 | H192: 前期. | I192: 八重 | J192: 231 | K192: 235 | L192: 245 | M192: =ROUND([1]ResourceLevelConfig!$E192*[1]ResourceLevelConfig!$L192*0.1,0)*10 -> 97650 | N192: -1 | O192: -1 | P192: -1 | Q192: -1 | R192: -1 | S192: -1 | T192: 0 | U192: =[3]主表!K190 -> 9870.015043 | V192: =[3]主表!L190 -> 146.1231436 | W192: =[3]主表!M190 -> 146.1231436 | X192: =[3]主表!N190 -> 508.66 | Y192: =[3]主表!$G190 -> 84776 | Z192: =[3]升级!$H190 -> 1600 | AA192: =MAX(1,ROUND(100/(24*3600)*VLOOKUP(B192,[1]ResourceLevelConfig!$A:$E,5,FALSE),2)) -> 7.53 | AB192: -1 | AC192: 4 | AD192: 4 | AE192: 4 | AF192: 1990 | AJ192: 1 | AK192: 4 | AL192: 188
A193: 189 | B193: 189 | C193: 7 | D193: 19 | E193: 9 | F193: 231;235;246 | G193: 大乘 | H193: 前期. | I193: 九重 | J193: 231 | K193: 235 | L193: 246 | M193: =ROUND([1]ResourceLevelConfig!$E193*[1]ResourceLevelConfig!$L193*0.1,0)*10 -> 98700 | N193: -1 | O193: -1 | P193: -1 | Q193: -1 | R193: -1 | S193: -1 | T193: 0 | U193: =[3]主表!K191 -> 10052.81197 | V193: =[3]主表!L191 -> 148.0960732 | W193: =[3]主表!M191 -> 148.0960732 | X193: =[3]主表!N191 -> 516.62 | Y193: =[3]主表!$G191 -> 86104 | Z193: =[3]升级!$H191 -> 1600 | AA193: =MAX(1,ROUND(100/(24*3600)*VLOOKUP(B193,[1]ResourceLevelConfig!$A:$E,5,FALSE),2)) -> 7.62 | AB193: -1 | AC193: 4 | AD193: 4 | AE193: 4 | AF193: 2000 | AJ193: 1 | AK193: 4 | AL193: 189
A194: 190 | B194: 190 | C194: 7 | D194: 19 | E194: 10 | F194: 231;235;247 | G194: 大乘 | H194: 前期. | I194: 十重 | J194: 231 | K194: 235 | L194: 247 | M194: =ROUND([1]ResourceLevelConfig!$E194*[1]ResourceLevelConfig!$L194*0.1,0)*10 -> 99600 | N194: 100004 | O194: =AM194 -> 15 | P194: =AN194 -> 1202 | Q194: =AO194 -> 3 | R194: =_xlfn.TEXTJOIN(";",1,AP194,AR194,AT194,AV194) -> 1201;1201;1201;1201 | S194: =_xlfn.TEXTJOIN(";",1,AQ194,AS194,AU194,AW194) -> 1;1;1;1 | T194: 0 | U194: =[3]主表!K192 -> 10238.74579 | V194: =[3]主表!L192 -> 150.095641 | W194: =[3]主表!M192 -> 150.095641 | X194: =[3]主表!N192 -> 568.45 | Y194: =[3]主表!$G192 -> 87454 | Z194: =[3]升级!$H192 -> 1600 | AA194: =MAX(1,ROUND(100/(24*3600)*VLOOKUP(B194,[1]ResourceLevelConfig!$A:$E,5,FALSE),2)) -> 7.69 | AB194: 20 | AC194: 4 | AD194: 4 | AE194: 4 | AF194: 2018 | AJ194: 1 | AK194: 4 | AL194: 190 | AM194: 15 | AN194: 1202 | AO194: 3 | AP194: 1201 | AQ194: 1 | AR194: 1201 | AS194: 1 | AT194: 1201 | AU194: 1 | AV194: 1201 | AW194: 1 | AX194: =VLOOKUP(AN194,[4]ItemConfig!$A:$AC,29,FALSE)*AO194+AM194 -> 60 | AY194: =VLOOKUP(AP194,[4]ItemConfig!$A:$AC,29,FALSE)*AQ194 -> 10 | AZ194: =VLOOKUP(AR194,[4]ItemConfig!$A:$AC,29,FALSE)*AS194 -> 10 | BA194: =VLOOKUP(AT194,[4]ItemConfig!$A:$AC,29,FALSE)*AU194 -> 10 | BB194: =VLOOKUP(AV194,[4]ItemConfig!$A:$AC,29,FALSE)*AW194 -> 10 | BC194: =CONCATENATE(AX194," + ",SUM(AY194:BB194)) -> 60 + 40
A195: 191 | B195: 191 | C195: 7 | D195: 20 | E195: 1 | F195: 231;236;238 | G195: 大乘 | H195: 中期. | I195: 一重 | J195: 231 | K195: 236 | L195: 238 | M195: =ROUND([1]ResourceLevelConfig!$E195*[1]ResourceLevelConfig!$L195*0.1,0)*10 -> 100650 | N195: -1 | O195: -1 | P195: -1 | Q195: -1 | R195: =IF(I195=10,"1001;1002;1004",-1) -> -1 | S195: -1 | T195: 0 | U195: =[3]主表!K193 -> 11317.84309 | V195: =[3]主表!L193 -> 165.1052051 | W195: =[3]主表!M193 -> 165.1052051 | X195: =[3]主表!N193 -> 640.04 | Y195: =[3]主表!$G193 -> 98467 | Z195: =[3]升级!$H193 -> 1600 | AA195: =MAX(1,ROUND(100/(24*3600)*VLOOKUP(B195,[1]ResourceLevelConfig!$A:$E,5,FALSE),2)) -> 7.77 | AB195: -1 | AC195: =AC194 -> 4 | AD195: =AD194 -> 4 | AE195: =AE194 -> 4 | AF195: 2065 | AJ195: 1 | AK195: 4 | AL195: 191
A196: 192 | B196: 192 | C196: 7 | D196: 20 | E196: 2 | F196: 231;236;239 | G196: 大乘 | H196: 中期. | I196: 二重 | J196: 231 | K196: 236 | L196: 239 | M196: =ROUND([1]ResourceLevelConfig!$E196*[1]ResourceLevelConfig!$L196*0.1,0)*10 -> 101700 | N196: -1 | O196: -1 | P196: -1 | Q196: -1 | R196: -1 | S196: -1 | T196: 0 | U196: =[3]主表!K194 -> 11526.62299 | V196: =[3]主表!L194 -> 167.3344272 | W196: =[3]主表!M194 -> 167.3344272 | X196: =[3]主表!N194 -> 649.92 | Y196: =[3]主表!$G194 -> 99988 | Z196: =[3]升级!$H194 -> 1600 | AA196: =MAX(1,ROUND(100/(24*3600)*VLOOKUP(B196,[1]ResourceLevelConfig!$A:$E,5,FALSE),2)) -> 7.85 | AB196: -1 | AC196: 4 | AD196: 4 | AE196: 4 | AF196: 2113 | AJ196: 1 | AK196: 4 | AL196: 192
A197: 193 | B197: 193 | C197: 7 | D197: 20 | E197: 3 | F197: 231;236;240 | G197: 大乘 | H197: 中期. | I197: 三重 | J197: 231 | K197: 236 | L197: 240 | M197: =ROUND([1]ResourceLevelConfig!$E197*[1]ResourceLevelConfig!$L197*0.1,0)*10 -> 102750 | N197: -1 | O197: -1 | P197: -1 | Q197: -1 | R197: -1 | S197: -1 | T197: 0 | U197: =[3]主表!K195 -> 11738.97748 | V197: =[3]主表!L195 -> 169.593748 | W197: =[3]主表!M195 -> 169.593748 | X197: =[3]主表!N195 -> 659.96 | Y197: =[3]主表!$G195 -> 101533 | Z197: =[3]升级!$H195 -> 1600 | AA197: =MAX(1,ROUND(100/(24*3600)*VLOOKUP(B197,[1]ResourceLevelConfig!$A:$E,5,FALSE),2)) -> 7.93 | AB197: -1 | AC197: 4 | AD197: 4 | AE197: 4 | AF197: 2163 | AJ197: 1 | AK197: 4 | AL197: 193
A198: 194 | B198: 194 | C198: 7 | D198: 20 | E198: 4 | F198: =_xlfn.TEXTJOIN(";",1,J198:L198) -> 231;236;241 | G198: 大乘 | H198: 中期. | I198: 四重 | J198: 231 | K198: 236 | L198: 241 | M198: =ROUND([1]ResourceLevelConfig!$E198*[1]ResourceLevelConfig!$L198*0.1,0)*10 -> 103800 | N198: =IF(E198=10,100004,-1) -> -1 | O198: =IF(N198=-1,-1,20) -> -1 | P198: -1 | Q198: -1 | R198: -1 | S198: -1 | T198: 0 | U198: =[3]主表!K196 -> 11954.96502 | V198: =[3]主表!L196 -> 171.8835736 | W198: =[3]主表!M196 -> 171.8835736 | X198: =[3]主表!N196 -> 670.17 | Y198: =[3]主表!$G196 -> 103103 | Z198: =[3]升级!$H196 -> 1600 | AA198: =MAX(1,ROUND(100/(24*3600)*VLOOKUP(B198,[1]ResourceLevelConfig!$A:$E,5,FALSE),2)) -> 8.01 | AB198: -1 | AC198: 4 | AD198: 4 | AE198: 4 | AF198: =MAX(AF197+10,ROUND(10^(B198*0.01+1.405),0)) -> 2213 | AJ198: 1 | AK198: 4 | AL198: 194
A199: 195 | B199: 195 | C199: 7 | D199: 20 | E199: 5 | F199: 231;236;242 | G199: 大乘 | H199: 中期. | I199: 五重 | J199: 231 | K199: 236 | L199: 242 | M199: =ROUND([1]ResourceLevelConfig!$E199*[1]ResourceLevelConfig!$L199*0.1,0)*10 -> 104700 | N199: -1 | O199: -1 | P199: -1 | Q199: -1 | R199: -1 | S199: -1 | T199: 0 | U199: =[3]主表!K197 -> 12174.64501 | V199: =[3]主表!L197 -> 174.2043162 | W199: =[3]主表!M197 -> 174.2043162 | X199: =[3]主表!N197 -> 680.54 | Y199: =[3]主表!$G197 -> 104699 | Z199: =[3]升级!$H197 -> 1600 | AA199: =MAX(1,ROUND(100/(24*3600)*VLOOKUP(B199,[1]ResourceLevelConfig!$A:$E,5,FALSE),2)) -> 8.08 | AB199: -1 | AC199: 4 | AD199: 4 | AE199: 4 | AF199: 2265 | AJ199: 1 | AK199: 4 | AL199: 195
A200: 196 | B200: 196 | C200: 7 | D200: 20 | E200: 6 | F200: 231;236;243 | G200: 大乘 | H200: 中期. | I200: 六重 | J200: 231 | K200: 236 | L200: 243 | M200: =ROUND([1]ResourceLevelConfig!$E200*[1]ResourceLevelConfig!$L200*0.1,0)*10 -> 105900 | N200: -1 | O200: -1 | P200: -1 | Q200: -1 | R200: -1 | S200: -1 | T200: 0 | U200: =[3]主表!K198 -> 12398.07778 | V200: =[3]主表!L198 -> 176.5563929 | W200: =[3]主表!M198 -> 176.5563929 | X200: =[3]主表!N198 -> 691.07 | Y200: =[3]主表!$G198 -> 106319 | Z200: =[3]升级!$H198 -> 1600 | AA200: =MAX(1,ROUND(100/(24*3600)*VLOOKUP(B200,[1]ResourceLevelConfig!$A:$E,5,FALSE),2)) -> 8.17 | AB200: -1 | AC200: 4 | AD200: 4 | AE200: 4 | AF200: 2317 | AJ200: 1 | AK200: 4 | AL200: 196
... 104 more rows

Sheet HeroQiangDuAddConfig
A1: ID | B1: qiangDuZhi
A2: int | B2: float
A4: ID | B4: 玩家修为境界（等级）
A5: 1 | B5: 1
A6: 2 | B6: 1.085
A7: 3 | B7: 1.17
A8: 4 | B8: 1.255
A9: 5 | B9: 1.34
A10: 6 | B10: 1.425
A11: 7 | B11: 1.51
A12: 8 | B12: 1.595
A13: 9 | B13: 1.68
A14: 10 | B14: 1.765
A15: 11 | B15: 1.85
A16: 12 | B16: 1.935
A17: 13 | B17: 2.02
A18: 14 | B18: 2.105
A19: 15 | B19: 2.19
A20: 16 | B20: 2.275
A21: 17 | B21: 2.36
A22: 18 | B22: 2.445
A23: 19 | B23: 2.53
A24: 20 | B24: 2.615
A25: 21 | B25: 2.7
A26: 22 | B26: 2.785
A27: 23 | B27: 2.87
A28: 24 | B28: 2.955
A29: 25 | B29: 3.04
A30: 26 | B30: 3.125
A31: 27 | B31: 3.21
A32: 28 | B32: 3.295
A33: 29 | B33: 3.38
A34: 30 | B34: 3.465
A35: 31 | B35: 3.55
A36: 32 | B36: 3.635
A37: 33 | B37: 3.72
A38: 34 | B38: 3.805
A39: 35 | B39: 3.89
A40: 36 | B40: 3.975
A41: 37 | B41: 4.06
A42: 38 | B42: 4.145
A43: 39 | B43: 4.23
A44: 40 | B44: 4.315
A45: 41 | B45: 4.4
A46: 42 | B46: 4.485
A47: 43 | B47: 4.57
A48: 44 | B48: 4.655
A49: 45 | B49: 4.74
A50: 46 | B50: 4.825
A51: 47 | B51: 4.91
A52: 48 | B52: 4.995
A53: 49 | B53: 5.08
A54: 50 | B54: 5.165
A55: 51 | B55: 5.25
A56: 52 | B56: 5.335
A57: 53 | B57: 5.42
A58: 54 | B58: 5.505
A59: 55 | B59: 5.59
A60: 56 | B60: 5.675
A61: 57 | B61: 5.76
A62: 58 | B62: 5.845
A63: 59 | B63: 5.93
A64: 60 | B64: 6
